Department Family,Entity,Date,Expense Type,Expense Area,Supplier,Transaction Number,Amount
Department of Health,BSUH NHS Trust,08-Apr-15,Additions - AUC PM,B/S Facilities & Cap Dev Team,A1R SERVICES LIMITED,6297,4478
Department of Health,BSUH NHS Trust,08-Apr-15,Additions - AUC PM,B/S Facilities & Cap Dev Team,A1R SERVICES LIMITED,6297,22390
Department of Health,BSUH NHS Trust,22-Apr-15,VAT Debtor < one year,B/S Financial Control,AB SCIEX UK LTD,570002447,4345.58
Department of Health,BSUH NHS Trust,22-Apr-15,VAT Debtor < one year,B/S Financial Control,AB SCIEX UK LTD,570002447,-0.01
Department of Health,BSUH NHS Trust,22-Apr-15,Lab. Equipment - Maint.,General Pathology,AB SCIEX UK LTD,570002447,21727.88
Department of Health,BSUH NHS Trust,16-Apr-15,Laboratory Chemicals,Microbiology RSCH,ABBOTT LABORATORIES LTD,4657520,159.08
Department of Health,BSUH NHS Trust,16-Apr-15,Laboratory Chemicals,Microbiology RSCH,ABBOTT LABORATORIES LTD,4657520,313.12
Department of Health,BSUH NHS Trust,16-Apr-15,Laboratory Chemicals,Microbiology RSCH,ABBOTT LABORATORIES LTD,4657520,756.3
Department of Health,BSUH NHS Trust,16-Apr-15,Laboratory Chemicals,Microbiology RSCH,ABBOTT LABORATORIES LTD,4657520,3687.6
Department of Health,BSUH NHS Trust,16-Apr-15,Laboratory Chemicals,Microbiology RSCH,ABBOTT LABORATORIES LTD,4657520,1493.64
Department of Health,BSUH NHS Trust,16-Apr-15,Laboratory Chemicals,Microbiology RSCH,ABBOTT LABORATORIES LTD,4657520,15321.04
Department of Health,BSUH NHS Trust,16-Apr-15,Laboratory Chemicals,Microbiology RSCH,ABBOTT LABORATORIES LTD,4657520,746.82
Department of Health,BSUH NHS Trust,16-Apr-15,Laboratory Chemicals,Microbiology RSCH,ABBOTT LABORATORIES LTD,4657520,9639
Department of Health,BSUH NHS Trust,16-Apr-15,Laboratory Chemicals,Microbiology RSCH,ABBOTT LABORATORIES LTD,4657520,60.84
Department of Health,BSUH NHS Trust,16-Apr-15,Laboratory Chemicals,Microbiology RSCH,ABBOTT LABORATORIES LTD,4657520,2031.6
Department of Health,BSUH NHS Trust,16-Apr-15,Laboratory Chemicals,Microbiology RSCH,ABBOTT LABORATORIES LTD,4657520,313.42
Department of Health,BSUH NHS Trust,16-Apr-15,Laboratory Chemicals,Microbiology RSCH,ABBOTT LABORATORIES LTD,4657520,2257.32
Department of Health,BSUH NHS Trust,16-Apr-15,Laboratory Chemicals,Microbiology RSCH,ABBOTT LABORATORIES LTD,4657520,742.4
Department of Health,BSUH NHS Trust,16-Apr-15,Laboratory Chemicals,Microbiology RSCH,ABBOTT LABORATORIES LTD,4657520,71.5
Department of Health,BSUH NHS Trust,16-Apr-15,Laboratory Chemicals,Microbiology RSCH,ABBOTT LABORATORIES LTD,4657520,1105.88
Department of Health,BSUH NHS Trust,16-Apr-15,Laboratory Chemicals,Microbiology RSCH,ABBOTT LABORATORIES LTD,4657520,699.56
Department of Health,BSUH NHS Trust,16-Apr-15,Laboratory Chemicals,Microbiology RSCH,ABBOTT LABORATORIES LTD,4657520,406.32
Department of Health,BSUH NHS Trust,16-Apr-15,Laboratory Chemicals,Microbiology RSCH,ABBOTT LABORATORIES LTD,4657520,410.7
Department of Health,BSUH NHS Trust,16-Apr-15,Laboratory Chemicals,Microbiology RSCH,ABBOTT LABORATORIES LTD,4657520,552.94
Department of Health,BSUH NHS Trust,16-Apr-15,Laboratory Chemicals,Microbiology RSCH,ABBOTT LABORATORIES LTD,4657520,42.43
Department of Health,BSUH NHS Trust,16-Apr-15,Laboratory Chemicals,Microbiology RSCH,ABBOTT LABORATORIES LTD,4657520,1748.92
Department of Health,BSUH NHS Trust,16-Apr-15,Laboratory Chemicals,Microbiology RSCH,ABBOTT LABORATORIES LTD,4657520,42.43
Department of Health,BSUH NHS Trust,16-Apr-15,Laboratory Chemicals,Microbiology RSCH,ABBOTT LABORATORIES LTD,4657520,349.8
Department of Health,BSUH NHS Trust,16-Apr-15,Laboratory Chemicals,Microbiology RSCH,ABBOTT LABORATORIES LTD,4657520,1209.92
Department of Health,BSUH NHS Trust,16-Apr-15,Laboratory Chemicals,Microbiology RSCH,ABBOTT LABORATORIES LTD,4657520,317.46
Department of Health,BSUH NHS Trust,16-Apr-15,Laboratory Chemicals,Microbiology RSCH,ABBOTT LABORATORIES LTD,4657520,3647.48
Department of Health,BSUH NHS Trust,16-Apr-15,Laboratory Chemicals,Microbiology RSCH,ABBOTT LABORATORIES LTD,4657520,4301
Department of Health,BSUH NHS Trust,16-Apr-15,Laboratory Chemicals,Microbiology RSCH,ABBOTT LABORATORIES LTD,4657520,84.87
Department of Health,BSUH NHS Trust,16-Apr-15,Laboratory Chemicals,Microbiology RSCH,ABBOTT LABORATORIES LTD,4657520,128.2
Department of Health,BSUH NHS Trust,16-Apr-15,Laboratory Chemicals,Microbiology RSCH,ABBOTT LABORATORIES LTD,4657520,654.96
Department of Health,BSUH NHS Trust,16-Apr-15,Laboratory Chemicals,Microbiology RSCH,ABBOTT LABORATORIES LTD,4657520,189.3
Department of Health,BSUH NHS Trust,16-Apr-15,Laboratory Chemicals,Microbiology RSCH,ABBOTT LABORATORIES LTD,4657520,2984.44
Department of Health,BSUH NHS Trust,16-Apr-15,Laboratory Chemicals,Microbiology RSCH,ABBOTT LABORATORIES LTD,4657520,349.76
Department of Health,BSUH NHS Trust,16-Apr-15,VAT Debtor < one year,B/S Financial Control,ABBOTT LABORATORIES LTD,4657520,12413.36
Department of Health,BSUH NHS Trust,16-Apr-15,Laboratory Chemicals,Microbiology RSCH,ABBOTT LABORATORIES LTD,4657520,533.64
Department of Health,BSUH NHS Trust,16-Apr-15,Laboratory Chemicals,Microbiology RSCH,ABBOTT LABORATORIES LTD,4657520,144.69
Department of Health,BSUH NHS Trust,16-Apr-15,Laboratory Chemicals,Microbiology RSCH,ABBOTT LABORATORIES LTD,4657520,124.3
Department of Health,BSUH NHS Trust,16-Apr-15,Laboratory Chemicals,Microbiology RSCH,ABBOTT LABORATORIES LTD,4657520,3132.24
Department of Health,BSUH NHS Trust,16-Apr-15,Laboratory Chemicals,Microbiology RSCH,ABBOTT LABORATORIES LTD,4657520,1180.16
Department of Health,BSUH NHS Trust,16-Apr-15,Laboratory Chemicals,Microbiology RSCH,ABBOTT LABORATORIES LTD,4657520,131.7
Department of Health,BSUH NHS Trust,27-Apr-15,M&S Equipment : General,HIV - Drugs (Including Home Delivery),ALCURA UK LIMITED,SI150045511,46255.7
Department of Health,BSUH NHS Trust,16-Apr-15,M&S Equipment : General,HIV - Drugs (Including Home Delivery),ALCURA UK LIMITED,SI150065790,84880.37
Department of Health,BSUH NHS Trust,16-Apr-15,M&S Equipment : General,HIV - Drugs (Including Home Delivery),ALCURA UK LIMITED,SI150065791,73178.34
Department of Health,BSUH NHS Trust,16-Apr-15,M&S Equipment : General,HIV - Drugs (Including Home Delivery),ALCURA UK LIMITED,SI150073021,36866.04
Department of Health,BSUH NHS Trust,02-Apr-15,Additions - AUC B,B/S Neurosciences Division,ARMFIELD CONSTRUCTION LIMITED,91503/1317,226128.5
Department of Health,BSUH NHS Trust,02-Apr-15,Additions - AUC B,B/S Neurosciences Division,ARMFIELD CONSTRUCTION LIMITED,91503/1317,45225.7
Department of Health,BSUH NHS Trust,16-Apr-15,Additions - AUC PM,B/S Elective Division,ARTHREX LTD,INV-15-04-0689,13994.4
Department of Health,BSUH NHS Trust,16-Apr-15,Additions - AUC PM,B/S Elective Division,ARTHREX LTD,INV-15-04-0689,3000
Department of Health,BSUH NHS Trust,16-Apr-15,Additions - AUC PM,B/S Elective Division,ARTHREX LTD,INV-15-04-0689,450
Department of Health,BSUH NHS Trust,16-Apr-15,Additions - AUC PM,B/S Elective Division,ARTHREX LTD,INV-15-04-0689,1202.46
Department of Health,BSUH NHS Trust,16-Apr-15,Additions - AUC PM,B/S Elective Division,ARTHREX LTD,INV-15-04-0689,8016.4
Department of Health,BSUH NHS Trust,16-Apr-15,Additions - AUC PM,B/S Elective Division,ARTHREX LTD,INV-15-04-0689,27988.8
Department of Health,BSUH NHS Trust,16-Apr-15,Additions - AUC PM,B/S Elective Division,ARTHREX LTD,INV-15-04-0689,4798.08
Department of Health,BSUH NHS Trust,16-Apr-15,Additions - AUC PM,B/S Elective Division,ARTHREX LTD,INV-15-04-0689,27312.5
Department of Health,BSUH NHS Trust,16-Apr-15,Additions - AUC PM,B/S Elective Division,ARTHREX LTD,INV-15-04-0689,419.83
Department of Health,BSUH NHS Trust,16-Apr-15,Additions - AUC PM,B/S Elective Division,ARTHREX LTD,INV-15-04-0689,2798.88
Department of Health,BSUH NHS Trust,16-Apr-15,Additions - AUC PM,B/S Elective Division,ARTHREX LTD,INV-15-04-0689,600
Department of Health,BSUH NHS Trust,16-Apr-15,Additions - AUC PM,B/S Elective Division,ARTHREX LTD,INV-15-04-0689,90
Department of Health,BSUH NHS Trust,16-Apr-15,Additions - AUC PM,B/S Elective Division,ARTHREX LTD,INV-15-04-0689,240.49
Department of Health,BSUH NHS Trust,16-Apr-15,Additions - AUC PM,B/S Elective Division,ARTHREX LTD,INV-15-04-0689,1603.28
Department of Health,BSUH NHS Trust,16-Apr-15,Additions - AUC PM,B/S Elective Division,ARTHREX LTD,INV-15-04-0689,5597.76
Department of Health,BSUH NHS Trust,16-Apr-15,Additions - AUC PM,B/S Elective Division,ARTHREX LTD,INV-15-04-0689,959.62
Department of Health,BSUH NHS Trust,16-Apr-15,Additions - AUC PM,B/S Elective Division,ARTHREX LTD,INV-15-04-0689,136562.5
Department of Health,BSUH NHS Trust,16-Apr-15,Additions - AUC PM,B/S Elective Division,ARTHREX LTD,INV-15-04-0689,2099.16
Department of Health,BSUH NHS Trust,21-Apr-15,Additions - AUC B,B/S Specialised Services Division,ASTERAL LIMITED,RINV/22000518,39904.5
Department of Health,BSUH NHS Trust,21-Apr-15,Additions - AUC B,B/S Specialised Services Division,ASTERAL LIMITED,RINV/22000518,7980.9
Department of Health,BSUH NHS Trust,09-Apr-15,M&S Equipment : General,"Renal Buckfield (RSCH,IW,26 Beds)",BAXTER HEALTHCARE LTD,15038732,47475.36
Department of Health,BSUH NHS Trust,21-Apr-15,M&S Equipment : General,"Renal Buckfield (RSCH,IW,26 Beds)",BAXTER HEALTHCARE LTD,15061341,52281.09
Department of Health,BSUH NHS Trust,01-Apr-15,Drugs,Drugs Trading Account,BAYER PLC,187351497,26220
Department of Health,BSUH NHS Trust,29-Apr-15,Drugs,Drugs Trading Account,BAYER PLC,187353242,41952
Department of Health,BSUH NHS Trust,17-Apr-15,Drugs,Drugs Trading Account,BAYER PLC,187353829A.,41952
Department of Health,BSUH NHS Trust,29-Apr-15,Patient Activity - Appliances PBR Exclusions,Cardiac PbR Exclusions,BOSTON SCIENTIFIC LTD,7161342178,38100.03
Department of Health,BSUH NHS Trust,29-Apr-15,Pacemakers,Cardiac Dept RSCH (Non-Invasive),BOSTON SCIENTIFIC LTD,7161342178,4188
Department of Health,BSUH NHS Trust,29-Apr-15,Patient Activity - Appliances PBR Exclusions,Cardiac PbR Exclusions,BOSTON SCIENTIFIC LTD,7161342178,7620.01
Department of Health,BSUH NHS Trust,29-Apr-15,Pacemakers,Cardiac Dept RSCH (Non-Invasive),BOSTON SCIENTIFIC LTD,7161342178,20940
Department of Health,BSUH NHS Trust,21-Apr-15,Rates,Rates (Trust),BRIGHTON & HOVE CITY COUNCIL,35090715 01/04/15-31/03/16,28840.5
Department of Health,BSUH NHS Trust,21-Apr-15,Rates,Rates (Trust),BRIGHTON & HOVE CITY COUNCIL,35177128 01/04/15-31/06/16,33524
Department of Health,BSUH NHS Trust,21-Apr-15,Rates,Rates (Trust),BRIGHTON & HOVE CITY COUNCIL,35488760 01/04/15-31/03/16,1138830
Department of Health,BSUH NHS Trust,21-Apr-15,Rates,Rates (Trust),BRIGHTON & HOVE CITY COUNCIL,35520736 01/04/15-31/03/16,26375.5
Department of Health,BSUH NHS Trust,21-Apr-15,Rates,Rates (Trust),BRIGHTON & HOVE CITY COUNCIL,35552620 01/04/15-31/03/16,50779
Department of Health,BSUH NHS Trust,21-Apr-15,Rates,Rates (Trust),BRIGHTON & HOVE CITY COUNCIL,35592460 01/04/15-31/03/16,80359
Department of Health,BSUH NHS Trust,21-Apr-15,Rates,177 Preston Road,BRIGHTON & HOVE CITY COUNCIL,35774606 01/04/15-31/03/16,29333.5
Department of Health,BSUH NHS Trust,21-Apr-15,Healthcare - Other NHS Bodies,177 Preston Road,BRIGHTON & HOVE CITY COUNCIL,35788453  01/04/15=31/03/16,84796
Department of Health,BSUH NHS Trust,29-Apr-15,Drugs,Drugs Trading Account,BRISTOL-MYERS SQUIBB PHARMACEUTICALS LTD,100533978,41265
Department of Health,BSUH NHS Trust,14-Apr-15,VAT Debtor < one year,B/S Financial Control,CANON (UK) LTD,2010651,4210.33
Department of Health,BSUH NHS Trust,14-Apr-15,Office Equip. & Mats. Purchase,Print Management Project,CANON (UK) LTD,2010651,21051.66
Department of Health,BSUH NHS Trust,14-Apr-15,VAT Debtor < one year,B/S Financial Control,CANON (UK) LTD,2010652,5505.01
Department of Health,BSUH NHS Trust,14-Apr-15,Office Equip. & Mats. Purchase,Print Management Project,CANON (UK) LTD,2010652,27525.06
Department of Health,BSUH NHS Trust,01-Apr-15,Legal Fees,Soft FM Retender,CAPSTICKS SOLICITORS,253120,28503
Department of Health,BSUH NHS Trust,01-Apr-15,VAT Debtor < one year,B/S Financial Control,CAPSTICKS SOLICITORS,253120,5700.6
Department of Health,BSUH NHS Trust,28-Apr-15,Other Transport Costs,Procurement & Supplies Dept (Trust),CITY SPRINT (UK) LTD,1282097,35138.15
Department of Health,BSUH NHS Trust,28-Apr-15,VAT Debtor < one year,B/S Financial Control,CITY SPRINT (UK) LTD,1282097,7027.63
Department of Health,BSUH NHS Trust,01-Apr-15,Gas,Gas (Trust) - Closed use 0032036,CORONA ENERGY RETAIL 4 LIMITED,9973534,9075.57
Department of Health,BSUH NHS Trust,01-Apr-15,Gas,Gas (Trust) - Closed use 0032036,CORONA ENERGY RETAIL 4 LIMITED,9973534,45377.87
Department of Health,BSUH NHS Trust,20-Apr-15,Gas,Gas (Trust) - Closed use 0032036,CORONA ENERGY RETAIL 4 LIMITED,10036738,47726.94
Department of Health,BSUH NHS Trust,20-Apr-15,Gas,Gas (Trust) - Closed use 0032036,CORONA ENERGY RETAIL 4 LIMITED,10036738,9545.39
Department of Health,BSUH NHS Trust,20-Apr-15,Gas,Gas (Trust) - Closed use 0032036,CORONA ENERGY RETAIL 4 LIMITED,10036749,8187.83
Department of Health,BSUH NHS Trust,20-Apr-15,Gas,Gas (Trust) - Closed use 0032036,CORONA ENERGY RETAIL 4 LIMITED,10036749,40939.14
Department of Health,BSUH NHS Trust,09-Apr-15,Drugs,Drugs Trading Account,CSL BEHRING LTD,991196590,55800
Department of Health,BSUH NHS Trust,09-Apr-15,Drugs,Drugs Trading Account,CSL BEHRING LTD,991197190,34317
Department of Health,BSUH NHS Trust,09-Apr-15,Drugs,Drugs Trading Account,CSL BEHRING LTD,991198142,44640
Department of Health,BSUH NHS Trust,21-Apr-15,VAT Debtor < one year,B/S Financial Control,DIAVERUM UK LIMITED,151160,5988.74
Department of Health,BSUH NHS Trust,21-Apr-15,Dialysis Fluids,Crawley Satellite Unit,DIAVERUM UK LIMITED,151160,29943.7
Department of Health,BSUH NHS Trust,22-Apr-15,Independent Sector,Eastbourne Satellite Unit,DIAVERUM UK LIMITED,151170,54202.5
Department of Health,BSUH NHS Trust,22-Apr-15,VAT Debtor < one year,B/S Financial Control,DIAVERUM UK LIMITED,151170,10840.5
Department of Health,BSUH NHS Trust,21-Apr-15,Dialysis Fluids,Eastbourne Satellite Unit,DIAVERUM UK LIMITED,152267,27265.5
Department of Health,BSUH NHS Trust,09-Apr-15,Laboratory External Tests,Cytopathology,EAST SUSSEX HOSPITALS NHS TRUST,84160,32384
Department of Health,BSUH NHS Trust,09-Apr-15,Laboratory External Tests,Cytopathology,EAST SUSSEX HOSPITALS NHS TRUST,84162,34540
Department of Health,BSUH NHS Trust,07-Apr-15,Non - Healthcare - NHS Trusts,"Bowel Screening (RSCH,OP,0 Beds)",EAST SUSSEX HOSPITALS NHS TRUST,84256,27633.62
Department of Health,BSUH NHS Trust,09-Apr-15,Other debtors < one year,B/S Financial Control,EDENRED,IN104187055,43584.55
Department of Health,BSUH NHS Trust,09-Apr-15,Other debtors < one year,B/S Financial Control,EDENRED,IN104187055,87.17
Department of Health,BSUH NHS Trust,09-Apr-15,Other debtors < one year,B/S Financial Control,EDENRED,IN104187055,435.85
Department of Health,BSUH NHS Trust,17-Apr-15,Electricity,Electricity (Trust) - Closed use 0032036,EDF ENERGY LTD,0067210000/000000211401,20379.92
Department of Health,BSUH NHS Trust,17-Apr-15,Electricity,Electricity (Trust) - Closed use 0032036,EDF ENERGY LTD,0067210000/000000211401,0.01
Department of Health,BSUH NHS Trust,17-Apr-15,Electricity,Electricity (Trust) - Closed use 0032036,EDF ENERGY LTD,0067210000/000000211401,101899.6
Department of Health,BSUH NHS Trust,17-Apr-15,Electricity,Electricity (Trust) - Closed use 0032036,EDF ENERGY LTD,0067210000/000000211401,251.04
Department of Health,BSUH NHS Trust,15-Apr-15,Computer Hardware Purchases,Oncology Radiographers,ELEKTA LTD,210600644,30000
Department of Health,BSUH NHS Trust,15-Apr-15,Computer Hardware Purchases,Oncology Radiographers,ELEKTA LTD,210600644,25000
Department of Health,BSUH NHS Trust,15-Apr-15,Computer Hardware Purchases,Oncology Radiographers,ELEKTA LTD,210600644,-25000
Department of Health,BSUH NHS Trust,15-Apr-15,Computer Hardware Purchases,Oncology Radiographers,ELEKTA LTD,210600644,6000
Department of Health,BSUH NHS Trust,15-Apr-15,Computer Hardware Purchases,Oncology Radiographers,ELEKTA LTD,210600644,-30000
Department of Health,BSUH NHS Trust,15-Apr-15,Computer Hardware Purchases,Oncology Radiographers,ELEKTA LTD,210600644,30000
Department of Health,BSUH NHS Trust,02-Apr-15,Prof Fees (excluding Legal Fees),3T's Project,ERNST & YOUNG LLP,GB10700028227,20900
Department of Health,BSUH NHS Trust,02-Apr-15,Prof Fees (excluding Legal Fees),3T's Project,ERNST & YOUNG LLP,GB10700028227,-20900
Department of Health,BSUH NHS Trust,02-Apr-15,Prof Fees (excluding Legal Fees),3T's Project,ERNST & YOUNG LLP,GB10700028227,20900
Department of Health,BSUH NHS Trust,02-Apr-15,Prof Fees (excluding Legal Fees),3T's Project,ERNST & YOUNG LLP,GB10700028227,-4180
Department of Health,BSUH NHS Trust,02-Apr-15,VAT Debtor < one year,B/S Financial Control,ERNST & YOUNG LLP,GB10700028227,4180
Department of Health,BSUH NHS Trust,02-Apr-15,Prof Fees (excluding Legal Fees),3T's Project,ERNST & YOUNG LLP,GB10700028227,4180
Department of Health,BSUH NHS Trust,02-Apr-15,Additions - AUC PM,B/S Musculoskeletal,ESCHMANN HOLDINGS LTD,126667,15563.4
Department of Health,BSUH NHS Trust,02-Apr-15,Additions - AUC PM,B/S Musculoskeletal,ESCHMANN HOLDINGS LTD,126667,8800
Department of Health,BSUH NHS Trust,02-Apr-15,Additions - AUC PM,B/S Musculoskeletal,ESCHMANN HOLDINGS LTD,126667,636.6
Department of Health,BSUH NHS Trust,02-Apr-15,Additions - AUC PM,B/S Musculoskeletal,ESCHMANN HOLDINGS LTD,126667,3183
Department of Health,BSUH NHS Trust,02-Apr-15,Additions - AUC PM,B/S Musculoskeletal,ESCHMANN HOLDINGS LTD,126667,77817
Department of Health,BSUH NHS Trust,02-Apr-15,Additions - AUC PM,B/S Musculoskeletal,ESCHMANN HOLDINGS LTD,126667,44000
Department of Health,BSUH NHS Trust,09-Apr-15,Dialysis Fluids,"Haemodialysis (RSCH,IW,41 Beds)",FRESENIUS MEDICAL CARE (UK) LTD,1050284455,5477.6
Department of Health,BSUH NHS Trust,09-Apr-15,Dialysis Fluids,"Haemodialysis (RSCH,IW,41 Beds)",FRESENIUS MEDICAL CARE (UK) LTD,1050284455,27388
Department of Health,BSUH NHS Trust,21-Apr-15,Dialysis Fluids,"Haemodialysis (RSCH,IW,41 Beds)",FRESENIUS MEDICAL CARE (UK) LTD,1050296841,34537
Department of Health,BSUH NHS Trust,21-Apr-15,Dialysis Fluids,"Haemodialysis (RSCH,IW,41 Beds)",FRESENIUS MEDICAL CARE (UK) LTD,1050296841,6907.4
Department of Health,BSUH NHS Trust,01-Apr-15,Additions - AUC PM,B/S Specialised Services Division,FULBOURN MEDICAL (GK WOOD & SON LTD),13681,18238.48
Department of Health,BSUH NHS Trust,01-Apr-15,Additions - AUC PM,B/S Specialised Services Division,FULBOURN MEDICAL (GK WOOD & SON LTD),13681,750
Department of Health,BSUH NHS Trust,01-Apr-15,Additions - AUC PM,B/S Specialised Services Division,FULBOURN MEDICAL (GK WOOD & SON LTD),13681,6275
Department of Health,BSUH NHS Trust,01-Apr-15,Additions - AUC PM,B/S Specialised Services Division,FULBOURN MEDICAL (GK WOOD & SON LTD),13681,350
Department of Health,BSUH NHS Trust,01-Apr-15,Additions - AUC PM,B/S Specialised Services Division,FULBOURN MEDICAL (GK WOOD & SON LTD),13681,1255
Department of Health,BSUH NHS Trust,01-Apr-15,Additions - AUC PM,B/S Specialised Services Division,FULBOURN MEDICAL (GK WOOD & SON LTD),13681,1750
Department of Health,BSUH NHS Trust,01-Apr-15,Additions - AUC PM,B/S Specialised Services Division,FULBOURN MEDICAL (GK WOOD & SON LTD),13681,3647.7
Department of Health,BSUH NHS Trust,01-Apr-15,Additions - AUC PM,B/S Specialised Services Division,FULBOURN MEDICAL (GK WOOD & SON LTD),13681,150
Department of Health,BSUH NHS Trust,15-Apr-15,Additions - AUC PM,B/S Facilities & Cap Dev Team,GE Medical Systems Ltd,331001,785.38
Department of Health,BSUH NHS Trust,15-Apr-15,Additions - AUC PM,B/S Facilities & Cap Dev Team,GE Medical Systems Ltd,331001,349.92
Department of Health,BSUH NHS Trust,15-Apr-15,Additions - AUC PM,B/S Facilities & Cap Dev Team,GE Medical Systems Ltd,331001,3926.88
Department of Health,BSUH NHS Trust,15-Apr-15,Additions - AUC PM,B/S Facilities & Cap Dev Team,GE Medical Systems Ltd,331001,5430.24
Department of Health,BSUH NHS Trust,15-Apr-15,Additions - AUC PM,B/S Facilities & Cap Dev Team,GE Medical Systems Ltd,331001,27151.2
Department of Health,BSUH NHS Trust,15-Apr-15,Additions - AUC PM,B/S Facilities & Cap Dev Team,GE Medical Systems Ltd,331001,69.98
Department of Health,BSUH NHS Trust,21-Apr-15,"Additions - AUC IT
",B/S Corporate IT,GE Medical Systems Ltd,332149,22028.88
Department of Health,BSUH NHS Trust,21-Apr-15,"Additions - AUC IT
",B/S Corporate IT,GE Medical Systems Ltd,332149,4405.78
Department of Health,BSUH NHS Trust,08-Apr-15,Drugs,Drugs Trading Account,GENZYME THERAPEUTICS,9103004233,42270
Department of Health,BSUH NHS Trust,14-Apr-15,Drugs,Drugs Trading Account,GENZYME THERAPEUTICS,9103004274,42270
Department of Health,BSUH NHS Trust,17-Apr-15,Patient Activity - Drugs PBR Exclusions Home,"Digestive Diseases Pact (RSCH,TH,0 Beds)",HEALTHCARE AT HOME LTD,OP/4661053,50003.88
Department of Health,BSUH NHS Trust,13-Apr-15,Patient Activity - Drugs PBR Exclusions Home,Rheumatology Homecare PbR Excluded Drugs,HEALTHCARE AT HOME LTD,OP/4720132,45760
Department of Health,BSUH NHS Trust,13-Apr-15,Patient Activity - Drugs PBR Exclusions Home,Rheumatology Homecare PbR Excluded Drugs,HEALTHCARE AT HOME LTD,OP/4720136,31692.6
Department of Health,BSUH NHS Trust,13-Apr-15,Patient Activity - Drugs PBR Exclusions Home,Rheumatology Homecare PbR Excluded Drugs,HEALTHCARE AT HOME LTD,OP/4720184,29579.76
Department of Health,BSUH NHS Trust,23-Apr-15,Patient Activity - Drugs PBR Exclusions Home,Rheumatology Homecare PbR Excluded Drugs,HEALTHCARE AT HOME LTD,OP/4739911,37537.5
Department of Health,BSUH NHS Trust,23-Apr-15,Patient Activity - Drugs PBR Exclusions Home,Rheumatology Homecare PbR Excluded Drugs,HEALTHCARE AT HOME LTD,OP/4739931,28171.2
Department of Health,BSUH NHS Trust,20-Apr-15,Patient Activity - Drugs PBR Exclusions Home,Rheumatology Homecare PbR Excluded Drugs,HEALTHCARE AT HOME LTD,OP/4739944,30988.32
Department of Health,BSUH NHS Trust,24-Apr-15,Patient Activity - Drugs PBR Exclusions Home,Rheumatology Homecare PbR Excluded Drugs,HEALTHCARE AT HOME LTD,OP/4753854,36465
Department of Health,BSUH NHS Trust,24-Apr-15,Patient Activity - Drugs PBR Exclusions Home,Rheumatology Homecare PbR Excluded Drugs,HEALTHCARE AT HOME LTD,OP/4753914,29931.9
Department of Health,BSUH NHS Trust,22-Apr-15,"Additions - AUC IT
",B/S Corporate IT,HP INC (HEWLETT PACKARD),8266711,58005.14
Department of Health,BSUH NHS Trust,22-Apr-15,"Additions - AUC IT
",B/S Corporate IT,HP INC (HEWLETT PACKARD),8266711,11601.03
Department of Health,BSUH NHS Trust,23-Apr-15,"Additions - AUC IT
",B/S Corporate IT,HP INC (HEWLETT PACKARD),8268189,5232
Department of Health,BSUH NHS Trust,23-Apr-15,"Additions - AUC IT
",B/S Corporate IT,HP INC (HEWLETT PACKARD),8268189,26160
Department of Health,BSUH NHS Trust,29-Apr-15,Commercial Sector,MRI / External Scans,INHEALTH LIMITED,SD51462SUS,86063.75
Department of Health,BSUH NHS Trust,29-Apr-15,VAT Debtor < one year,B/S Financial Control,INHEALTH LIMITED,SD51462SUS,17212.75
Department of Health,BSUH NHS Trust,17-Apr-15,Drugs,Drugs Trading Account,ITH PHARMA,139417,29050.98
Department of Health,BSUH NHS Trust,22-Apr-15,Contract : Other External,Unitary Payment (New Alex),KAJIMA,CAPL-15-07,455738.68
Department of Health,BSUH NHS Trust,22-Apr-15,VAT Debtor < one year,B/S Financial Control,KAJIMA,CAPL-15-07,91147.74
Department of Health,BSUH NHS Trust,16-Apr-15,Additions - AUC B,B/S Facilities & Cap Dev Team,LAING O'ROURKE CONSTRUCTION SOUTH LTD,5008181,159184.01
Department of Health,BSUH NHS Trust,16-Apr-15,Additions - AUC B,B/S Facilities & Cap Dev Team,LAING O'ROURKE CONSTRUCTION SOUTH LTD,5008181,795920.04
Department of Health,BSUH NHS Trust,24-Apr-15,Contract : Other External,3T's Project,LAING O'ROURKE CONSTRUCTION SOUTH LTD,5008297,997510.21
Department of Health,BSUH NHS Trust,24-Apr-15,Contract : Other External,3T's Project,LAING O'ROURKE CONSTRUCTION SOUTH LTD,5008297,199502.04
Department of Health,BSUH NHS Trust,02-Apr-15,Additions - AUC B,B/S Neurosciences Division,LOGAN CONSTRUCTION (SOUTH EAST) LTD,IL 3377,68801.22
Department of Health,BSUH NHS Trust,02-Apr-15,Additions - AUC B,B/S Neurosciences Division,LOGAN CONSTRUCTION (SOUTH EAST) LTD,IL 3377,13760.24
Department of Health,BSUH NHS Trust,09-Apr-15,Pacemakers,Cardiac PbR Exclusions,MEDTRONIC LTD,1051210911,1950
Department of Health,BSUH NHS Trust,09-Apr-15,Pacemakers,Cardiac PbR Exclusions,MEDTRONIC LTD,1051210911,14000
Department of Health,BSUH NHS Trust,09-Apr-15,Pacemakers,Cardiac PbR Exclusions,MEDTRONIC LTD,1051210911,9750
Department of Health,BSUH NHS Trust,09-Apr-15,Pacemakers,Cardiac PbR Exclusions,MEDTRONIC LTD,1051210911,2800
Department of Health,BSUH NHS Trust,10-Apr-15,Patient Activity - Appliances PBR Exclusions,Cardiac PbR Exclusions,MEDTRONIC LTD,1051211557,28500
Department of Health,BSUH NHS Trust,10-Apr-15,Patient Activity - Appliances PBR Exclusions,Cardiac PbR Exclusions,MEDTRONIC LTD,1051211557,5700
Department of Health,BSUH NHS Trust,23-Apr-15,Pacemakers,Cardiac Dept RSCH (Non-Invasive),MEDTRONIC LTD,1051217955,15940
Department of Health,BSUH NHS Trust,23-Apr-15,Pacemakers,Cardiac Dept RSCH (Non-Invasive),MEDTRONIC LTD,1051217955,5950
Department of Health,BSUH NHS Trust,23-Apr-15,Pacemakers,Cardiac Dept RSCH (Non-Invasive),MEDTRONIC LTD,1051217955,3188
Department of Health,BSUH NHS Trust,23-Apr-15,Pacemakers,Cardiac Dept RSCH (Non-Invasive),MEDTRONIC LTD,1051217955,1190
Department of Health,BSUH NHS Trust,21-Apr-15,Rates,Rates (Trust),MID SUSSEX DISTRICT COUNCIL,6838863X 01/04/15-01/04/16,744430
Department of Health,BSUH NHS Trust,16-Apr-15,CNST contributions,Litigation And Insurance Premium,NHS LITIGATION AUTHORITY-CNST,DD 14/4/2015,1660962.6
Department of Health,BSUH NHS Trust,27-Apr-15,Dressings,Hurstwood Park Plumpton Ward - 14 bedded additional capacity ward,NHS LOGISTICS AUTHORITY,1015238594,4.93
Department of Health,BSUH NHS Trust,27-Apr-15,Cleaning Materials,Hurstwood Park Plumpton Ward - 14 bedded additional capacity ward,NHS LOGISTICS AUTHORITY,1015238594,2.58
Department of Health,BSUH NHS Trust,27-Apr-15,Cleaning Materials,Hurstwood Park Plumpton Ward - 14 bedded additional capacity ward,NHS LOGISTICS AUTHORITY,1015238594,0.97
Department of Health,BSUH NHS Trust,27-Apr-15,Cleaning Materials,Hurstwood Park Plumpton Ward - 14 bedded additional capacity ward,NHS LOGISTICS AUTHORITY,1015238594,0.37
Department of Health,BSUH NHS Trust,27-Apr-15,Cleaning Materials,Hurstwood Park Plumpton Ward - 14 bedded additional capacity ward,NHS LOGISTICS AUTHORITY,1015238594,4.86
Department of Health,BSUH NHS Trust,27-Apr-15,Cleaning Materials,Hurstwood Park Plumpton Ward - 14 bedded additional capacity ward,NHS LOGISTICS AUTHORITY,1015238594,1.85
Department of Health,BSUH NHS Trust,27-Apr-15,Cleaning Materials,Hurstwood Park Plumpton Ward - 14 bedded additional capacity ward,NHS LOGISTICS AUTHORITY,1015238594,12.9
Department of Health,BSUH NHS Trust,27-Apr-15,Hardware & Crockery,Hurstwood Park Plumpton Ward - 14 bedded additional capacity ward,NHS LOGISTICS AUTHORITY,1015238594,0.71
Department of Health,BSUH NHS Trust,27-Apr-15,Hardware & Crockery,Hurstwood Park Plumpton Ward - 14 bedded additional capacity ward,NHS LOGISTICS AUTHORITY,1015238594,3.55
Department of Health,BSUH NHS Trust,27-Apr-15,Bedding & Linen : Disposable,Hurstwood Park Plumpton Ward - 14 bedded additional capacity ward,NHS LOGISTICS AUTHORITY,1015238594,0.71
Department of Health,BSUH NHS Trust,27-Apr-15,Bedding & Linen : Disposable,Hurstwood Park Plumpton Ward - 14 bedded additional capacity ward,NHS LOGISTICS AUTHORITY,1015238594,3.57
Department of Health,BSUH NHS Trust,27-Apr-15,Bedding & Linen : Disposable,Hurstwood Park Plumpton Ward - 14 bedded additional capacity ward,NHS LOGISTICS AUTHORITY,1015238594,17.87
Department of Health,BSUH NHS Trust,27-Apr-15,Bedding & Linen : Disposable,Hurstwood Park Plumpton Ward - 14 bedded additional capacity ward,NHS LOGISTICS AUTHORITY,1015238594,3.53
Department of Health,BSUH NHS Trust,27-Apr-15,M&S Equipment : General,Hurstwood Park Plumpton Ward - 14 bedded additional capacity ward,NHS LOGISTICS AUTHORITY,1015238594,0.25
Department of Health,BSUH NHS Trust,27-Apr-15,M&S Equipment : General,Hurstwood Park Plumpton Ward - 14 bedded additional capacity ward,NHS LOGISTICS AUTHORITY,1015238594,4.55
Department of Health,BSUH NHS Trust,27-Apr-15,M&S Equipment : General,Hurstwood Park Plumpton Ward - 14 bedded additional capacity ward,NHS LOGISTICS AUTHORITY,1015238594,3.25
Department of Health,BSUH NHS Trust,27-Apr-15,M&S Equipment : General,Hurstwood Park Plumpton Ward - 14 bedded additional capacity ward,NHS LOGISTICS AUTHORITY,1015238594,2.79
Department of Health,BSUH NHS Trust,27-Apr-15,M&S Equipment : General,Hurstwood Park Plumpton Ward - 14 bedded additional capacity ward,NHS LOGISTICS AUTHORITY,1015238594,0.64
Department of Health,BSUH NHS Trust,27-Apr-15,M&S Equipment : General,Hurstwood Park Plumpton Ward - 14 bedded additional capacity ward,NHS LOGISTICS AUTHORITY,1015238594,1.18
Department of Health,BSUH NHS Trust,27-Apr-15,M&S Equipment : General,Hurstwood Park Plumpton Ward - 14 bedded additional capacity ward,NHS LOGISTICS AUTHORITY,1015238594,0.64
Department of Health,BSUH NHS Trust,27-Apr-15,M&S Equipment : General,Hurstwood Park Plumpton Ward - 14 bedded additional capacity ward,NHS LOGISTICS AUTHORITY,1015238594,2.4
Department of Health,BSUH NHS Trust,27-Apr-15,M&S Equipment : General,Hurstwood Park Plumpton Ward - 14 bedded additional capacity ward,NHS LOGISTICS AUTHORITY,1015238594,4.25
Department of Health,BSUH NHS Trust,27-Apr-15,M&S Equipment : General,Hurstwood Park Plumpton Ward - 14 bedded additional capacity ward,NHS LOGISTICS AUTHORITY,1015238594,4.63
Department of Health,BSUH NHS Trust,27-Apr-15,M&S Equipment : General,Hurstwood Park Plumpton Ward - 14 bedded additional capacity ward,NHS LOGISTICS AUTHORITY,1015238594,4.63
Department of Health,BSUH NHS Trust,27-Apr-15,M&S Equipment : General,Hurstwood Park Plumpton Ward - 14 bedded additional capacity ward,NHS LOGISTICS AUTHORITY,1015238594,4.63
Department of Health,BSUH NHS Trust,27-Apr-15,M&S Equipment : General,Hurstwood Park Plumpton Ward - 14 bedded additional capacity ward,NHS LOGISTICS AUTHORITY,1015238594,2.33
Department of Health,BSUH NHS Trust,27-Apr-15,M&S Equipment : General,Hurstwood Park Plumpton Ward - 14 bedded additional capacity ward,NHS LOGISTICS AUTHORITY,1015238594,13.95
Department of Health,BSUH NHS Trust,27-Apr-15,M&S Equipment : General,Hurstwood Park Plumpton Ward - 14 bedded additional capacity ward,NHS LOGISTICS AUTHORITY,1015238594,3.2
Department of Health,BSUH NHS Trust,27-Apr-15,M&S Equipment : General,Hurstwood Park Plumpton Ward - 14 bedded additional capacity ward,NHS LOGISTICS AUTHORITY,1015238594,1.25
Department of Health,BSUH NHS Trust,27-Apr-15,M&S Equipment : General,Hurstwood Park Plumpton Ward - 14 bedded additional capacity ward,NHS LOGISTICS AUTHORITY,1015238594,16.24
Department of Health,BSUH NHS Trust,27-Apr-15,M&S Equipment : General,Hurstwood Park Plumpton Ward - 14 bedded additional capacity ward,NHS LOGISTICS AUTHORITY,1015238594,22.73
Department of Health,BSUH NHS Trust,27-Apr-15,M&S Equipment : General,Hurstwood Park Plumpton Ward - 14 bedded additional capacity ward,NHS LOGISTICS AUTHORITY,1015238594,11.98
Department of Health,BSUH NHS Trust,27-Apr-15,M&S Equipment : General,Hurstwood Park Plumpton Ward - 14 bedded additional capacity ward,NHS LOGISTICS AUTHORITY,1015238594,23.13
Department of Health,BSUH NHS Trust,27-Apr-15,M&S Equipment : General,Hurstwood Park Plumpton Ward - 14 bedded additional capacity ward,NHS LOGISTICS AUTHORITY,1015238594,23.13
Department of Health,BSUH NHS Trust,27-Apr-15,M&S Equipment : General,Hurstwood Park Plumpton Ward - 14 bedded additional capacity ward,NHS LOGISTICS AUTHORITY,1015238594,23.13
Department of Health,BSUH NHS Trust,27-Apr-15,M&S Equipment : General,Hurstwood Park Plumpton Ward - 14 bedded additional capacity ward,NHS LOGISTICS AUTHORITY,1015238594,11.67
Department of Health,BSUH NHS Trust,27-Apr-15,M&S Equipment : General,Hurstwood Park Plumpton Ward - 14 bedded additional capacity ward,NHS LOGISTICS AUTHORITY,1015238594,21.25
Department of Health,BSUH NHS Trust,27-Apr-15,M&S Equipment : General,Hurstwood Park Plumpton Ward - 14 bedded additional capacity ward,NHS LOGISTICS AUTHORITY,1015238594,3.2
Department of Health,BSUH NHS Trust,27-Apr-15,M&S Equipment : General,Hurstwood Park Plumpton Ward - 14 bedded additional capacity ward,NHS LOGISTICS AUTHORITY,1015238594,5.9
Department of Health,BSUH NHS Trust,27-Apr-15,Dressings,Imaging - Interventional Radiology,NHS LOGISTICS AUTHORITY,1015238594,0.91
Department of Health,BSUH NHS Trust,27-Apr-15,Dressings,Imaging - Interventional Radiology,NHS LOGISTICS AUTHORITY,1015238594,0.09
Department of Health,BSUH NHS Trust,27-Apr-15,Dressings,Imaging - Interventional Radiology,NHS LOGISTICS AUTHORITY,1015238594,0.45
Department of Health,BSUH NHS Trust,27-Apr-15,Dressings,Imaging - Interventional Radiology,NHS LOGISTICS AUTHORITY,1015238594,0.96
Department of Health,BSUH NHS Trust,27-Apr-15,Dressings,Imaging - Interventional Radiology,NHS LOGISTICS AUTHORITY,1015238594,4.57
Department of Health,BSUH NHS Trust,27-Apr-15,Cleaning Materials,Imaging - Interventional Radiology,NHS LOGISTICS AUTHORITY,1015238594,0.8
Department of Health,BSUH NHS Trust,27-Apr-15,Cleaning Materials,Imaging - Interventional Radiology,NHS LOGISTICS AUTHORITY,1015238594,1.88
Department of Health,BSUH NHS Trust,27-Apr-15,Cleaning Materials,Imaging - Interventional Radiology,NHS LOGISTICS AUTHORITY,1015238594,4.16
Department of Health,BSUH NHS Trust,27-Apr-15,Cleaning Materials,Imaging - Interventional Radiology,NHS LOGISTICS AUTHORITY,1015238594,1.57
Department of Health,BSUH NHS Trust,27-Apr-15,Cleaning Materials,Imaging - Interventional Radiology,NHS LOGISTICS AUTHORITY,1015238594,0.24
Department of Health,BSUH NHS Trust,27-Apr-15,Cleaning Materials,Imaging - Interventional Radiology,NHS LOGISTICS AUTHORITY,1015238594,1.2
Department of Health,BSUH NHS Trust,27-Apr-15,Cleaning Materials,Imaging - Interventional Radiology,NHS LOGISTICS AUTHORITY,1015238594,7.83
Department of Health,BSUH NHS Trust,27-Apr-15,Cleaning Materials,Imaging - Interventional Radiology,NHS LOGISTICS AUTHORITY,1015238594,4
Department of Health,BSUH NHS Trust,27-Apr-15,Cleaning Materials,Imaging - Interventional Radiology,NHS LOGISTICS AUTHORITY,1015238594,20.8
Department of Health,BSUH NHS Trust,27-Apr-15,Cleaning Materials,Imaging - Interventional Radiology,NHS LOGISTICS AUTHORITY,1015238594,9.42
Department of Health,BSUH NHS Trust,27-Apr-15,Hardware & Crockery,Imaging - Interventional Radiology,NHS LOGISTICS AUTHORITY,1015238594,2.4
Department of Health,BSUH NHS Trust,27-Apr-15,Hardware & Crockery,Imaging - Interventional Radiology,NHS LOGISTICS AUTHORITY,1015238594,12
Department of Health,BSUH NHS Trust,27-Apr-15,Bedding & Linen : Disposable,Imaging - Interventional Radiology,NHS LOGISTICS AUTHORITY,1015238594,5.25
Department of Health,BSUH NHS Trust,27-Apr-15,Bedding & Linen : Disposable,Imaging - Interventional Radiology,NHS LOGISTICS AUTHORITY,1015238594,26.27
Department of Health,BSUH NHS Trust,27-Apr-15,Cleaning Materials,"Lawson Unit (RSCH,OP,0 Beds)",NHS LOGISTICS AUTHORITY,1015238594,8.05
Department of Health,BSUH NHS Trust,27-Apr-15,Cleaning Materials,"Lawson Unit (RSCH,OP,0 Beds)",NHS LOGISTICS AUTHORITY,1015238594,31.93
Department of Health,BSUH NHS Trust,27-Apr-15,Cleaning Materials,"Lawson Unit (RSCH,OP,0 Beds)",NHS LOGISTICS AUTHORITY,1015238594,8.32
Department of Health,BSUH NHS Trust,27-Apr-15,Surgical Instruments : General,"Pyecombe Ward (27 beds) (PRH,IW,27 Beds)",NHS LOGISTICS AUTHORITY,1015238594,0.64
Department of Health,BSUH NHS Trust,27-Apr-15,Surgical Instruments : General,"Pyecombe Ward (27 beds) (PRH,IW,27 Beds)",NHS LOGISTICS AUTHORITY,1015238594,3.2
Department of Health,BSUH NHS Trust,27-Apr-15,Lab. Bottles & Containers,"Pyecombe Ward (27 beds) (PRH,IW,27 Beds)",NHS LOGISTICS AUTHORITY,1015238594,0.79
Department of Health,BSUH NHS Trust,27-Apr-15,Lab. Bottles & Containers,"Pyecombe Ward (27 beds) (PRH,IW,27 Beds)",NHS LOGISTICS AUTHORITY,1015238594,3.95
Department of Health,BSUH NHS Trust,27-Apr-15,Bedding & Linen : Disposable,Speech & Language Therapy,NHS LOGISTICS AUTHORITY,1015238594,0.45
Department of Health,BSUH NHS Trust,27-Apr-15,Bedding & Linen : Disposable,Speech & Language Therapy,NHS LOGISTICS AUTHORITY,1015238594,2.26
Department of Health,BSUH NHS Trust,27-Apr-15,Laboratory Chemicals,Imaging - Interventional Radiology,NHS LOGISTICS AUTHORITY,1015238594,5.77
Department of Health,BSUH NHS Trust,27-Apr-15,Laboratory Chemicals,Imaging - Interventional Radiology,NHS LOGISTICS AUTHORITY,1015238594,28.83
Department of Health,BSUH NHS Trust,27-Apr-15,Laboratory Equipment,SAU,NHS LOGISTICS AUTHORITY,1015238594,4.71
Department of Health,BSUH NHS Trust,27-Apr-15,Laboratory Equipment,SAU,NHS LOGISTICS AUTHORITY,1015238594,2.61
Department of Health,BSUH NHS Trust,27-Apr-15,Laboratory Equipment,SAU,NHS LOGISTICS AUTHORITY,1015238594,23.55
Department of Health,BSUH NHS Trust,27-Apr-15,Laboratory Equipment,SAU,NHS LOGISTICS AUTHORITY,1015238594,13.03
Department of Health,BSUH NHS Trust,27-Apr-15,Bedding & Linen : Disposable,SAU,NHS LOGISTICS AUTHORITY,1015238594,0.33
Department of Health,BSUH NHS Trust,27-Apr-15,Bedding & Linen : Disposable,SAU,NHS LOGISTICS AUTHORITY,1015238594,0.7
Department of Health,BSUH NHS Trust,27-Apr-15,Bedding & Linen : Disposable,SAU,NHS LOGISTICS AUTHORITY,1015238594,3.5
Department of Health,BSUH NHS Trust,27-Apr-15,Bedding & Linen : Disposable,SAU,NHS LOGISTICS AUTHORITY,1015238594,1.63
Department of Health,BSUH NHS Trust,27-Apr-15,Patients Appliances : Purchase,Hurstwood Park Plumpton Ward - 14 bedded additional capacity ward,NHS LOGISTICS AUTHORITY,1015238594,0.67
Department of Health,BSUH NHS Trust,27-Apr-15,Patients Appliances : Purchase,Hurstwood Park Plumpton Ward - 14 bedded additional capacity ward,NHS LOGISTICS AUTHORITY,1015238594,1.47
Department of Health,BSUH NHS Trust,27-Apr-15,Patients Appliances : Purchase,Hurstwood Park Plumpton Ward - 14 bedded additional capacity ward,NHS LOGISTICS AUTHORITY,1015238594,0.67
Department of Health,BSUH NHS Trust,27-Apr-15,Patients Appliances : Purchase,Hurstwood Park Plumpton Ward - 14 bedded additional capacity ward,NHS LOGISTICS AUTHORITY,1015238594,7.33
Department of Health,BSUH NHS Trust,27-Apr-15,Patients Appliances : Purchase,Hurstwood Park Plumpton Ward - 14 bedded additional capacity ward,NHS LOGISTICS AUTHORITY,1015238594,3.35
Department of Health,BSUH NHS Trust,27-Apr-15,Patients Appliances : Purchase,Hurstwood Park Plumpton Ward - 14 bedded additional capacity ward,NHS LOGISTICS AUTHORITY,1015238594,3.35
Department of Health,BSUH NHS Trust,27-Apr-15,Patients Clothing,Hurstwood Park Plumpton Ward - 14 bedded additional capacity ward,NHS LOGISTICS AUTHORITY,1015238594,6.54
Department of Health,BSUH NHS Trust,27-Apr-15,Patients Clothing,Hurstwood Park Plumpton Ward - 14 bedded additional capacity ward,NHS LOGISTICS AUTHORITY,1015238594,1.45
Department of Health,BSUH NHS Trust,27-Apr-15,Patients Clothing,Hurstwood Park Plumpton Ward - 14 bedded additional capacity ward,NHS LOGISTICS AUTHORITY,1015238594,7.27
Department of Health,BSUH NHS Trust,27-Apr-15,Patients Clothing,Hurstwood Park Plumpton Ward - 14 bedded additional capacity ward,NHS LOGISTICS AUTHORITY,1015238594,24.25
Department of Health,BSUH NHS Trust,27-Apr-15,Patients Clothing,Hurstwood Park Plumpton Ward - 14 bedded additional capacity ward,NHS LOGISTICS AUTHORITY,1015238594,8.43
Department of Health,BSUH NHS Trust,27-Apr-15,Dressings,Hurstwood Park Plumpton Ward - 14 bedded additional capacity ward,NHS LOGISTICS AUTHORITY,1015238594,0.77
Department of Health,BSUH NHS Trust,27-Apr-15,Dressings,Hurstwood Park Plumpton Ward - 14 bedded additional capacity ward,NHS LOGISTICS AUTHORITY,1015238594,4.92
Department of Health,BSUH NHS Trust,27-Apr-15,Dressings,Hurstwood Park Plumpton Ward - 14 bedded additional capacity ward,NHS LOGISTICS AUTHORITY,1015238594,0.99
Department of Health,BSUH NHS Trust,27-Apr-15,Dressings,Hurstwood Park Plumpton Ward - 14 bedded additional capacity ward,NHS LOGISTICS AUTHORITY,1015238594,4.7
Department of Health,BSUH NHS Trust,27-Apr-15,Dressings,Hurstwood Park Plumpton Ward - 14 bedded additional capacity ward,NHS LOGISTICS AUTHORITY,1015238594,0.75
Department of Health,BSUH NHS Trust,27-Apr-15,Dressings,Hurstwood Park Plumpton Ward - 14 bedded additional capacity ward,NHS LOGISTICS AUTHORITY,1015238594,3.62
Department of Health,BSUH NHS Trust,27-Apr-15,Dressings,Hurstwood Park Plumpton Ward - 14 bedded additional capacity ward,NHS LOGISTICS AUTHORITY,1015238594,2.81
Department of Health,BSUH NHS Trust,27-Apr-15,Dressings,Hurstwood Park Plumpton Ward - 14 bedded additional capacity ward,NHS LOGISTICS AUTHORITY,1015238594,2.64
Department of Health,BSUH NHS Trust,27-Apr-15,Dressings,Hurstwood Park Plumpton Ward - 14 bedded additional capacity ward,NHS LOGISTICS AUTHORITY,1015238594,13.2
Department of Health,BSUH NHS Trust,27-Apr-15,Dressings,Hurstwood Park Plumpton Ward - 14 bedded additional capacity ward,NHS LOGISTICS AUTHORITY,1015238594,3.83
Department of Health,BSUH NHS Trust,27-Apr-15,Dressings,Hurstwood Park Plumpton Ward - 14 bedded additional capacity ward,NHS LOGISTICS AUTHORITY,1015238594,14.05
Department of Health,BSUH NHS Trust,27-Apr-15,Dressings,Hurstwood Park Plumpton Ward - 14 bedded additional capacity ward,NHS LOGISTICS AUTHORITY,1015238594,24.58
Department of Health,BSUH NHS Trust,27-Apr-15,Dressings,Hurstwood Park Plumpton Ward - 14 bedded additional capacity ward,NHS LOGISTICS AUTHORITY,1015238594,18.08
Department of Health,BSUH NHS Trust,27-Apr-15,Dressings,Hurstwood Park Plumpton Ward - 14 bedded additional capacity ward,NHS LOGISTICS AUTHORITY,1015238594,23.48
Department of Health,BSUH NHS Trust,27-Apr-15,Dressings,Hurstwood Park Plumpton Ward - 14 bedded additional capacity ward,NHS LOGISTICS AUTHORITY,1015238594,3.75
Department of Health,BSUH NHS Trust,27-Apr-15,Oth. Gen. Supplies & Services,"SOTC Theatres (SOTC,TH,0 Beds)",NHS LOGISTICS AUTHORITY,1015238594,24.6
Department of Health,BSUH NHS Trust,27-Apr-15,M&S Equipment : General,"Rapid Access Medical Unit (PRH,OP,0 Beds)",NHS LOGISTICS AUTHORITY,1015238594,4.63
Department of Health,BSUH NHS Trust,27-Apr-15,M&S Equipment : General,"Rapid Access Medical Unit (PRH,OP,0 Beds)",NHS LOGISTICS AUTHORITY,1015238594,2.33
Department of Health,BSUH NHS Trust,27-Apr-15,M&S Equipment : General,"Rapid Access Medical Unit (PRH,OP,0 Beds)",NHS LOGISTICS AUTHORITY,1015238594,4.63
Department of Health,BSUH NHS Trust,27-Apr-15,M&S Equipment : General,"Rapid Access Medical Unit (PRH,OP,0 Beds)",NHS LOGISTICS AUTHORITY,1015238594,0.83
Department of Health,BSUH NHS Trust,27-Apr-15,M&S Equipment : General,"Rapid Access Medical Unit (PRH,OP,0 Beds)",NHS LOGISTICS AUTHORITY,1015238594,1.04
Department of Health,BSUH NHS Trust,27-Apr-15,M&S Equipment : General,"Rapid Access Medical Unit (PRH,OP,0 Beds)",NHS LOGISTICS AUTHORITY,1015238594,5.17
Department of Health,BSUH NHS Trust,27-Apr-15,M&S Equipment : General,"Rapid Access Medical Unit (PRH,OP,0 Beds)",NHS LOGISTICS AUTHORITY,1015238594,1.57
Department of Health,BSUH NHS Trust,27-Apr-15,M&S Equipment : General,"Rapid Access Medical Unit (PRH,OP,0 Beds)",NHS LOGISTICS AUTHORITY,1015238594,5.72
Department of Health,BSUH NHS Trust,27-Apr-15,M&S Equipment : General,"Rapid Access Medical Unit (PRH,OP,0 Beds)",NHS LOGISTICS AUTHORITY,1015238594,7.85
Department of Health,BSUH NHS Trust,27-Apr-15,M&S Equipment : General,"Rapid Access Medical Unit (PRH,OP,0 Beds)",NHS LOGISTICS AUTHORITY,1015238594,4.13
Department of Health,BSUH NHS Trust,27-Apr-15,M&S Equipment : General,"Rapid Access Medical Unit (PRH,OP,0 Beds)",NHS LOGISTICS AUTHORITY,1015238594,5.21
Department of Health,BSUH NHS Trust,27-Apr-15,M&S Equipment : General,"Rapid Access Medical Unit (PRH,OP,0 Beds)",NHS LOGISTICS AUTHORITY,1015238594,25.83
Department of Health,BSUH NHS Trust,27-Apr-15,M&S Equipment : General,"Rapid Access Medical Unit (PRH,OP,0 Beds)",NHS LOGISTICS AUTHORITY,1015238594,28.6
Department of Health,BSUH NHS Trust,27-Apr-15,M&S Equipment : General,"Rapid Access Medical Unit (PRH,OP,0 Beds)",NHS LOGISTICS AUTHORITY,1015238594,23.13
Department of Health,BSUH NHS Trust,27-Apr-15,M&S Equipment : General,"Rapid Access Medical Unit (PRH,OP,0 Beds)",NHS LOGISTICS AUTHORITY,1015238594,23.13
Department of Health,BSUH NHS Trust,27-Apr-15,M&S Equipment : General,"Rapid Access Medical Unit (PRH,OP,0 Beds)",NHS LOGISTICS AUTHORITY,1015238594,11.67
Department of Health,BSUH NHS Trust,27-Apr-15,M&S Equipment : General,Education Placement Support Funding,NHS LOGISTICS AUTHORITY,1015238594,30.56
Department of Health,BSUH NHS Trust,27-Apr-15,M&S Equipment : General,Education Placement Support Funding,NHS LOGISTICS AUTHORITY,1015238594,152.8
Department of Health,BSUH NHS Trust,27-Apr-15,Surgical Inst. Disposable,"SOTC Theatres (SOTC,TH,0 Beds)",NHS LOGISTICS AUTHORITY,1015238594,10.67
Department of Health,BSUH NHS Trust,27-Apr-15,Surgical Inst. Disposable,"SOTC Theatres (SOTC,TH,0 Beds)",NHS LOGISTICS AUTHORITY,1015238594,53.33
Department of Health,BSUH NHS Trust,27-Apr-15,M&S Equipment : Disposable,"Rapid Access Medical Unit (PRH,OP,0 Beds)",NHS LOGISTICS AUTHORITY,1015238594,3.7
Department of Health,BSUH NHS Trust,27-Apr-15,M&S Equipment : Disposable,"Rapid Access Medical Unit (PRH,OP,0 Beds)",NHS LOGISTICS AUTHORITY,1015238594,2.15
Department of Health,BSUH NHS Trust,27-Apr-15,M&S Equipment : Disposable,"Rapid Access Medical Unit (PRH,OP,0 Beds)",NHS LOGISTICS AUTHORITY,1015238594,0.26
Department of Health,BSUH NHS Trust,27-Apr-15,M&S Equipment : Disposable,"Rapid Access Medical Unit (PRH,OP,0 Beds)",NHS LOGISTICS AUTHORITY,1015238594,7.26
Department of Health,BSUH NHS Trust,27-Apr-15,M&S Equipment : Disposable,"Rapid Access Medical Unit (PRH,OP,0 Beds)",NHS LOGISTICS AUTHORITY,1015238594,7.26
Department of Health,BSUH NHS Trust,27-Apr-15,M&S Equipment : Disposable,"Rapid Access Medical Unit (PRH,OP,0 Beds)",NHS LOGISTICS AUTHORITY,1015238594,7.26
Department of Health,BSUH NHS Trust,27-Apr-15,M&S Equipment : Disposable,"Rapid Access Medical Unit (PRH,OP,0 Beds)",NHS LOGISTICS AUTHORITY,1015238594,0.08
Department of Health,BSUH NHS Trust,27-Apr-15,M&S Equipment : Disposable,"Rapid Access Medical Unit (PRH,OP,0 Beds)",NHS LOGISTICS AUTHORITY,1015238594,1.66
Department of Health,BSUH NHS Trust,27-Apr-15,M&S Equipment : Disposable,"Rapid Access Medical Unit (PRH,OP,0 Beds)",NHS LOGISTICS AUTHORITY,1015238594,0.25
Department of Health,BSUH NHS Trust,27-Apr-15,M&S Equipment : Disposable,"Rapid Access Medical Unit (PRH,OP,0 Beds)",NHS LOGISTICS AUTHORITY,1015238594,10.76
Department of Health,BSUH NHS Trust,27-Apr-15,M&S Equipment : Disposable,"Rapid Access Medical Unit (PRH,OP,0 Beds)",NHS LOGISTICS AUTHORITY,1015238594,36.32
Department of Health,BSUH NHS Trust,27-Apr-15,M&S Equipment : Disposable,"Rapid Access Medical Unit (PRH,OP,0 Beds)",NHS LOGISTICS AUTHORITY,1015238594,36.32
Department of Health,BSUH NHS Trust,27-Apr-15,M&S Equipment : Disposable,"Rapid Access Medical Unit (PRH,OP,0 Beds)",NHS LOGISTICS AUTHORITY,1015238594,36.32
Department of Health,BSUH NHS Trust,27-Apr-15,M&S Equipment : Disposable,"Rapid Access Medical Unit (PRH,OP,0 Beds)",NHS LOGISTICS AUTHORITY,1015238594,18.5
Department of Health,BSUH NHS Trust,27-Apr-15,M&S Equipment : Disposable,"Rapid Access Medical Unit (PRH,OP,0 Beds)",NHS LOGISTICS AUTHORITY,1015238594,8.29
Department of Health,BSUH NHS Trust,27-Apr-15,M&S Equipment : Disposable,"Rapid Access Medical Unit (PRH,OP,0 Beds)",NHS LOGISTICS AUTHORITY,1015238594,1.32
Department of Health,BSUH NHS Trust,27-Apr-15,M&S Equipment : Disposable,"Rapid Access Medical Unit (PRH,OP,0 Beds)",NHS LOGISTICS AUTHORITY,1015238594,0.38
Department of Health,BSUH NHS Trust,27-Apr-15,M&S Equipment : Disposable,"Rapid Access Medical Unit (PRH,OP,0 Beds)",NHS LOGISTICS AUTHORITY,1015238594,1.25
Department of Health,BSUH NHS Trust,27-Apr-15,Drugs,"SOTC Theatres (SOTC,TH,0 Beds)",NHS LOGISTICS AUTHORITY,1015238594,2.04
Department of Health,BSUH NHS Trust,27-Apr-15,Drugs,"SOTC Theatres (SOTC,TH,0 Beds)",NHS LOGISTICS AUTHORITY,1015238594,3.08
Department of Health,BSUH NHS Trust,27-Apr-15,Drugs,"SOTC Theatres (SOTC,TH,0 Beds)",NHS LOGISTICS AUTHORITY,1015238594,2.04
Department of Health,BSUH NHS Trust,27-Apr-15,Drugs,"SOTC Theatres (SOTC,TH,0 Beds)",NHS LOGISTICS AUTHORITY,1015238594,10.18
Department of Health,BSUH NHS Trust,27-Apr-15,Drugs,"SOTC Theatres (SOTC,TH,0 Beds)",NHS LOGISTICS AUTHORITY,1015238594,10.18
Department of Health,BSUH NHS Trust,27-Apr-15,Drugs,"SOTC Theatres (SOTC,TH,0 Beds)",NHS LOGISTICS AUTHORITY,1015238594,15.4
Department of Health,BSUH NHS Trust,27-Apr-15,Drugs,"Pyecombe Ward (27 beds) (PRH,IW,27 Beds)",NHS LOGISTICS AUTHORITY,1015238594,1.57
Department of Health,BSUH NHS Trust,27-Apr-15,Drugs,"Pyecombe Ward (27 beds) (PRH,IW,27 Beds)",NHS LOGISTICS AUTHORITY,1015238594,7.85
Department of Health,BSUH NHS Trust,27-Apr-15,Continence Products,"Pyecombe Ward (27 beds) (PRH,IW,27 Beds)",NHS LOGISTICS AUTHORITY,1015238594,4.85
Department of Health,BSUH NHS Trust,27-Apr-15,Continence Products,"Pyecombe Ward (27 beds) (PRH,IW,27 Beds)",NHS LOGISTICS AUTHORITY,1015238594,3.63
Department of Health,BSUH NHS Trust,27-Apr-15,Continence Products,"Pyecombe Ward (27 beds) (PRH,IW,27 Beds)",NHS LOGISTICS AUTHORITY,1015238594,18.17
Department of Health,BSUH NHS Trust,27-Apr-15,Continence Products,"Pyecombe Ward (27 beds) (PRH,IW,27 Beds)",NHS LOGISTICS AUTHORITY,1015238594,24.25
Department of Health,BSUH NHS Trust,27-Apr-15,Catering Equip. - Disposable,"Pyecombe Ward (27 beds) (PRH,IW,27 Beds)",NHS LOGISTICS AUTHORITY,1015238594,0.74
Department of Health,BSUH NHS Trust,27-Apr-15,Catering Equip. - Disposable,"Pyecombe Ward (27 beds) (PRH,IW,27 Beds)",NHS LOGISTICS AUTHORITY,1015238594,3.68
Department of Health,BSUH NHS Trust,27-Apr-15,Dressings,"Rapid Access Medical Unit (PRH,OP,0 Beds)",NHS LOGISTICS AUTHORITY,1015238594,0.38
Department of Health,BSUH NHS Trust,27-Apr-15,Dressings,"Rapid Access Medical Unit (PRH,OP,0 Beds)",NHS LOGISTICS AUTHORITY,1015238594,0.2
Department of Health,BSUH NHS Trust,27-Apr-15,Dressings,"Rapid Access Medical Unit (PRH,OP,0 Beds)",NHS LOGISTICS AUTHORITY,1015238594,0.75
Department of Health,BSUH NHS Trust,27-Apr-15,Dressings,"Rapid Access Medical Unit (PRH,OP,0 Beds)",NHS LOGISTICS AUTHORITY,1015238594,1
Department of Health,BSUH NHS Trust,27-Apr-15,Dressings,"Rapid Access Medical Unit (PRH,OP,0 Beds)",NHS LOGISTICS AUTHORITY,1015238594,1.92
Department of Health,BSUH NHS Trust,27-Apr-15,Dressings,"Rapid Access Medical Unit (PRH,OP,0 Beds)",NHS LOGISTICS AUTHORITY,1015238594,3.75
Department of Health,BSUH NHS Trust,27-Apr-15,Cleaning Materials,"Rapid Access Medical Unit (PRH,OP,0 Beds)",NHS LOGISTICS AUTHORITY,1015238594,1.57
Department of Health,BSUH NHS Trust,27-Apr-15,Cleaning Materials,"Rapid Access Medical Unit (PRH,OP,0 Beds)",NHS LOGISTICS AUTHORITY,1015238594,7.83
Department of Health,BSUH NHS Trust,27-Apr-15,Patients Appliances : Purchase,"Rapid Access Medical Unit (PRH,OP,0 Beds)",NHS LOGISTICS AUTHORITY,1015238594,1.93
Department of Health,BSUH NHS Trust,27-Apr-15,Patients Appliances : Purchase,"Rapid Access Medical Unit (PRH,OP,0 Beds)",NHS LOGISTICS AUTHORITY,1015238594,9.63
Department of Health,BSUH NHS Trust,27-Apr-15,Dressings,Imaging - Interventional Radiology,NHS LOGISTICS AUTHORITY,1015238594,0.19
Department of Health,BSUH NHS Trust,27-Apr-15,Cleaning Materials,"SOTC Theatres (SOTC,TH,0 Beds)",NHS LOGISTICS AUTHORITY,1015238594,3.08
Department of Health,BSUH NHS Trust,27-Apr-15,Cleaning Materials,"SOTC Theatres (SOTC,TH,0 Beds)",NHS LOGISTICS AUTHORITY,1015238594,4.92
Department of Health,BSUH NHS Trust,27-Apr-15,Cleaning Materials,"SOTC Theatres (SOTC,TH,0 Beds)",NHS LOGISTICS AUTHORITY,1015238594,45.5
Department of Health,BSUH NHS Trust,27-Apr-15,Cleaning Materials,"SOTC Theatres (SOTC,TH,0 Beds)",NHS LOGISTICS AUTHORITY,1015238594,10.18
Department of Health,BSUH NHS Trust,27-Apr-15,Cleaning Materials,"SOTC Theatres (SOTC,TH,0 Beds)",NHS LOGISTICS AUTHORITY,1015238594,24.6
Department of Health,BSUH NHS Trust,27-Apr-15,Cleaning Materials,"SOTC Theatres (SOTC,TH,0 Beds)",NHS LOGISTICS AUTHORITY,1015238594,15.4
Department of Health,BSUH NHS Trust,27-Apr-15,Large Fragment S&N / Synthes,Trauma and Orthopaedics - Trauma,NHS LOGISTICS AUTHORITY,1015238594,21.9
Department of Health,BSUH NHS Trust,27-Apr-15,Large Fragment S&N / Synthes,Trauma and Orthopaedics - Trauma,NHS LOGISTICS AUTHORITY,1015238594,109.48
Department of Health,BSUH NHS Trust,27-Apr-15,Staff Uniforms & Clothing,SOTC Newick Ward (31 beds: 27 ward + 4 Level 1),NHS LOGISTICS AUTHORITY,1015238594,1.07
Department of Health,BSUH NHS Trust,27-Apr-15,Staff Uniforms & Clothing,SOTC Newick Ward (31 beds: 27 ward + 4 Level 1),NHS LOGISTICS AUTHORITY,1015238594,5.37
Department of Health,BSUH NHS Trust,27-Apr-15,M&S Equipment : General,SOTC Newick Ward (31 beds: 27 ward + 4 Level 1),NHS LOGISTICS AUTHORITY,1015238594,2.18
Department of Health,BSUH NHS Trust,27-Apr-15,M&S Equipment : General,SOTC Newick Ward (31 beds: 27 ward + 4 Level 1),NHS LOGISTICS AUTHORITY,1015238594,0.63
Department of Health,BSUH NHS Trust,27-Apr-15,M&S Equipment : General,SOTC Newick Ward (31 beds: 27 ward + 4 Level 1),NHS LOGISTICS AUTHORITY,1015238594,5.06
Department of Health,BSUH NHS Trust,27-Apr-15,M&S Equipment : General,SOTC Newick Ward (31 beds: 27 ward + 4 Level 1),NHS LOGISTICS AUTHORITY,1015238594,2.79
Department of Health,BSUH NHS Trust,27-Apr-15,M&S Equipment : General,SOTC Newick Ward (31 beds: 27 ward + 4 Level 1),NHS LOGISTICS AUTHORITY,1015238594,2.4
Department of Health,BSUH NHS Trust,27-Apr-15,M&S Equipment : General,SOTC Newick Ward (31 beds: 27 ward + 4 Level 1),NHS LOGISTICS AUTHORITY,1015238594,13.95
Department of Health,BSUH NHS Trust,27-Apr-15,M&S Equipment : General,SOTC Newick Ward (31 beds: 27 ward + 4 Level 1),NHS LOGISTICS AUTHORITY,1015238594,25.28
Department of Health,BSUH NHS Trust,27-Apr-15,M&S Equipment : General,SOTC Newick Ward (31 beds: 27 ward + 4 Level 1),NHS LOGISTICS AUTHORITY,1015238594,10.88
Department of Health,BSUH NHS Trust,27-Apr-15,M&S Equipment : General,SOTC Newick Ward (31 beds: 27 ward + 4 Level 1),NHS LOGISTICS AUTHORITY,1015238594,11.98
Department of Health,BSUH NHS Trust,27-Apr-15,M&S Equipment : General,SOTC Newick Ward (31 beds: 27 ward + 4 Level 1),NHS LOGISTICS AUTHORITY,1015238594,3.17
Department of Health,BSUH NHS Trust,27-Apr-15,Dressings,"SRC Nursing - Newtimber Ward (PRH,IW,18 Beds)",NHS LOGISTICS AUTHORITY,1015238594,3.84
Department of Health,BSUH NHS Trust,27-Apr-15,Dressings,"SRC Nursing - Newtimber Ward (PRH,IW,18 Beds)",NHS LOGISTICS AUTHORITY,1015238594,3.98
Department of Health,BSUH NHS Trust,27-Apr-15,Dressings,"SRC Nursing - Newtimber Ward (PRH,IW,18 Beds)",NHS LOGISTICS AUTHORITY,1015238594,5.62
Department of Health,BSUH NHS Trust,27-Apr-15,Dressings,"SRC Nursing - Newtimber Ward (PRH,IW,18 Beds)",NHS LOGISTICS AUTHORITY,1015238594,1.32
Department of Health,BSUH NHS Trust,27-Apr-15,Dressings,"SRC Nursing - Newtimber Ward (PRH,IW,18 Beds)",NHS LOGISTICS AUTHORITY,1015238594,6.6
Department of Health,BSUH NHS Trust,27-Apr-15,Dressings,"SRC Nursing - Newtimber Ward (PRH,IW,18 Beds)",NHS LOGISTICS AUTHORITY,1015238594,28.1
Department of Health,BSUH NHS Trust,27-Apr-15,Dressings,"SRC Nursing - Newtimber Ward (PRH,IW,18 Beds)",NHS LOGISTICS AUTHORITY,1015238594,19.88
Department of Health,BSUH NHS Trust,27-Apr-15,Dressings,"SRC Nursing - Newtimber Ward (PRH,IW,18 Beds)",NHS LOGISTICS AUTHORITY,1015238594,19.2
Department of Health,BSUH NHS Trust,27-Apr-15,Patients Appliances : Purchase,"SRC Nursing - Newtimber Ward (PRH,IW,18 Beds)",NHS LOGISTICS AUTHORITY,1015238594,1.63
Department of Health,BSUH NHS Trust,27-Apr-15,Patients Appliances : Purchase,"SRC Nursing - Newtimber Ward (PRH,IW,18 Beds)",NHS LOGISTICS AUTHORITY,1015238594,2.2
Department of Health,BSUH NHS Trust,27-Apr-15,Patients Appliances : Purchase,"SRC Nursing - Newtimber Ward (PRH,IW,18 Beds)",NHS LOGISTICS AUTHORITY,1015238594,1.34
Department of Health,BSUH NHS Trust,27-Apr-15,Patients Appliances : Purchase,"SRC Nursing - Newtimber Ward (PRH,IW,18 Beds)",NHS LOGISTICS AUTHORITY,1015238594,0.67
Department of Health,BSUH NHS Trust,27-Apr-15,Patients Appliances : Purchase,"SRC Nursing - Newtimber Ward (PRH,IW,18 Beds)",NHS LOGISTICS AUTHORITY,1015238594,8.17
Department of Health,BSUH NHS Trust,27-Apr-15,Patients Appliances : Purchase,"SRC Nursing - Newtimber Ward (PRH,IW,18 Beds)",NHS LOGISTICS AUTHORITY,1015238594,10.98
Department of Health,BSUH NHS Trust,27-Apr-15,Patients Appliances : Purchase,"SRC Nursing - Newtimber Ward (PRH,IW,18 Beds)",NHS LOGISTICS AUTHORITY,1015238594,6.7
Department of Health,BSUH NHS Trust,27-Apr-15,Patients Appliances : Purchase,"SRC Nursing - Newtimber Ward (PRH,IW,18 Beds)",NHS LOGISTICS AUTHORITY,1015238594,3.35
Department of Health,BSUH NHS Trust,27-Apr-15,Laboratory Chemicals,"SRC Nursing - Newtimber Ward (PRH,IW,18 Beds)",NHS LOGISTICS AUTHORITY,1015238594,1.06
Department of Health,BSUH NHS Trust,27-Apr-15,Laboratory Chemicals,"SRC Nursing - Newtimber Ward (PRH,IW,18 Beds)",NHS LOGISTICS AUTHORITY,1015238594,5.3
Department of Health,BSUH NHS Trust,27-Apr-15,Staff Uniforms & Clothing,"SRC Nursing - Newtimber Ward (PRH,IW,18 Beds)",NHS LOGISTICS AUTHORITY,1015238594,4.67
Department of Health,BSUH NHS Trust,27-Apr-15,Staff Uniforms & Clothing,"SRC Nursing - Newtimber Ward (PRH,IW,18 Beds)",NHS LOGISTICS AUTHORITY,1015238594,23.33
Department of Health,BSUH NHS Trust,27-Apr-15,Patients Clothing,"SRC Nursing - Newtimber Ward (PRH,IW,18 Beds)",NHS LOGISTICS AUTHORITY,1015238594,21.76
Department of Health,BSUH NHS Trust,27-Apr-15,Patients Clothing,"SRC Nursing - Newtimber Ward (PRH,IW,18 Beds)",NHS LOGISTICS AUTHORITY,1015238594,1.69
Department of Health,BSUH NHS Trust,27-Apr-15,Patients Clothing,"SRC Nursing - Newtimber Ward (PRH,IW,18 Beds)",NHS LOGISTICS AUTHORITY,1015238594,4.63
Department of Health,BSUH NHS Trust,27-Apr-15,Patients Clothing,"SRC Nursing - Newtimber Ward (PRH,IW,18 Beds)",NHS LOGISTICS AUTHORITY,1015238594,23.14
Department of Health,BSUH NHS Trust,27-Apr-15,Patients Clothing,"SRC Nursing - Newtimber Ward (PRH,IW,18 Beds)",NHS LOGISTICS AUTHORITY,1015238594,95.73
Department of Health,BSUH NHS Trust,27-Apr-15,Patients Clothing,"SRC Nursing - Newtimber Ward (PRH,IW,18 Beds)",NHS LOGISTICS AUTHORITY,1015238594,13.05
Department of Health,BSUH NHS Trust,27-Apr-15,Patients Clothing,"SRC Nursing - Newtimber Ward (PRH,IW,18 Beds)",NHS LOGISTICS AUTHORITY,1015238594,8.43
Department of Health,BSUH NHS Trust,27-Apr-15,Cleaning Materials,"SRC Nursing - Newtimber Ward (PRH,IW,18 Beds)",NHS LOGISTICS AUTHORITY,1015238594,0.19
Department of Health,BSUH NHS Trust,27-Apr-15,Cleaning Materials,"SRC Nursing - Newtimber Ward (PRH,IW,18 Beds)",NHS LOGISTICS AUTHORITY,1015238594,0.97
Department of Health,BSUH NHS Trust,27-Apr-15,Cleaning Materials,"SRC Nursing - Newtimber Ward (PRH,IW,18 Beds)",NHS LOGISTICS AUTHORITY,1015238594,1.57
Department of Health,BSUH NHS Trust,27-Apr-15,Cleaning Materials,"SRC Nursing - Newtimber Ward (PRH,IW,18 Beds)",NHS LOGISTICS AUTHORITY,1015238594,1.61
Department of Health,BSUH NHS Trust,27-Apr-15,Cleaning Materials,"SRC Nursing - Newtimber Ward (PRH,IW,18 Beds)",NHS LOGISTICS AUTHORITY,1015238594,8.07
Department of Health,BSUH NHS Trust,27-Apr-15,Cleaning Materials,"SRC Nursing - Newtimber Ward (PRH,IW,18 Beds)",NHS LOGISTICS AUTHORITY,1015238594,7.83
Department of Health,BSUH NHS Trust,27-Apr-15,Cleaning Materials,"SRC Nursing - Newtimber Ward (PRH,IW,18 Beds)",NHS LOGISTICS AUTHORITY,1015238594,4.86
Department of Health,BSUH NHS Trust,27-Apr-15,Cleaning Materials,"SRC Nursing - Newtimber Ward (PRH,IW,18 Beds)",NHS LOGISTICS AUTHORITY,1015238594,0.93
Department of Health,BSUH NHS Trust,27-Apr-15,Bedding & Linen : Disposable,"SRC Nursing - Newtimber Ward (PRH,IW,18 Beds)",NHS LOGISTICS AUTHORITY,1015238594,5.6
Department of Health,BSUH NHS Trust,27-Apr-15,Bedding & Linen : Disposable,"SRC Nursing - Newtimber Ward (PRH,IW,18 Beds)",NHS LOGISTICS AUTHORITY,1015238594,1.5
Department of Health,BSUH NHS Trust,27-Apr-15,Bedding & Linen : Disposable,"SRC Nursing - Newtimber Ward (PRH,IW,18 Beds)",NHS LOGISTICS AUTHORITY,1015238594,0.35
Department of Health,BSUH NHS Trust,27-Apr-15,Bedding & Linen : Disposable,"SRC Nursing - Newtimber Ward (PRH,IW,18 Beds)",NHS LOGISTICS AUTHORITY,1015238594,3.57
Department of Health,BSUH NHS Trust,27-Apr-15,Bedding & Linen : Disposable,"SRC Nursing - Newtimber Ward (PRH,IW,18 Beds)",NHS LOGISTICS AUTHORITY,1015238594,17.87
Department of Health,BSUH NHS Trust,27-Apr-15,Bedding & Linen : Disposable,"SRC Nursing - Newtimber Ward (PRH,IW,18 Beds)",NHS LOGISTICS AUTHORITY,1015238594,1.77
Department of Health,BSUH NHS Trust,27-Apr-15,Bedding & Linen : Disposable,"SRC Nursing - Newtimber Ward (PRH,IW,18 Beds)",NHS LOGISTICS AUTHORITY,1015238594,28
Department of Health,BSUH NHS Trust,27-Apr-15,Bedding & Linen : Disposable,"SRC Nursing - Newtimber Ward (PRH,IW,18 Beds)",NHS LOGISTICS AUTHORITY,1015238594,7.5
Department of Health,BSUH NHS Trust,27-Apr-15,Oth. Gen. Supplies & Services,"SOTC Theatres (SOTC,TH,0 Beds)",NHS LOGISTICS AUTHORITY,1015238594,4.92
Department of Health,BSUH NHS Trust,27-Apr-15,Dressings,SOTC Newick Ward (31 beds: 27 ward + 4 Level 1),NHS LOGISTICS AUTHORITY,1015238594,11.55
Department of Health,BSUH NHS Trust,27-Apr-15,Dressings,SOTC Newick Ward (31 beds: 27 ward + 4 Level 1),NHS LOGISTICS AUTHORITY,1015238594,5.45
Department of Health,BSUH NHS Trust,27-Apr-15,Dressings,SOTC Newick Ward (31 beds: 27 ward + 4 Level 1),NHS LOGISTICS AUTHORITY,1015238594,0.67
Department of Health,BSUH NHS Trust,27-Apr-15,Dressings,SOTC Newick Ward (31 beds: 27 ward + 4 Level 1),NHS LOGISTICS AUTHORITY,1015238594,16.57
Department of Health,BSUH NHS Trust,27-Apr-15,Dressings,SOTC Newick Ward (31 beds: 27 ward + 4 Level 1),NHS LOGISTICS AUTHORITY,1015238594,57.75
Department of Health,BSUH NHS Trust,27-Apr-15,Dressings,SOTC Newick Ward (31 beds: 27 ward + 4 Level 1),NHS LOGISTICS AUTHORITY,1015238594,27.23
Department of Health,BSUH NHS Trust,27-Apr-15,Dressings,SOTC Newick Ward (31 beds: 27 ward + 4 Level 1),NHS LOGISTICS AUTHORITY,1015238594,3.37
Department of Health,BSUH NHS Trust,27-Apr-15,Dressings,SOTC Newick Ward (31 beds: 27 ward + 4 Level 1),NHS LOGISTICS AUTHORITY,1015238594,7.5
Department of Health,BSUH NHS Trust,27-Apr-15,Patients Clothing,SOTC Newick Ward (31 beds: 27 ward + 4 Level 1),NHS LOGISTICS AUTHORITY,1015238594,1.22
Department of Health,BSUH NHS Trust,27-Apr-15,Patients Clothing,SOTC Newick Ward (31 beds: 27 ward + 4 Level 1),NHS LOGISTICS AUTHORITY,1015238594,1.31
Department of Health,BSUH NHS Trust,27-Apr-15,Patients Clothing,SOTC Newick Ward (31 beds: 27 ward + 4 Level 1),NHS LOGISTICS AUTHORITY,1015238594,6.53
Department of Health,BSUH NHS Trust,27-Apr-15,Patients Clothing,SOTC Newick Ward (31 beds: 27 ward + 4 Level 1),NHS LOGISTICS AUTHORITY,1015238594,6.1
Department of Health,BSUH NHS Trust,27-Apr-15,Patients Appliances : Purchase,SOTC Newick Ward (31 beds: 27 ward + 4 Level 1),NHS LOGISTICS AUTHORITY,1015238594,2.2
Department of Health,BSUH NHS Trust,27-Apr-15,Patients Appliances : Purchase,SOTC Newick Ward (31 beds: 27 ward + 4 Level 1),NHS LOGISTICS AUTHORITY,1015238594,0.18
Department of Health,BSUH NHS Trust,27-Apr-15,Patients Appliances : Purchase,SOTC Newick Ward (31 beds: 27 ward + 4 Level 1),NHS LOGISTICS AUTHORITY,1015238594,0.92
Department of Health,BSUH NHS Trust,27-Apr-15,Patients Appliances : Purchase,SOTC Newick Ward (31 beds: 27 ward + 4 Level 1),NHS LOGISTICS AUTHORITY,1015238594,10.98
Department of Health,BSUH NHS Trust,27-Apr-15,Cleaning Materials,SOTC Newick Ward (31 beds: 27 ward + 4 Level 1),NHS LOGISTICS AUTHORITY,1015238594,1.61
Department of Health,BSUH NHS Trust,27-Apr-15,Cleaning Materials,SOTC Newick Ward (31 beds: 27 ward + 4 Level 1),NHS LOGISTICS AUTHORITY,1015238594,0.4
Department of Health,BSUH NHS Trust,27-Apr-15,Cleaning Materials,SOTC Newick Ward (31 beds: 27 ward + 4 Level 1),NHS LOGISTICS AUTHORITY,1015238594,8.07
Department of Health,BSUH NHS Trust,27-Apr-15,Cleaning Materials,SOTC Newick Ward (31 beds: 27 ward + 4 Level 1),NHS LOGISTICS AUTHORITY,1015238594,2
Department of Health,BSUH NHS Trust,27-Apr-15,M&S Equipment : General,"SRC Nursing - Newtimber Ward (PRH,IW,18 Beds)",NHS LOGISTICS AUTHORITY,1015238594,2.3
Department of Health,BSUH NHS Trust,27-Apr-15,M&S Equipment : General,"SRC Nursing - Newtimber Ward (PRH,IW,18 Beds)",NHS LOGISTICS AUTHORITY,1015238594,1.28
Department of Health,BSUH NHS Trust,27-Apr-15,M&S Equipment : General,"SRC Nursing - Newtimber Ward (PRH,IW,18 Beds)",NHS LOGISTICS AUTHORITY,1015238594,5.58
Department of Health,BSUH NHS Trust,27-Apr-15,M&S Equipment : General,"SRC Nursing - Newtimber Ward (PRH,IW,18 Beds)",NHS LOGISTICS AUTHORITY,1015238594,6.45
Department of Health,BSUH NHS Trust,27-Apr-15,M&S Equipment : General,"SRC Nursing - Newtimber Ward (PRH,IW,18 Beds)",NHS LOGISTICS AUTHORITY,1015238594,0.78
Department of Health,BSUH NHS Trust,27-Apr-15,M&S Equipment : General,"SRC Nursing - Newtimber Ward (PRH,IW,18 Beds)",NHS LOGISTICS AUTHORITY,1015238594,1.32
Department of Health,BSUH NHS Trust,27-Apr-15,M&S Equipment : General,"SRC Nursing - Newtimber Ward (PRH,IW,18 Beds)",NHS LOGISTICS AUTHORITY,1015238594,0.96
Department of Health,BSUH NHS Trust,27-Apr-15,M&S Equipment : General,"SRC Nursing - Newtimber Ward (PRH,IW,18 Beds)",NHS LOGISTICS AUTHORITY,1015238594,0.81
Department of Health,BSUH NHS Trust,27-Apr-15,M&S Equipment : General,"SRC Nursing - Newtimber Ward (PRH,IW,18 Beds)",NHS LOGISTICS AUTHORITY,1015238594,27.9
Department of Health,BSUH NHS Trust,27-Apr-15,M&S Equipment : General,"SRC Nursing - Newtimber Ward (PRH,IW,18 Beds)",NHS LOGISTICS AUTHORITY,1015238594,4.8
Department of Health,BSUH NHS Trust,27-Apr-15,M&S Equipment : General,"SRC Nursing - Newtimber Ward (PRH,IW,18 Beds)",NHS LOGISTICS AUTHORITY,1015238594,6.6
Department of Health,BSUH NHS Trust,27-Apr-15,M&S Equipment : General,"SRC Nursing - Newtimber Ward (PRH,IW,18 Beds)",NHS LOGISTICS AUTHORITY,1015238594,3.92
Department of Health,BSUH NHS Trust,27-Apr-15,M&S Equipment : General,"SRC Nursing - Newtimber Ward (PRH,IW,18 Beds)",NHS LOGISTICS AUTHORITY,1015238594,4.06
Department of Health,BSUH NHS Trust,27-Apr-15,M&S Equipment : General,"SRC Nursing - Newtimber Ward (PRH,IW,18 Beds)",NHS LOGISTICS AUTHORITY,1015238594,11.5
Department of Health,BSUH NHS Trust,27-Apr-15,M&S Equipment : General,"SRC Nursing - Newtimber Ward (PRH,IW,18 Beds)",NHS LOGISTICS AUTHORITY,1015238594,32.25
Department of Health,BSUH NHS Trust,27-Apr-15,M&S Equipment : General,"SRC Nursing - Newtimber Ward (PRH,IW,18 Beds)",NHS LOGISTICS AUTHORITY,1015238594,6.4
Department of Health,BSUH NHS Trust,27-Apr-15,Dressings,"SOTC Theatres (SOTC,TH,0 Beds)",NHS LOGISTICS AUTHORITY,1015238594,6.45
Department of Health,BSUH NHS Trust,27-Apr-15,Dressings,"SOTC Theatres (SOTC,TH,0 Beds)",NHS LOGISTICS AUTHORITY,1015238594,3.41
Department of Health,BSUH NHS Trust,27-Apr-15,Dressings,"SOTC Theatres (SOTC,TH,0 Beds)",NHS LOGISTICS AUTHORITY,1015238594,3.09
Department of Health,BSUH NHS Trust,27-Apr-15,Dressings,"SOTC Theatres (SOTC,TH,0 Beds)",NHS LOGISTICS AUTHORITY,1015238594,4.73
Department of Health,BSUH NHS Trust,27-Apr-15,Dressings,"SOTC Theatres (SOTC,TH,0 Beds)",NHS LOGISTICS AUTHORITY,1015238594,5.36
Department of Health,BSUH NHS Trust,27-Apr-15,Dressings,"SOTC Theatres (SOTC,TH,0 Beds)",NHS LOGISTICS AUTHORITY,1015238594,6.8
Department of Health,BSUH NHS Trust,27-Apr-15,Dressings,"SOTC Theatres (SOTC,TH,0 Beds)",NHS LOGISTICS AUTHORITY,1015238594,8.28
Department of Health,BSUH NHS Trust,27-Apr-15,Dressings,"SOTC Theatres (SOTC,TH,0 Beds)",NHS LOGISTICS AUTHORITY,1015238594,6.45
Department of Health,BSUH NHS Trust,27-Apr-15,Dressings,"SOTC Theatres (SOTC,TH,0 Beds)",NHS LOGISTICS AUTHORITY,1015238594,32.23
Department of Health,BSUH NHS Trust,27-Apr-15,Dressings,"SOTC Theatres (SOTC,TH,0 Beds)",NHS LOGISTICS AUTHORITY,1015238594,26.79
Department of Health,BSUH NHS Trust,27-Apr-15,Dressings,"SOTC Theatres (SOTC,TH,0 Beds)",NHS LOGISTICS AUTHORITY,1015238594,34
Department of Health,BSUH NHS Trust,27-Apr-15,Dressings,"SOTC Theatres (SOTC,TH,0 Beds)",NHS LOGISTICS AUTHORITY,1015238594,41.38
Department of Health,BSUH NHS Trust,27-Apr-15,Dressings,"SOTC Theatres (SOTC,TH,0 Beds)",NHS LOGISTICS AUTHORITY,1015238594,23.63
Department of Health,BSUH NHS Trust,27-Apr-15,Dressings,"SOTC Theatres (SOTC,TH,0 Beds)",NHS LOGISTICS AUTHORITY,1015238594,17.03
Department of Health,BSUH NHS Trust,27-Apr-15,Dressings,"SOTC Theatres (SOTC,TH,0 Beds)",NHS LOGISTICS AUTHORITY,1015238594,15.43
Department of Health,BSUH NHS Trust,27-Apr-15,Dressings,"SOTC Theatres (SOTC,TH,0 Beds)",NHS LOGISTICS AUTHORITY,1015238594,32.23
Department of Health,BSUH NHS Trust,27-Apr-15,Bedding & Linen : Disposable,"SOTC Theatres (SOTC,TH,0 Beds)",NHS LOGISTICS AUTHORITY,1015238594,2.79
Department of Health,BSUH NHS Trust,27-Apr-15,Bedding & Linen : Disposable,"SOTC Theatres (SOTC,TH,0 Beds)",NHS LOGISTICS AUTHORITY,1015238594,2.79
Department of Health,BSUH NHS Trust,27-Apr-15,Bedding & Linen : Disposable,"SOTC Theatres (SOTC,TH,0 Beds)",NHS LOGISTICS AUTHORITY,1015238594,13.96
Department of Health,BSUH NHS Trust,27-Apr-15,Bedding & Linen : Disposable,"SOTC Theatres (SOTC,TH,0 Beds)",NHS LOGISTICS AUTHORITY,1015238594,13.96
Department of Health,BSUH NHS Trust,27-Apr-15,ANAES : Accessories & Equip.,"SOTC Theatres (SOTC,TH,0 Beds)",NHS LOGISTICS AUTHORITY,1015238594,1.93
Department of Health,BSUH NHS Trust,27-Apr-15,ANAES : Accessories & Equip.,"SOTC Theatres (SOTC,TH,0 Beds)",NHS LOGISTICS AUTHORITY,1015238594,16.89
Department of Health,BSUH NHS Trust,27-Apr-15,ANAES : Accessories & Equip.,"SOTC Theatres (SOTC,TH,0 Beds)",NHS LOGISTICS AUTHORITY,1015238594,18.38
Department of Health,BSUH NHS Trust,27-Apr-15,ANAES : Accessories & Equip.,"SOTC Theatres (SOTC,TH,0 Beds)",NHS LOGISTICS AUTHORITY,1015238594,84.45
Department of Health,BSUH NHS Trust,27-Apr-15,ANAES : Accessories & Equip.,"SOTC Theatres (SOTC,TH,0 Beds)",NHS LOGISTICS AUTHORITY,1015238594,91.92
Department of Health,BSUH NHS Trust,27-Apr-15,ANAES : Accessories & Equip.,"SOTC Theatres (SOTC,TH,0 Beds)",NHS LOGISTICS AUTHORITY,1015238594,9.67
Department of Health,BSUH NHS Trust,27-Apr-15,Cleaning Materials,"SOTC Theatres (SOTC,TH,0 Beds)",NHS LOGISTICS AUTHORITY,1015238594,9.1
Department of Health,BSUH NHS Trust,27-Apr-15,Cleaning Materials,"SOTC Theatres (SOTC,TH,0 Beds)",NHS LOGISTICS AUTHORITY,1015238594,2.04
Department of Health,BSUH NHS Trust,27-Apr-15,M&S Equipment : Disposable,"SOTC Theatres (SOTC,TH,0 Beds)",NHS LOGISTICS AUTHORITY,1015238594,115.68
Department of Health,BSUH NHS Trust,27-Apr-15,M&S Equipment : Disposable,"SOTC Theatres (SOTC,TH,0 Beds)",NHS LOGISTICS AUTHORITY,1015238594,96.33
Department of Health,BSUH NHS Trust,27-Apr-15,M&S Equipment : Disposable,"SOTC Theatres (SOTC,TH,0 Beds)",NHS LOGISTICS AUTHORITY,1015238594,48.17
Department of Health,BSUH NHS Trust,27-Apr-15,M&S Equipment : Disposable,"SOTC Theatres (SOTC,TH,0 Beds)",NHS LOGISTICS AUTHORITY,1015238594,89.3
Department of Health,BSUH NHS Trust,27-Apr-15,M&S Equipment : Disposable,"SOTC Theatres (SOTC,TH,0 Beds)",NHS LOGISTICS AUTHORITY,1015238594,89.3
Department of Health,BSUH NHS Trust,27-Apr-15,M&S Equipment : Disposable,"SOTC Theatres (SOTC,TH,0 Beds)",NHS LOGISTICS AUTHORITY,1015238594,96.33
Department of Health,BSUH NHS Trust,27-Apr-15,M&S Equipment : Disposable,"SOTC Theatres (SOTC,TH,0 Beds)",NHS LOGISTICS AUTHORITY,1015238594,96.33
Department of Health,BSUH NHS Trust,27-Apr-15,M&S Equipment : Disposable,"SOTC Theatres (SOTC,TH,0 Beds)",NHS LOGISTICS AUTHORITY,1015238594,96.33
Department of Health,BSUH NHS Trust,27-Apr-15,M&S Equipment : Disposable,"SOTC Theatres (SOTC,TH,0 Beds)",NHS LOGISTICS AUTHORITY,1015238594,10.76
Department of Health,BSUH NHS Trust,27-Apr-15,M&S Equipment : Disposable,"SOTC Theatres (SOTC,TH,0 Beds)",NHS LOGISTICS AUTHORITY,1015238594,24.17
Department of Health,BSUH NHS Trust,27-Apr-15,Surgical Instruments : General,"SOTC Theatres (SOTC,TH,0 Beds)",NHS LOGISTICS AUTHORITY,1015238594,35.8
Department of Health,BSUH NHS Trust,27-Apr-15,Surgical Instruments : General,"SOTC Theatres (SOTC,TH,0 Beds)",NHS LOGISTICS AUTHORITY,1015238594,179
Department of Health,BSUH NHS Trust,27-Apr-15,Protective Clothing,"SOTC Theatres (SOTC,TH,0 Beds)",NHS LOGISTICS AUTHORITY,1015238594,14.7
Department of Health,BSUH NHS Trust,27-Apr-15,Protective Clothing,"SOTC Theatres (SOTC,TH,0 Beds)",NHS LOGISTICS AUTHORITY,1015238594,73.52
Department of Health,BSUH NHS Trust,27-Apr-15,M&S Equipment : General,"Gynaecology Outpatients (RAH,OP, Beds)",NHS LOGISTICS AUTHORITY,1015238594,9.06
Department of Health,BSUH NHS Trust,27-Apr-15,M&S Equipment : General,"Gynaecology Outpatients (RAH,OP, Beds)",NHS LOGISTICS AUTHORITY,1015238594,1.88
Department of Health,BSUH NHS Trust,27-Apr-15,M&S Equipment : General,"Gynaecology Outpatients (RAH,OP, Beds)",NHS LOGISTICS AUTHORITY,1015238594,13.03
Department of Health,BSUH NHS Trust,27-Apr-15,M&S Equipment : General,"Gynaecology Outpatients (RAH,OP, Beds)",NHS LOGISTICS AUTHORITY,1015238594,52.13
Department of Health,BSUH NHS Trust,27-Apr-15,M&S Equipment : General,"Gynaecology Outpatients (RAH,OP, Beds)",NHS LOGISTICS AUTHORITY,1015238594,4.8
Department of Health,BSUH NHS Trust,27-Apr-15,M&S Equipment : General,"Gynaecology Outpatients (RAH,OP, Beds)",NHS LOGISTICS AUTHORITY,1015238594,45.29
Department of Health,BSUH NHS Trust,27-Apr-15,M&S Equipment : General,"Gynaecology Outpatients (RAH,OP, Beds)",NHS LOGISTICS AUTHORITY,1015238594,9.42
Department of Health,BSUH NHS Trust,27-Apr-15,M&S Equipment : General,"Gynaecology Outpatients (RAH,OP, Beds)",NHS LOGISTICS AUTHORITY,1015238594,65.17
Department of Health,BSUH NHS Trust,27-Apr-15,M&S Equipment : General,"Gynaecology Outpatients (RAH,OP, Beds)",NHS LOGISTICS AUTHORITY,1015238594,260.67
Department of Health,BSUH NHS Trust,27-Apr-15,M&S Equipment : General,"Gynaecology Outpatients (RAH,OP, Beds)",NHS LOGISTICS AUTHORITY,1015238594,23.99
Department of Health,BSUH NHS Trust,27-Apr-15,M&S Equipment : Disposable,"Pyecombe Ward (27 beds) (PRH,IW,27 Beds)",NHS LOGISTICS AUTHORITY,1015238594,0.41
Department of Health,BSUH NHS Trust,27-Apr-15,M&S Equipment : Disposable,"Pyecombe Ward (27 beds) (PRH,IW,27 Beds)",NHS LOGISTICS AUTHORITY,1015238594,1.97
Department of Health,BSUH NHS Trust,27-Apr-15,M&S Equipment : Disposable,"Pyecombe Ward (27 beds) (PRH,IW,27 Beds)",NHS LOGISTICS AUTHORITY,1015238594,2.65
Department of Health,BSUH NHS Trust,27-Apr-15,M&S Equipment : Disposable,"Pyecombe Ward (27 beds) (PRH,IW,27 Beds)",NHS LOGISTICS AUTHORITY,1015238594,1.66
Department of Health,BSUH NHS Trust,27-Apr-15,M&S Equipment : Disposable,"Pyecombe Ward (27 beds) (PRH,IW,27 Beds)",NHS LOGISTICS AUTHORITY,1015238594,1.34
Department of Health,BSUH NHS Trust,27-Apr-15,M&S Equipment : Disposable,"Pyecombe Ward (27 beds) (PRH,IW,27 Beds)",NHS LOGISTICS AUTHORITY,1015238594,0.95
Department of Health,BSUH NHS Trust,27-Apr-15,M&S Equipment : Disposable,"Pyecombe Ward (27 beds) (PRH,IW,27 Beds)",NHS LOGISTICS AUTHORITY,1015238594,6.7
Department of Health,BSUH NHS Trust,27-Apr-15,M&S Equipment : Disposable,"Pyecombe Ward (27 beds) (PRH,IW,27 Beds)",NHS LOGISTICS AUTHORITY,1015238594,8.29
Department of Health,BSUH NHS Trust,27-Apr-15,M&S Equipment : Disposable,"Pyecombe Ward (27 beds) (PRH,IW,27 Beds)",NHS LOGISTICS AUTHORITY,1015238594,13.25
Department of Health,BSUH NHS Trust,27-Apr-15,M&S Equipment : Disposable,"Pyecombe Ward (27 beds) (PRH,IW,27 Beds)",NHS LOGISTICS AUTHORITY,1015238594,2.05
Department of Health,BSUH NHS Trust,27-Apr-15,M&S Equipment : Disposable,"Pyecombe Ward (27 beds) (PRH,IW,27 Beds)",NHS LOGISTICS AUTHORITY,1015238594,9.83
Department of Health,BSUH NHS Trust,27-Apr-15,M&S Equipment : Disposable,"Pyecombe Ward (27 beds) (PRH,IW,27 Beds)",NHS LOGISTICS AUTHORITY,1015238594,4.75
Department of Health,BSUH NHS Trust,27-Apr-15,ALAC: Spares,Audiology,NHS LOGISTICS AUTHORITY,1015238594,28.07
Department of Health,BSUH NHS Trust,27-Apr-15,ALAC: Spares,Audiology,NHS LOGISTICS AUTHORITY,1015238594,14.97
Department of Health,BSUH NHS Trust,27-Apr-15,ALAC: Spares,Audiology,NHS LOGISTICS AUTHORITY,1015238594,72.35
Department of Health,BSUH NHS Trust,27-Apr-15,ALAC: Spares,Audiology,NHS LOGISTICS AUTHORITY,1015238594,74.83
Department of Health,BSUH NHS Trust,27-Apr-15,ALAC: Spares,Audiology,NHS LOGISTICS AUTHORITY,1015238594,361.75
Department of Health,BSUH NHS Trust,27-Apr-15,ALAC: Spares,Audiology,NHS LOGISTICS AUTHORITY,1015238594,140.33
Department of Health,BSUH NHS Trust,27-Apr-15,Sterile Products,"SOTC Theatres (SOTC,TH,0 Beds)",NHS LOGISTICS AUTHORITY,1015238594,1.33
Department of Health,BSUH NHS Trust,27-Apr-15,Sterile Products,"SOTC Theatres (SOTC,TH,0 Beds)",NHS LOGISTICS AUTHORITY,1015238594,0.7
Department of Health,BSUH NHS Trust,27-Apr-15,Sterile Products,"SOTC Theatres (SOTC,TH,0 Beds)",NHS LOGISTICS AUTHORITY,1015238594,3.5
Department of Health,BSUH NHS Trust,27-Apr-15,Sterile Products,"SOTC Theatres (SOTC,TH,0 Beds)",NHS LOGISTICS AUTHORITY,1015238594,6.67
Department of Health,BSUH NHS Trust,27-Apr-15,Bedding & Linen Non-Disp.,"SOTC Theatres (SOTC,TH,0 Beds)",NHS LOGISTICS AUTHORITY,1015238594,5.47
Department of Health,BSUH NHS Trust,27-Apr-15,Bedding & Linen Non-Disp.,"SOTC Theatres (SOTC,TH,0 Beds)",NHS LOGISTICS AUTHORITY,1015238594,27.33
Department of Health,BSUH NHS Trust,27-Apr-15,Consumables,Trauma and Orthopaedics - Trauma,NHS LOGISTICS AUTHORITY,1015238594,12.62
Department of Health,BSUH NHS Trust,27-Apr-15,Consumables,Trauma and Orthopaedics - Trauma,NHS LOGISTICS AUTHORITY,1015238594,126.93
Department of Health,BSUH NHS Trust,27-Apr-15,Consumables,Trauma and Orthopaedics - Trauma,NHS LOGISTICS AUTHORITY,1015238594,63.46
Department of Health,BSUH NHS Trust,27-Apr-15,Consumables,Trauma and Orthopaedics - Trauma,NHS LOGISTICS AUTHORITY,1015238594,63.1
Department of Health,BSUH NHS Trust,27-Apr-15,Consumables,Trauma and Orthopaedics - Trauma,NHS LOGISTICS AUTHORITY,1015238594,634.63
Department of Health,BSUH NHS Trust,27-Apr-15,Consumables,Trauma and Orthopaedics - Trauma,NHS LOGISTICS AUTHORITY,1015238594,317.32
Department of Health,BSUH NHS Trust,27-Apr-15,Bedding & Linen : Disposable,SOTC Newick Ward (31 beds: 27 ward + 4 Level 1),NHS LOGISTICS AUTHORITY,1015238594,0.35
Department of Health,BSUH NHS Trust,27-Apr-15,Bedding & Linen : Disposable,SOTC Newick Ward (31 beds: 27 ward + 4 Level 1),NHS LOGISTICS AUTHORITY,1015238594,1.84
Department of Health,BSUH NHS Trust,27-Apr-15,Bedding & Linen : Disposable,SOTC Newick Ward (31 beds: 27 ward + 4 Level 1),NHS LOGISTICS AUTHORITY,1015238594,0.21
Department of Health,BSUH NHS Trust,27-Apr-15,Bedding & Linen : Disposable,SOTC Newick Ward (31 beds: 27 ward + 4 Level 1),NHS LOGISTICS AUTHORITY,1015238594,9.2
Department of Health,BSUH NHS Trust,27-Apr-15,Bedding & Linen : Disposable,SOTC Newick Ward (31 beds: 27 ward + 4 Level 1),NHS LOGISTICS AUTHORITY,1015238594,1.05
Department of Health,BSUH NHS Trust,27-Apr-15,Bedding & Linen : Disposable,SOTC Newick Ward (31 beds: 27 ward + 4 Level 1),NHS LOGISTICS AUTHORITY,1015238594,1.77
Department of Health,BSUH NHS Trust,27-Apr-15,Laboratory Equipment,SOTC Newick Ward (31 beds: 27 ward + 4 Level 1),NHS LOGISTICS AUTHORITY,1015238594,0.44
Department of Health,BSUH NHS Trust,27-Apr-15,Laboratory Equipment,SOTC Newick Ward (31 beds: 27 ward + 4 Level 1),NHS LOGISTICS AUTHORITY,1015238594,2.18
Department of Health,BSUH NHS Trust,27-Apr-15,Dressings,SOTC Newick Ward (31 beds: 27 ward + 4 Level 1),NHS LOGISTICS AUTHORITY,1015238594,3.31
Department of Health,BSUH NHS Trust,27-Apr-15,Dressings,SOTC Newick Ward (31 beds: 27 ward + 4 Level 1),NHS LOGISTICS AUTHORITY,1015238594,1.5
Department of Health,BSUH NHS Trust,27-Apr-15,Patients Appliances : Purchase,"Emerald Ward (RSCH,IW,20 Beds)",NHS LOGISTICS AUTHORITY,1015238594,2.04
Department of Health,BSUH NHS Trust,27-Apr-15,Patients Appliances : Purchase,"Emerald Ward (RSCH,IW,20 Beds)",NHS LOGISTICS AUTHORITY,1015238594,10.2
Department of Health,BSUH NHS Trust,27-Apr-15,Provisions,"Emerald Ward (RSCH,IW,20 Beds)",NHS LOGISTICS AUTHORITY,1015238594,1.04
Department of Health,BSUH NHS Trust,27-Apr-15,Provisions,"Emerald Ward (RSCH,IW,20 Beds)",NHS LOGISTICS AUTHORITY,1015238594,5.22
Department of Health,BSUH NHS Trust,27-Apr-15,Staff Uniforms & Clothing,"Emerald Ward (RSCH,IW,20 Beds)",NHS LOGISTICS AUTHORITY,1015238594,0.99
Department of Health,BSUH NHS Trust,27-Apr-15,Staff Uniforms & Clothing,"Emerald Ward (RSCH,IW,20 Beds)",NHS LOGISTICS AUTHORITY,1015238594,4.94
Department of Health,BSUH NHS Trust,27-Apr-15,Patients Clothing,"Emerald Ward (RSCH,IW,20 Beds)",NHS LOGISTICS AUTHORITY,1015238594,4.97
Department of Health,BSUH NHS Trust,27-Apr-15,Patients Clothing,"Emerald Ward (RSCH,IW,20 Beds)",NHS LOGISTICS AUTHORITY,1015238594,4.65
Department of Health,BSUH NHS Trust,27-Apr-15,Patients Clothing,"Emerald Ward (RSCH,IW,20 Beds)",NHS LOGISTICS AUTHORITY,1015238594,24.87
Department of Health,BSUH NHS Trust,27-Apr-15,Patients Clothing,"Emerald Ward (RSCH,IW,20 Beds)",NHS LOGISTICS AUTHORITY,1015238594,23.27
Department of Health,BSUH NHS Trust,27-Apr-15,Cleaning Materials,"Emerald Ward (RSCH,IW,20 Beds)",NHS LOGISTICS AUTHORITY,1015238594,0.55
Department of Health,BSUH NHS Trust,27-Apr-15,Cleaning Materials,"Emerald Ward (RSCH,IW,20 Beds)",NHS LOGISTICS AUTHORITY,1015238594,3.33
Department of Health,BSUH NHS Trust,27-Apr-15,Cleaning Materials,"Emerald Ward (RSCH,IW,20 Beds)",NHS LOGISTICS AUTHORITY,1015238594,1.13
Department of Health,BSUH NHS Trust,27-Apr-15,Cleaning Materials,"Emerald Ward (RSCH,IW,20 Beds)",NHS LOGISTICS AUTHORITY,1015238594,1.2
Department of Health,BSUH NHS Trust,27-Apr-15,Cleaning Materials,"Emerald Ward (RSCH,IW,20 Beds)",NHS LOGISTICS AUTHORITY,1015238594,4.75
Department of Health,BSUH NHS Trust,27-Apr-15,Cleaning Materials,"Emerald Ward (RSCH,IW,20 Beds)",NHS LOGISTICS AUTHORITY,1015238594,23.75
Department of Health,BSUH NHS Trust,27-Apr-15,Cleaning Materials,"Emerald Ward (RSCH,IW,20 Beds)",NHS LOGISTICS AUTHORITY,1015238594,16.63
Department of Health,BSUH NHS Trust,27-Apr-15,Cleaning Materials,"Emerald Ward (RSCH,IW,20 Beds)",NHS LOGISTICS AUTHORITY,1015238594,5.65
Department of Health,BSUH NHS Trust,27-Apr-15,Cleaning Materials,"Emerald Ward (RSCH,IW,20 Beds)",NHS LOGISTICS AUTHORITY,1015238594,2.73
Department of Health,BSUH NHS Trust,27-Apr-15,Cleaning Materials,"Emerald Ward (RSCH,IW,20 Beds)",NHS LOGISTICS AUTHORITY,1015238594,6
Department of Health,BSUH NHS Trust,27-Apr-15,Bedding & Linen : Disposable,"Emerald Ward (RSCH,IW,20 Beds)",NHS LOGISTICS AUTHORITY,1015238594,5.6
Department of Health,BSUH NHS Trust,27-Apr-15,Bedding & Linen : Disposable,"Emerald Ward (RSCH,IW,20 Beds)",NHS LOGISTICS AUTHORITY,1015238594,1.84
Department of Health,BSUH NHS Trust,27-Apr-15,Bedding & Linen : Disposable,"Emerald Ward (RSCH,IW,20 Beds)",NHS LOGISTICS AUTHORITY,1015238594,0.61
Department of Health,BSUH NHS Trust,27-Apr-15,Bedding & Linen : Disposable,"Emerald Ward (RSCH,IW,20 Beds)",NHS LOGISTICS AUTHORITY,1015238594,9.2
Department of Health,BSUH NHS Trust,27-Apr-15,Bedding & Linen : Disposable,"Emerald Ward (RSCH,IW,20 Beds)",NHS LOGISTICS AUTHORITY,1015238594,28
Department of Health,BSUH NHS Trust,27-Apr-15,Bedding & Linen : Disposable,"Emerald Ward (RSCH,IW,20 Beds)",NHS LOGISTICS AUTHORITY,1015238594,3.07
Department of Health,BSUH NHS Trust,27-Apr-15,M&S Equipment : General,SRC,NHS LOGISTICS AUTHORITY,1015238594,31.61
Department of Health,BSUH NHS Trust,27-Apr-15,M&S Equipment : General,SRC,NHS LOGISTICS AUTHORITY,1015238594,158.05
Department of Health,BSUH NHS Trust,27-Apr-15,Prosthesis,"SOTC Theatres (SOTC,TH,0 Beds)",NHS LOGISTICS AUTHORITY,1015238594,61.85
Department of Health,BSUH NHS Trust,27-Apr-15,Prosthesis,"SOTC Theatres (SOTC,TH,0 Beds)",NHS LOGISTICS AUTHORITY,1015238594,309.27
Department of Health,BSUH NHS Trust,27-Apr-15,Dressings,"Gynaecology Outpatients (RAH,OP, Beds)",NHS LOGISTICS AUTHORITY,1015238594,13.96
Department of Health,BSUH NHS Trust,27-Apr-15,Dressings,"Gynaecology Outpatients (RAH,OP, Beds)",NHS LOGISTICS AUTHORITY,1015238594,55.6
Department of Health,BSUH NHS Trust,27-Apr-15,Dressings,"Gynaecology Outpatients (RAH,OP, Beds)",NHS LOGISTICS AUTHORITY,1015238594,14.22
Department of Health,BSUH NHS Trust,27-Apr-15,Hardware & Crockery,"Gynaecology Outpatients (RAH,OP, Beds)",NHS LOGISTICS AUTHORITY,1015238594,2.45
Department of Health,BSUH NHS Trust,27-Apr-15,Hardware & Crockery,"Gynaecology Outpatients (RAH,OP, Beds)",NHS LOGISTICS AUTHORITY,1015238594,12.25
Department of Health,BSUH NHS Trust,27-Apr-15,Cleaning Materials,"Gynaecology Outpatients (RAH,OP, Beds)",NHS LOGISTICS AUTHORITY,1015238594,0.87
Department of Health,BSUH NHS Trust,27-Apr-15,Cleaning Materials,"Gynaecology Outpatients (RAH,OP, Beds)",NHS LOGISTICS AUTHORITY,1015238594,2.08
Department of Health,BSUH NHS Trust,27-Apr-15,Cleaning Materials,"Gynaecology Outpatients (RAH,OP, Beds)",NHS LOGISTICS AUTHORITY,1015238594,4.34
Department of Health,BSUH NHS Trust,27-Apr-15,Cleaning Materials,"Gynaecology Outpatients (RAH,OP, Beds)",NHS LOGISTICS AUTHORITY,1015238594,10.4
Department of Health,BSUH NHS Trust,27-Apr-15,Laboratory Equipment,"Gynaecology Outpatients (RAH,OP, Beds)",NHS LOGISTICS AUTHORITY,1015238594,1.15
Department of Health,BSUH NHS Trust,27-Apr-15,Laboratory Equipment,"Gynaecology Outpatients (RAH,OP, Beds)",NHS LOGISTICS AUTHORITY,1015238594,5.73
Department of Health,BSUH NHS Trust,27-Apr-15,Hardware & Crockery,"Emerald Ward (RSCH,IW,20 Beds)",NHS LOGISTICS AUTHORITY,1015238594,0.36
Department of Health,BSUH NHS Trust,27-Apr-15,Hardware & Crockery,"Emerald Ward (RSCH,IW,20 Beds)",NHS LOGISTICS AUTHORITY,1015238594,1.2
Department of Health,BSUH NHS Trust,27-Apr-15,Hardware & Crockery,"Emerald Ward (RSCH,IW,20 Beds)",NHS LOGISTICS AUTHORITY,1015238594,0.62
Department of Health,BSUH NHS Trust,27-Apr-15,M&S Equipment : General,"SOTC Theatres (SOTC,TH,0 Beds)",NHS LOGISTICS AUTHORITY,1015238594,4.13
Department of Health,BSUH NHS Trust,27-Apr-15,M&S Equipment : General,"SOTC Theatres (SOTC,TH,0 Beds)",NHS LOGISTICS AUTHORITY,1015238594,10.86
Department of Health,BSUH NHS Trust,27-Apr-15,M&S Equipment : General,"SOTC Theatres (SOTC,TH,0 Beds)",NHS LOGISTICS AUTHORITY,1015238594,2.89
Department of Health,BSUH NHS Trust,27-Apr-15,M&S Equipment : General,"SOTC Theatres (SOTC,TH,0 Beds)",NHS LOGISTICS AUTHORITY,1015238594,2.89
Department of Health,BSUH NHS Trust,27-Apr-15,M&S Equipment : General,"SOTC Theatres (SOTC,TH,0 Beds)",NHS LOGISTICS AUTHORITY,1015238594,54.3
Department of Health,BSUH NHS Trust,27-Apr-15,M&S Equipment : General,"SOTC Theatres (SOTC,TH,0 Beds)",NHS LOGISTICS AUTHORITY,1015238594,20.67
Department of Health,BSUH NHS Trust,27-Apr-15,M&S Equipment : General,"SOTC Theatres (SOTC,TH,0 Beds)",NHS LOGISTICS AUTHORITY,1015238594,14.45
Department of Health,BSUH NHS Trust,27-Apr-15,M&S Equipment : General,"SOTC Theatres (SOTC,TH,0 Beds)",NHS LOGISTICS AUTHORITY,1015238594,14.45
Department of Health,BSUH NHS Trust,27-Apr-15,M&S Equipment : Disposable,"SOTC Theatres (SOTC,TH,0 Beds)",NHS LOGISTICS AUTHORITY,1015238594,4.83
Department of Health,BSUH NHS Trust,27-Apr-15,M&S Equipment : Disposable,"SOTC Theatres (SOTC,TH,0 Beds)",NHS LOGISTICS AUTHORITY,1015238594,23.14
Department of Health,BSUH NHS Trust,27-Apr-15,M&S Equipment : Disposable,"SOTC Theatres (SOTC,TH,0 Beds)",NHS LOGISTICS AUTHORITY,1015238594,2.15
Department of Health,BSUH NHS Trust,27-Apr-15,M&S Equipment : Disposable,"SOTC Theatres (SOTC,TH,0 Beds)",NHS LOGISTICS AUTHORITY,1015238594,19.27
Department of Health,BSUH NHS Trust,27-Apr-15,M&S Equipment : Disposable,"SOTC Theatres (SOTC,TH,0 Beds)",NHS LOGISTICS AUTHORITY,1015238594,9.63
Department of Health,BSUH NHS Trust,27-Apr-15,M&S Equipment : Disposable,"SOTC Theatres (SOTC,TH,0 Beds)",NHS LOGISTICS AUTHORITY,1015238594,19.27
Department of Health,BSUH NHS Trust,27-Apr-15,M&S Equipment : Disposable,"SOTC Theatres (SOTC,TH,0 Beds)",NHS LOGISTICS AUTHORITY,1015238594,19.27
Department of Health,BSUH NHS Trust,27-Apr-15,M&S Equipment : Disposable,"SOTC Theatres (SOTC,TH,0 Beds)",NHS LOGISTICS AUTHORITY,1015238594,19.27
Department of Health,BSUH NHS Trust,27-Apr-15,M&S Equipment : Disposable,"SOTC Theatres (SOTC,TH,0 Beds)",NHS LOGISTICS AUTHORITY,1015238594,4.74
Department of Health,BSUH NHS Trust,27-Apr-15,M&S Equipment : Disposable,"SOTC Theatres (SOTC,TH,0 Beds)",NHS LOGISTICS AUTHORITY,1015238594,17.86
Department of Health,BSUH NHS Trust,27-Apr-15,M&S Equipment : Disposable,"SOTC Theatres (SOTC,TH,0 Beds)",NHS LOGISTICS AUTHORITY,1015238594,17.86
Department of Health,BSUH NHS Trust,27-Apr-15,M&S Equipment : Disposable,"SOTC Theatres (SOTC,TH,0 Beds)",NHS LOGISTICS AUTHORITY,1015238594,23.72
Department of Health,BSUH NHS Trust,27-Apr-15,Hearing Aids : Purchases,"Theatres (PRH) (PRH,TH,0 Beds)",NHS LOGISTICS AUTHORITY,1015238594,6.4
Department of Health,BSUH NHS Trust,27-Apr-15,Hearing Aids : Purchases,"Theatres (PRH) (PRH,TH,0 Beds)",NHS LOGISTICS AUTHORITY,1015238594,11.91
Department of Health,BSUH NHS Trust,27-Apr-15,Hearing Aids : Purchases,"Theatres (PRH) (PRH,TH,0 Beds)",NHS LOGISTICS AUTHORITY,1015238594,31.98
Department of Health,BSUH NHS Trust,27-Apr-15,Hearing Aids : Purchases,"Theatres (PRH) (PRH,TH,0 Beds)",NHS LOGISTICS AUTHORITY,1015238594,59.54
Department of Health,BSUH NHS Trust,27-Apr-15,Dressings,"Emerald Ward (RSCH,IW,20 Beds)",NHS LOGISTICS AUTHORITY,1015238594,0.45
Department of Health,BSUH NHS Trust,27-Apr-15,Dressings,"Emerald Ward (RSCH,IW,20 Beds)",NHS LOGISTICS AUTHORITY,1015238594,1.05
Department of Health,BSUH NHS Trust,27-Apr-15,Dressings,"Emerald Ward (RSCH,IW,20 Beds)",NHS LOGISTICS AUTHORITY,1015238594,3.98
Department of Health,BSUH NHS Trust,27-Apr-15,Dressings,"Emerald Ward (RSCH,IW,20 Beds)",NHS LOGISTICS AUTHORITY,1015238594,2.7
Department of Health,BSUH NHS Trust,27-Apr-15,Dressings,"Emerald Ward (RSCH,IW,20 Beds)",NHS LOGISTICS AUTHORITY,1015238594,1.42
Department of Health,BSUH NHS Trust,27-Apr-15,Dressings,"Emerald Ward (RSCH,IW,20 Beds)",NHS LOGISTICS AUTHORITY,1015238594,3.74
Department of Health,BSUH NHS Trust,27-Apr-15,Dressings,"Emerald Ward (RSCH,IW,20 Beds)",NHS LOGISTICS AUTHORITY,1015238594,1.32
Department of Health,BSUH NHS Trust,27-Apr-15,Dressings,"Emerald Ward (RSCH,IW,20 Beds)",NHS LOGISTICS AUTHORITY,1015238594,9.39
Department of Health,BSUH NHS Trust,27-Apr-15,Dressings,"Emerald Ward (RSCH,IW,20 Beds)",NHS LOGISTICS AUTHORITY,1015238594,0.78
Department of Health,BSUH NHS Trust,27-Apr-15,Dressings,"Emerald Ward (RSCH,IW,20 Beds)",NHS LOGISTICS AUTHORITY,1015238594,0.61
Department of Health,BSUH NHS Trust,27-Apr-15,Dressings,"Emerald Ward (RSCH,IW,20 Beds)",NHS LOGISTICS AUTHORITY,1015238594,0.7
Department of Health,BSUH NHS Trust,27-Apr-15,Dressings,"Emerald Ward (RSCH,IW,20 Beds)",NHS LOGISTICS AUTHORITY,1015238594,3.07
Department of Health,BSUH NHS Trust,27-Apr-15,Dressings,"Emerald Ward (RSCH,IW,20 Beds)",NHS LOGISTICS AUTHORITY,1015238594,3.5
Department of Health,BSUH NHS Trust,27-Apr-15,Dressings,"Emerald Ward (RSCH,IW,20 Beds)",NHS LOGISTICS AUTHORITY,1015238594,3.89
Department of Health,BSUH NHS Trust,27-Apr-15,Dressings,"Emerald Ward (RSCH,IW,20 Beds)",NHS LOGISTICS AUTHORITY,1015238594,19.88
Department of Health,BSUH NHS Trust,27-Apr-15,Dressings,"Emerald Ward (RSCH,IW,20 Beds)",NHS LOGISTICS AUTHORITY,1015238594,13.52
Department of Health,BSUH NHS Trust,27-Apr-15,Dressings,"Emerald Ward (RSCH,IW,20 Beds)",NHS LOGISTICS AUTHORITY,1015238594,46.97
Department of Health,BSUH NHS Trust,27-Apr-15,Dressings,"Emerald Ward (RSCH,IW,20 Beds)",NHS LOGISTICS AUTHORITY,1015238594,18.7
Department of Health,BSUH NHS Trust,27-Apr-15,Dressings,"Emerald Ward (RSCH,IW,20 Beds)",NHS LOGISTICS AUTHORITY,1015238594,7.11
Department of Health,BSUH NHS Trust,27-Apr-15,Dressings,"Emerald Ward (RSCH,IW,20 Beds)",NHS LOGISTICS AUTHORITY,1015238594,6.62
Department of Health,BSUH NHS Trust,27-Apr-15,Dressings,"Emerald Ward (RSCH,IW,20 Beds)",NHS LOGISTICS AUTHORITY,1015238594,2.23
Department of Health,BSUH NHS Trust,27-Apr-15,Dressings,"Emerald Ward (RSCH,IW,20 Beds)",NHS LOGISTICS AUTHORITY,1015238594,5.23
Department of Health,BSUH NHS Trust,27-Apr-15,M&S Equipment : General,"Emerald Ward (RSCH,IW,20 Beds)",NHS LOGISTICS AUTHORITY,1015238594,4.55
Department of Health,BSUH NHS Trust,27-Apr-15,M&S Equipment : General,"Emerald Ward (RSCH,IW,20 Beds)",NHS LOGISTICS AUTHORITY,1015238594,0.28
Department of Health,BSUH NHS Trust,27-Apr-15,M&S Equipment : General,"Emerald Ward (RSCH,IW,20 Beds)",NHS LOGISTICS AUTHORITY,1015238594,1.55
Department of Health,BSUH NHS Trust,27-Apr-15,M&S Equipment : General,"Emerald Ward (RSCH,IW,20 Beds)",NHS LOGISTICS AUTHORITY,1015238594,0.28
Department of Health,BSUH NHS Trust,27-Apr-15,M&S Equipment : General,"Emerald Ward (RSCH,IW,20 Beds)",NHS LOGISTICS AUTHORITY,1015238594,4.14
Department of Health,BSUH NHS Trust,27-Apr-15,M&S Equipment : General,"Emerald Ward (RSCH,IW,20 Beds)",NHS LOGISTICS AUTHORITY,1015238594,1
Department of Health,BSUH NHS Trust,27-Apr-15,M&S Equipment : General,"Emerald Ward (RSCH,IW,20 Beds)",NHS LOGISTICS AUTHORITY,1015238594,17.16
Department of Health,BSUH NHS Trust,27-Apr-15,M&S Equipment : General,"Emerald Ward (RSCH,IW,20 Beds)",NHS LOGISTICS AUTHORITY,1015238594,1.17
Department of Health,BSUH NHS Trust,27-Apr-15,M&S Equipment : General,"Emerald Ward (RSCH,IW,20 Beds)",NHS LOGISTICS AUTHORITY,1015238594,1.7
Department of Health,BSUH NHS Trust,27-Apr-15,M&S Equipment : General,"Emerald Ward (RSCH,IW,20 Beds)",NHS LOGISTICS AUTHORITY,1015238594,2.15
Department of Health,BSUH NHS Trust,27-Apr-15,M&S Equipment : General,"Emerald Ward (RSCH,IW,20 Beds)",NHS LOGISTICS AUTHORITY,1015238594,2.15
Department of Health,BSUH NHS Trust,27-Apr-15,M&S Equipment : General,"Emerald Ward (RSCH,IW,20 Beds)",NHS LOGISTICS AUTHORITY,1015238594,2.18
Department of Health,BSUH NHS Trust,27-Apr-15,M&S Equipment : General,"Emerald Ward (RSCH,IW,20 Beds)",NHS LOGISTICS AUTHORITY,1015238594,0.4
Department of Health,BSUH NHS Trust,27-Apr-15,M&S Equipment : General,"Emerald Ward (RSCH,IW,20 Beds)",NHS LOGISTICS AUTHORITY,1015238594,0.19
Department of Health,BSUH NHS Trust,27-Apr-15,M&S Equipment : General,"Emerald Ward (RSCH,IW,20 Beds)",NHS LOGISTICS AUTHORITY,1015238594,0.9
Department of Health,BSUH NHS Trust,27-Apr-15,M&S Equipment : General,"Emerald Ward (RSCH,IW,20 Beds)",NHS LOGISTICS AUTHORITY,1015238594,0.4
Department of Health,BSUH NHS Trust,27-Apr-15,M&S Equipment : General,"Emerald Ward (RSCH,IW,20 Beds)",NHS LOGISTICS AUTHORITY,1015238594,2.79
Department of Health,BSUH NHS Trust,27-Apr-15,M&S Equipment : General,"Emerald Ward (RSCH,IW,20 Beds)",NHS LOGISTICS AUTHORITY,1015238594,0.28
Department of Health,BSUH NHS Trust,27-Apr-15,M&S Equipment : General,"Emerald Ward (RSCH,IW,20 Beds)",NHS LOGISTICS AUTHORITY,1015238594,0.23
Department of Health,BSUH NHS Trust,27-Apr-15,M&S Equipment : General,"Emerald Ward (RSCH,IW,20 Beds)",NHS LOGISTICS AUTHORITY,1015238594,13.95
Department of Health,BSUH NHS Trust,27-Apr-15,M&S Equipment : General,"Emerald Ward (RSCH,IW,20 Beds)",NHS LOGISTICS AUTHORITY,1015238594,1.17
Department of Health,BSUH NHS Trust,27-Apr-15,M&S Equipment : General,"Emerald Ward (RSCH,IW,20 Beds)",NHS LOGISTICS AUTHORITY,1015238594,0.93
Department of Health,BSUH NHS Trust,27-Apr-15,M&S Equipment : General,"Emerald Ward (RSCH,IW,20 Beds)",NHS LOGISTICS AUTHORITY,1015238594,1.98
Department of Health,BSUH NHS Trust,27-Apr-15,M&S Equipment : General,"Emerald Ward (RSCH,IW,20 Beds)",NHS LOGISTICS AUTHORITY,1015238594,7.73
Department of Health,BSUH NHS Trust,27-Apr-15,M&S Equipment : General,"Emerald Ward (RSCH,IW,20 Beds)",NHS LOGISTICS AUTHORITY,1015238594,5.85
Department of Health,BSUH NHS Trust,27-Apr-15,M&S Equipment : General,"Emerald Ward (RSCH,IW,20 Beds)",NHS LOGISTICS AUTHORITY,1015238594,4.52
Department of Health,BSUH NHS Trust,27-Apr-15,M&S Equipment : General,"Emerald Ward (RSCH,IW,20 Beds)",NHS LOGISTICS AUTHORITY,1015238594,85.8
Department of Health,BSUH NHS Trust,27-Apr-15,M&S Equipment : General,"Emerald Ward (RSCH,IW,20 Beds)",NHS LOGISTICS AUTHORITY,1015238594,1.38
Department of Health,BSUH NHS Trust,27-Apr-15,M&S Equipment : General,"Emerald Ward (RSCH,IW,20 Beds)",NHS LOGISTICS AUTHORITY,1015238594,1.38
Department of Health,BSUH NHS Trust,27-Apr-15,M&S Equipment : General,"Emerald Ward (RSCH,IW,20 Beds)",NHS LOGISTICS AUTHORITY,1015238594,1.38
Department of Health,BSUH NHS Trust,27-Apr-15,M&S Equipment : General,"Emerald Ward (RSCH,IW,20 Beds)",NHS LOGISTICS AUTHORITY,1015238594,5
Department of Health,BSUH NHS Trust,27-Apr-15,M&S Equipment : General,"Emerald Ward (RSCH,IW,20 Beds)",NHS LOGISTICS AUTHORITY,1015238594,8.5
Department of Health,BSUH NHS Trust,27-Apr-15,M&S Equipment : General,"Emerald Ward (RSCH,IW,20 Beds)",NHS LOGISTICS AUTHORITY,1015238594,10.76
Department of Health,BSUH NHS Trust,27-Apr-15,M&S Equipment : General,"Emerald Ward (RSCH,IW,20 Beds)",NHS LOGISTICS AUTHORITY,1015238594,10.76
Department of Health,BSUH NHS Trust,27-Apr-15,M&S Equipment : General,"Emerald Ward (RSCH,IW,20 Beds)",NHS LOGISTICS AUTHORITY,1015238594,22.73
Department of Health,BSUH NHS Trust,27-Apr-15,M&S Equipment : General,"Emerald Ward (RSCH,IW,20 Beds)",NHS LOGISTICS AUTHORITY,1015238594,10.88
Department of Health,BSUH NHS Trust,27-Apr-15,M&S Equipment : General,"Emerald Ward (RSCH,IW,20 Beds)",NHS LOGISTICS AUTHORITY,1015238594,20.7
Department of Health,BSUH NHS Trust,27-Apr-15,M&S Equipment : General,"Emerald Ward (RSCH,IW,20 Beds)",NHS LOGISTICS AUTHORITY,1015238594,2
Department of Health,BSUH NHS Trust,27-Apr-15,M&S Equipment : General,"A&E Nursing - PRH (PRH,ED,0 Beds)",NHS LOGISTICS AUTHORITY,1015238594,8.26
Department of Health,BSUH NHS Trust,27-Apr-15,M&S Equipment : General,"A&E Nursing - PRH (PRH,ED,0 Beds)",NHS LOGISTICS AUTHORITY,1015238594,10.76
Department of Health,BSUH NHS Trust,27-Apr-15,M&S Equipment : General,"A&E Nursing - PRH (PRH,ED,0 Beds)",NHS LOGISTICS AUTHORITY,1015238594,145.27
Department of Health,BSUH NHS Trust,27-Apr-15,M&S Equipment : General,"A&E Nursing - PRH (PRH,ED,0 Beds)",NHS LOGISTICS AUTHORITY,1015238594,4.53
Department of Health,BSUH NHS Trust,27-Apr-15,M&S Equipment : General,"A&E Nursing - PRH (PRH,ED,0 Beds)",NHS LOGISTICS AUTHORITY,1015238594,22.73
Department of Health,BSUH NHS Trust,27-Apr-15,M&S Equipment : General,"A&E Nursing - PRH (PRH,ED,0 Beds)",NHS LOGISTICS AUTHORITY,1015238594,20.83
Department of Health,BSUH NHS Trust,27-Apr-15,M&S Equipment : General,"A&E Nursing - PRH (PRH,ED,0 Beds)",NHS LOGISTICS AUTHORITY,1015238594,23.13
Department of Health,BSUH NHS Trust,27-Apr-15,M&S Equipment : General,"A&E Nursing - PRH (PRH,ED,0 Beds)",NHS LOGISTICS AUTHORITY,1015238594,23.13
Department of Health,BSUH NHS Trust,27-Apr-15,M&S Equipment : General,"A&E Nursing - PRH (PRH,ED,0 Beds)",NHS LOGISTICS AUTHORITY,1015238594,11.67
Department of Health,BSUH NHS Trust,27-Apr-15,M&S Equipment : General,"A&E Nursing - PRH (PRH,ED,0 Beds)",NHS LOGISTICS AUTHORITY,1015238594,11.67
Department of Health,BSUH NHS Trust,27-Apr-15,M&S Equipment : General,"A&E Nursing - PRH (PRH,ED,0 Beds)",NHS LOGISTICS AUTHORITY,1015238594,0.48
Department of Health,BSUH NHS Trust,27-Apr-15,M&S Equipment : General,"A&E Nursing - PRH (PRH,ED,0 Beds)",NHS LOGISTICS AUTHORITY,1015238594,12.22
Department of Health,BSUH NHS Trust,27-Apr-15,M&S Equipment : General,"A&E Nursing - PRH (PRH,ED,0 Beds)",NHS LOGISTICS AUTHORITY,1015238594,15.75
Department of Health,BSUH NHS Trust,27-Apr-15,M&S Equipment : General,"A&E Nursing - PRH (PRH,ED,0 Beds)",NHS LOGISTICS AUTHORITY,1015238594,2.92
Department of Health,BSUH NHS Trust,27-Apr-15,M&S Equipment : General,"A&E Nursing - PRH (PRH,ED,0 Beds)",NHS LOGISTICS AUTHORITY,1015238594,0.63
Department of Health,BSUH NHS Trust,27-Apr-15,M&S Equipment : General,"A&E Nursing - PRH (PRH,ED,0 Beds)",NHS LOGISTICS AUTHORITY,1015238594,2.5
Department of Health,BSUH NHS Trust,27-Apr-15,M&S Equipment : General,"A&E Nursing - PRH (PRH,ED,0 Beds)",NHS LOGISTICS AUTHORITY,1015238594,6
Department of Health,BSUH NHS Trust,27-Apr-15,M&S Equipment : General,"A&E Nursing - PRH (PRH,ED,0 Beds)",NHS LOGISTICS AUTHORITY,1015238594,3.17
Department of Health,BSUH NHS Trust,27-Apr-15,Dressings,"A&E Nursing - PRH (PRH,ED,0 Beds)",NHS LOGISTICS AUTHORITY,1015238594,0.07
Department of Health,BSUH NHS Trust,27-Apr-15,Dressings,"A&E Nursing - PRH (PRH,ED,0 Beds)",NHS LOGISTICS AUTHORITY,1015238594,0.91
Department of Health,BSUH NHS Trust,27-Apr-15,Dressings,"A&E Nursing - PRH (PRH,ED,0 Beds)",NHS LOGISTICS AUTHORITY,1015238594,0.86
Department of Health,BSUH NHS Trust,27-Apr-15,Dressings,"A&E Nursing - PRH (PRH,ED,0 Beds)",NHS LOGISTICS AUTHORITY,1015238594,3.09
Department of Health,BSUH NHS Trust,27-Apr-15,Dressings,"A&E Nursing - PRH (PRH,ED,0 Beds)",NHS LOGISTICS AUTHORITY,1015238594,0.59
Department of Health,BSUH NHS Trust,27-Apr-15,Dressings,"A&E Nursing - PRH (PRH,ED,0 Beds)",NHS LOGISTICS AUTHORITY,1015238594,1.97
Department of Health,BSUH NHS Trust,27-Apr-15,Dressings,"A&E Nursing - PRH (PRH,ED,0 Beds)",NHS LOGISTICS AUTHORITY,1015238594,0.41
Department of Health,BSUH NHS Trust,27-Apr-15,Dressings,"A&E Nursing - PRH (PRH,ED,0 Beds)",NHS LOGISTICS AUTHORITY,1015238594,1.25
Department of Health,BSUH NHS Trust,27-Apr-15,Dressings,"A&E Nursing - PRH (PRH,ED,0 Beds)",NHS LOGISTICS AUTHORITY,1015238594,1.5
Department of Health,BSUH NHS Trust,27-Apr-15,Dressings,"A&E Nursing - PRH (PRH,ED,0 Beds)",NHS LOGISTICS AUTHORITY,1015238594,8.28
Department of Health,BSUH NHS Trust,27-Apr-15,Dressings,"A&E Nursing - PRH (PRH,ED,0 Beds)",NHS LOGISTICS AUTHORITY,1015238594,2.06
Department of Health,BSUH NHS Trust,27-Apr-15,Dressings,"A&E Nursing - PRH (PRH,ED,0 Beds)",NHS LOGISTICS AUTHORITY,1015238594,41.38
Department of Health,BSUH NHS Trust,27-Apr-15,Dressings,"A&E Nursing - PRH (PRH,ED,0 Beds)",NHS LOGISTICS AUTHORITY,1015238594,6.23
Department of Health,BSUH NHS Trust,27-Apr-15,Dressings,"A&E Nursing - PRH (PRH,ED,0 Beds)",NHS LOGISTICS AUTHORITY,1015238594,15.43
Department of Health,BSUH NHS Trust,27-Apr-15,Dressings,"A&E Nursing - PRH (PRH,ED,0 Beds)",NHS LOGISTICS AUTHORITY,1015238594,4.55
Department of Health,BSUH NHS Trust,27-Apr-15,Dressings,"A&E Nursing - PRH (PRH,ED,0 Beds)",NHS LOGISTICS AUTHORITY,1015238594,0.35
Department of Health,BSUH NHS Trust,27-Apr-15,Dressings,"A&E Nursing - PRH (PRH,ED,0 Beds)",NHS LOGISTICS AUTHORITY,1015238594,7.5
Department of Health,BSUH NHS Trust,27-Apr-15,Dressings,"A&E Nursing - PRH (PRH,ED,0 Beds)",NHS LOGISTICS AUTHORITY,1015238594,4.28
Department of Health,BSUH NHS Trust,27-Apr-15,Dressings,"A&E Nursing - PRH (PRH,ED,0 Beds)",NHS LOGISTICS AUTHORITY,1015238594,2.94
Department of Health,BSUH NHS Trust,27-Apr-15,Dressings,"A&E Nursing - PRH (PRH,ED,0 Beds)",NHS LOGISTICS AUTHORITY,1015238594,9.83
Department of Health,BSUH NHS Trust,27-Apr-15,Cleaning Materials,"A&E Nursing - PRH (PRH,ED,0 Beds)",NHS LOGISTICS AUTHORITY,1015238594,16.56
Department of Health,BSUH NHS Trust,27-Apr-15,Cleaning Materials,"A&E Nursing - PRH (PRH,ED,0 Beds)",NHS LOGISTICS AUTHORITY,1015238594,0.75
Department of Health,BSUH NHS Trust,27-Apr-15,Cleaning Materials,"A&E Nursing - PRH (PRH,ED,0 Beds)",NHS LOGISTICS AUTHORITY,1015238594,82.78
Department of Health,BSUH NHS Trust,27-Apr-15,Cleaning Materials,"A&E Nursing - PRH (PRH,ED,0 Beds)",NHS LOGISTICS AUTHORITY,1015238594,3.77
Department of Health,BSUH NHS Trust,27-Apr-15,Bedding & Linen : Disposable,"A&E Nursing - PRH (PRH,ED,0 Beds)",NHS LOGISTICS AUTHORITY,1015238594,3.57
Department of Health,BSUH NHS Trust,27-Apr-15,Bedding & Linen : Disposable,"A&E Nursing - PRH (PRH,ED,0 Beds)",NHS LOGISTICS AUTHORITY,1015238594,1.73
Department of Health,BSUH NHS Trust,27-Apr-15,Bedding & Linen : Disposable,"A&E Nursing - PRH (PRH,ED,0 Beds)",NHS LOGISTICS AUTHORITY,1015238594,17.87
Department of Health,BSUH NHS Trust,27-Apr-15,Bedding & Linen : Disposable,"A&E Nursing - PRH (PRH,ED,0 Beds)",NHS LOGISTICS AUTHORITY,1015238594,8.65
Department of Health,BSUH NHS Trust,27-Apr-15,Laboratory Equipment,"A&E Nursing - PRH (PRH,ED,0 Beds)",NHS LOGISTICS AUTHORITY,1015238594,2.61
Department of Health,BSUH NHS Trust,27-Apr-15,Laboratory Equipment,"A&E Nursing - PRH (PRH,ED,0 Beds)",NHS LOGISTICS AUTHORITY,1015238594,3.4
Department of Health,BSUH NHS Trust,27-Apr-15,Laboratory Equipment,"A&E Nursing - PRH (PRH,ED,0 Beds)",NHS LOGISTICS AUTHORITY,1015238594,3.4
Department of Health,BSUH NHS Trust,27-Apr-15,Laboratory Equipment,"A&E Nursing - PRH (PRH,ED,0 Beds)",NHS LOGISTICS AUTHORITY,1015238594,17.02
Department of Health,BSUH NHS Trust,27-Apr-15,Laboratory Equipment,"A&E Nursing - PRH (PRH,ED,0 Beds)",NHS LOGISTICS AUTHORITY,1015238594,17.02
Department of Health,BSUH NHS Trust,27-Apr-15,Laboratory Equipment,"A&E Nursing - PRH (PRH,ED,0 Beds)",NHS LOGISTICS AUTHORITY,1015238594,13.03
Department of Health,BSUH NHS Trust,27-Apr-15,Hardware & Crockery,"A&E Nursing - PRH (PRH,ED,0 Beds)",NHS LOGISTICS AUTHORITY,1015238594,1.47
Department of Health,BSUH NHS Trust,27-Apr-15,Hardware & Crockery,"A&E Nursing - PRH (PRH,ED,0 Beds)",NHS LOGISTICS AUTHORITY,1015238594,7.35
Department of Health,BSUH NHS Trust,27-Apr-15,M&S Equipment : General,"Dermatology Nursing (BGH,CNS, 0 Beds)",NHS LOGISTICS AUTHORITY,1015238594,16.93
Department of Health,BSUH NHS Trust,27-Apr-15,M&S Equipment : General,"Dermatology Nursing (BGH,CNS, 0 Beds)",NHS LOGISTICS AUTHORITY,1015238594,84.67
Department of Health,BSUH NHS Trust,27-Apr-15,Laboratory Chemicals,"Horsted Keynes - Gynae Ward (PRH,IW,12 Beds)",NHS LOGISTICS AUTHORITY,1015238594,5.42
Department of Health,BSUH NHS Trust,27-Apr-15,Laboratory Chemicals,"Horsted Keynes - Gynae Ward (PRH,IW,12 Beds)",NHS LOGISTICS AUTHORITY,1015238594,27.08
Department of Health,BSUH NHS Trust,27-Apr-15,Cleaning Materials,Occupational Therapy,NHS LOGISTICS AUTHORITY,1015238594,1.13
Department of Health,BSUH NHS Trust,27-Apr-15,Cleaning Materials,Occupational Therapy,NHS LOGISTICS AUTHORITY,1015238594,5.65
Department of Health,BSUH NHS Trust,27-Apr-15,ANAES : Accessories & Equip.,"Pyecombe Ward (27 beds) (PRH,IW,27 Beds)",NHS LOGISTICS AUTHORITY,1015238594,33.14
Department of Health,BSUH NHS Trust,27-Apr-15,ANAES : Accessories & Equip.,"Pyecombe Ward (27 beds) (PRH,IW,27 Beds)",NHS LOGISTICS AUTHORITY,1015238594,0.9
Department of Health,BSUH NHS Trust,27-Apr-15,ANAES : Accessories & Equip.,"Pyecombe Ward (27 beds) (PRH,IW,27 Beds)",NHS LOGISTICS AUTHORITY,1015238594,165.71
Department of Health,BSUH NHS Trust,27-Apr-15,ANAES : Accessories & Equip.,"Pyecombe Ward (27 beds) (PRH,IW,27 Beds)",NHS LOGISTICS AUTHORITY,1015238594,4.5
Department of Health,BSUH NHS Trust,27-Apr-15,Provisions,"Level 8A West (RSCH,IW,32 Beds)",NHS LOGISTICS AUTHORITY,1015238594,0.37
Department of Health,BSUH NHS Trust,27-Apr-15,Provisions,"Level 8A West (RSCH,IW,32 Beds)",NHS LOGISTICS AUTHORITY,1015238594,0.51
Department of Health,BSUH NHS Trust,27-Apr-15,Provisions,"Level 8A West (RSCH,IW,32 Beds)",NHS LOGISTICS AUTHORITY,1015238594,2.14
Department of Health,BSUH NHS Trust,27-Apr-15,Provisions,"Level 8A West (RSCH,IW,32 Beds)",NHS LOGISTICS AUTHORITY,1015238594,1.22
Department of Health,BSUH NHS Trust,27-Apr-15,Provisions,"Level 8A West (RSCH,IW,32 Beds)",NHS LOGISTICS AUTHORITY,1015238594,1.55
Department of Health,BSUH NHS Trust,27-Apr-15,Provisions,"Level 8A West (RSCH,IW,32 Beds)",NHS LOGISTICS AUTHORITY,1015238594,1.52
Department of Health,BSUH NHS Trust,27-Apr-15,Provisions,"Level 8A West (RSCH,IW,32 Beds)",NHS LOGISTICS AUTHORITY,1015238594,1.98
Department of Health,BSUH NHS Trust,27-Apr-15,Provisions,"Level 8A West (RSCH,IW,32 Beds)",NHS LOGISTICS AUTHORITY,1015238594,0.51
Department of Health,BSUH NHS Trust,27-Apr-15,Provisions,"Level 8A West (RSCH,IW,32 Beds)",NHS LOGISTICS AUTHORITY,1015238594,1.39
Department of Health,BSUH NHS Trust,27-Apr-15,Provisions,"Level 8A West (RSCH,IW,32 Beds)",NHS LOGISTICS AUTHORITY,1015238594,1.18
Department of Health,BSUH NHS Trust,27-Apr-15,Provisions,"Level 8A West (RSCH,IW,32 Beds)",NHS LOGISTICS AUTHORITY,1015238594,1.36
Department of Health,BSUH NHS Trust,27-Apr-15,Provisions,"Level 8A West (RSCH,IW,32 Beds)",NHS LOGISTICS AUTHORITY,1015238594,1.98
Department of Health,BSUH NHS Trust,27-Apr-15,Provisions,"Level 8A West (RSCH,IW,32 Beds)",NHS LOGISTICS AUTHORITY,1015238594,1.54
Department of Health,BSUH NHS Trust,27-Apr-15,Provisions,"Level 8A West (RSCH,IW,32 Beds)",NHS LOGISTICS AUTHORITY,1015238594,2.46
Department of Health,BSUH NHS Trust,27-Apr-15,Provisions,"Level 8A West (RSCH,IW,32 Beds)",NHS LOGISTICS AUTHORITY,1015238594,6.96
Department of Health,BSUH NHS Trust,27-Apr-15,Provisions,"Level 8A West (RSCH,IW,32 Beds)",NHS LOGISTICS AUTHORITY,1015238594,9.88
Department of Health,BSUH NHS Trust,27-Apr-15,Provisions,"Level 8A West (RSCH,IW,32 Beds)",NHS LOGISTICS AUTHORITY,1015238594,9.88
Department of Health,BSUH NHS Trust,27-Apr-15,Provisions,"Level 8A West (RSCH,IW,32 Beds)",NHS LOGISTICS AUTHORITY,1015238594,7.71
Department of Health,BSUH NHS Trust,27-Apr-15,Provisions,"Level 8A West (RSCH,IW,32 Beds)",NHS LOGISTICS AUTHORITY,1015238594,5.92
Department of Health,BSUH NHS Trust,27-Apr-15,Provisions,"Level 8A West (RSCH,IW,32 Beds)",NHS LOGISTICS AUTHORITY,1015238594,7.76
Department of Health,BSUH NHS Trust,27-Apr-15,Provisions,"Level 8A West (RSCH,IW,32 Beds)",NHS LOGISTICS AUTHORITY,1015238594,1.86
Department of Health,BSUH NHS Trust,27-Apr-15,Provisions,"Level 8A West (RSCH,IW,32 Beds)",NHS LOGISTICS AUTHORITY,1015238594,2.57
Department of Health,BSUH NHS Trust,27-Apr-15,Provisions,"Level 8A West (RSCH,IW,32 Beds)",NHS LOGISTICS AUTHORITY,1015238594,12.3
Department of Health,BSUH NHS Trust,27-Apr-15,Provisions,"Level 8A West (RSCH,IW,32 Beds)",NHS LOGISTICS AUTHORITY,1015238594,10.72
Department of Health,BSUH NHS Trust,27-Apr-15,Provisions,"Level 8A West (RSCH,IW,32 Beds)",NHS LOGISTICS AUTHORITY,1015238594,2.53
Department of Health,BSUH NHS Trust,27-Apr-15,Provisions,"Level 8A West (RSCH,IW,32 Beds)",NHS LOGISTICS AUTHORITY,1015238594,6.1
Department of Health,BSUH NHS Trust,27-Apr-15,Provisions,"Level 8A West (RSCH,IW,32 Beds)",NHS LOGISTICS AUTHORITY,1015238594,7.6
Department of Health,BSUH NHS Trust,27-Apr-15,Provisions,"Level 8A West (RSCH,IW,32 Beds)",NHS LOGISTICS AUTHORITY,1015238594,6.8
Department of Health,BSUH NHS Trust,27-Apr-15,Bedding & Linen : Disposable,Occupational Therapy,NHS LOGISTICS AUTHORITY,1015238594,2.74
Department of Health,BSUH NHS Trust,27-Apr-15,Bedding & Linen : Disposable,Occupational Therapy,NHS LOGISTICS AUTHORITY,1015238594,3.99
Department of Health,BSUH NHS Trust,27-Apr-15,Bedding & Linen : Disposable,Occupational Therapy,NHS LOGISTICS AUTHORITY,1015238594,19.93
Department of Health,BSUH NHS Trust,27-Apr-15,Bedding & Linen : Disposable,Occupational Therapy,NHS LOGISTICS AUTHORITY,1015238594,13.7
Department of Health,BSUH NHS Trust,27-Apr-15,M&S Equipment : General,"A&E Nursing - PRH (PRH,ED,0 Beds)",NHS LOGISTICS AUTHORITY,1015238594,11.18
Department of Health,BSUH NHS Trust,27-Apr-15,M&S Equipment : General,"A&E Nursing - PRH (PRH,ED,0 Beds)",NHS LOGISTICS AUTHORITY,1015238594,2.68
Department of Health,BSUH NHS Trust,27-Apr-15,M&S Equipment : General,"A&E Nursing - PRH (PRH,ED,0 Beds)",NHS LOGISTICS AUTHORITY,1015238594,2.15
Department of Health,BSUH NHS Trust,27-Apr-15,M&S Equipment : General,"A&E Nursing - PRH (PRH,ED,0 Beds)",NHS LOGISTICS AUTHORITY,1015238594,4.55
Department of Health,BSUH NHS Trust,27-Apr-15,M&S Equipment : General,"A&E Nursing - PRH (PRH,ED,0 Beds)",NHS LOGISTICS AUTHORITY,1015238594,0.63
Department of Health,BSUH NHS Trust,27-Apr-15,M&S Equipment : General,"A&E Nursing - PRH (PRH,ED,0 Beds)",NHS LOGISTICS AUTHORITY,1015238594,1.2
Department of Health,BSUH NHS Trust,27-Apr-15,M&S Equipment : General,"A&E Nursing - PRH (PRH,ED,0 Beds)",NHS LOGISTICS AUTHORITY,1015238594,2.1
Department of Health,BSUH NHS Trust,27-Apr-15,M&S Equipment : General,"A&E Nursing - PRH (PRH,ED,0 Beds)",NHS LOGISTICS AUTHORITY,1015238594,0.5
Department of Health,BSUH NHS Trust,27-Apr-15,M&S Equipment : General,"A&E Nursing - PRH (PRH,ED,0 Beds)",NHS LOGISTICS AUTHORITY,1015238594,0.28
Department of Health,BSUH NHS Trust,27-Apr-15,M&S Equipment : General,"A&E Nursing - PRH (PRH,ED,0 Beds)",NHS LOGISTICS AUTHORITY,1015238594,0.1
Department of Health,BSUH NHS Trust,27-Apr-15,M&S Equipment : General,"A&E Nursing - PRH (PRH,ED,0 Beds)",NHS LOGISTICS AUTHORITY,1015238594,4.17
Department of Health,BSUH NHS Trust,27-Apr-15,M&S Equipment : General,"A&E Nursing - PRH (PRH,ED,0 Beds)",NHS LOGISTICS AUTHORITY,1015238594,0.58
Department of Health,BSUH NHS Trust,27-Apr-15,M&S Equipment : General,"A&E Nursing - PRH (PRH,ED,0 Beds)",NHS LOGISTICS AUTHORITY,1015238594,0.28
Department of Health,BSUH NHS Trust,27-Apr-15,M&S Equipment : General,"A&E Nursing - PRH (PRH,ED,0 Beds)",NHS LOGISTICS AUTHORITY,1015238594,2.44
Department of Health,BSUH NHS Trust,27-Apr-15,M&S Equipment : General,"A&E Nursing - PRH (PRH,ED,0 Beds)",NHS LOGISTICS AUTHORITY,1015238594,1.65
Department of Health,BSUH NHS Trust,27-Apr-15,M&S Equipment : General,"A&E Nursing - PRH (PRH,ED,0 Beds)",NHS LOGISTICS AUTHORITY,1015238594,7.3
Department of Health,BSUH NHS Trust,27-Apr-15,M&S Equipment : General,"A&E Nursing - PRH (PRH,ED,0 Beds)",NHS LOGISTICS AUTHORITY,1015238594,0.13
Department of Health,BSUH NHS Trust,27-Apr-15,M&S Equipment : General,"A&E Nursing - PRH (PRH,ED,0 Beds)",NHS LOGISTICS AUTHORITY,1015238594,29.05
Department of Health,BSUH NHS Trust,27-Apr-15,M&S Equipment : General,"A&E Nursing - PRH (PRH,ED,0 Beds)",NHS LOGISTICS AUTHORITY,1015238594,0.83
Department of Health,BSUH NHS Trust,27-Apr-15,M&S Equipment : General,"A&E Nursing - PRH (PRH,ED,0 Beds)",NHS LOGISTICS AUTHORITY,1015238594,3.15
Department of Health,BSUH NHS Trust,27-Apr-15,M&S Equipment : General,"A&E Nursing - PRH (PRH,ED,0 Beds)",NHS LOGISTICS AUTHORITY,1015238594,2.33
Department of Health,BSUH NHS Trust,27-Apr-15,M&S Equipment : General,"A&E Nursing - PRH (PRH,ED,0 Beds)",NHS LOGISTICS AUTHORITY,1015238594,4.63
Department of Health,BSUH NHS Trust,27-Apr-15,M&S Equipment : General,"A&E Nursing - PRH (PRH,ED,0 Beds)",NHS LOGISTICS AUTHORITY,1015238594,0.91
Department of Health,BSUH NHS Trust,27-Apr-15,M&S Equipment : General,"A&E Nursing - PRH (PRH,ED,0 Beds)",NHS LOGISTICS AUTHORITY,1015238594,2.33
Department of Health,BSUH NHS Trust,27-Apr-15,M&S Equipment : General,"A&E Nursing - PRH (PRH,ED,0 Beds)",NHS LOGISTICS AUTHORITY,1015238594,4.63
Department of Health,BSUH NHS Trust,27-Apr-15,M&S Equipment : General,"A&E Nursing - PRH (PRH,ED,0 Beds)",NHS LOGISTICS AUTHORITY,1015238594,13.42
Department of Health,BSUH NHS Trust,27-Apr-15,M&S Equipment : General,"A&E Nursing - PRH (PRH,ED,0 Beds)",NHS LOGISTICS AUTHORITY,1015238594,36.48
Department of Health,BSUH NHS Trust,27-Apr-15,M&S Equipment : General,"A&E Nursing - PRH (PRH,ED,0 Beds)",NHS LOGISTICS AUTHORITY,1015238594,55.89
Department of Health,BSUH NHS Trust,27-Apr-15,M&S Equipment : General,"A&E Nursing - PRH (PRH,ED,0 Beds)",NHS LOGISTICS AUTHORITY,1015238594,1.38
Department of Health,BSUH NHS Trust,27-Apr-15,M&S Equipment : General,"A&E Nursing - PRH (PRH,ED,0 Beds)",NHS LOGISTICS AUTHORITY,1015238594,1.38
Department of Health,BSUH NHS Trust,27-Apr-15,M&S Equipment : General,"A&E Nursing - PRH (PRH,ED,0 Beds)",NHS LOGISTICS AUTHORITY,1015238594,4.13
Department of Health,BSUH NHS Trust,27-Apr-15,M&S Equipment : General,"A&E Nursing - PRH (PRH,ED,0 Beds)",NHS LOGISTICS AUTHORITY,1015238594,10.51
Department of Health,BSUH NHS Trust,27-Apr-15,Bedding & Linen : Disposable,"Level 8A West (RSCH,IW,32 Beds)",NHS LOGISTICS AUTHORITY,1015238594,12
Department of Health,BSUH NHS Trust,27-Apr-15,Bedding & Linen : Disposable,"Level 8A West (RSCH,IW,32 Beds)",NHS LOGISTICS AUTHORITY,1015238594,3.25
Department of Health,BSUH NHS Trust,27-Apr-15,Patients Clothing,"Level 8A West (RSCH,IW,32 Beds)",NHS LOGISTICS AUTHORITY,1015238594,0.54
Department of Health,BSUH NHS Trust,27-Apr-15,Patients Clothing,"Level 8A West (RSCH,IW,32 Beds)",NHS LOGISTICS AUTHORITY,1015238594,9.56
Department of Health,BSUH NHS Trust,27-Apr-15,Patients Clothing,"Level 8A West (RSCH,IW,32 Beds)",NHS LOGISTICS AUTHORITY,1015238594,4.86
Department of Health,BSUH NHS Trust,27-Apr-15,Patients Clothing,"Level 8A West (RSCH,IW,32 Beds)",NHS LOGISTICS AUTHORITY,1015238594,8.15
Department of Health,BSUH NHS Trust,27-Apr-15,Patients Clothing,"Level 8A West (RSCH,IW,32 Beds)",NHS LOGISTICS AUTHORITY,1015238594,24.29
Department of Health,BSUH NHS Trust,27-Apr-15,Patients Clothing,"Level 8A West (RSCH,IW,32 Beds)",NHS LOGISTICS AUTHORITY,1015238594,2.7
Department of Health,BSUH NHS Trust,27-Apr-15,Patients Clothing,"Level 8A West (RSCH,IW,32 Beds)",NHS LOGISTICS AUTHORITY,1015238594,47.8
Department of Health,BSUH NHS Trust,27-Apr-15,Patients Clothing,"Level 8A West (RSCH,IW,32 Beds)",NHS LOGISTICS AUTHORITY,1015238594,40.75
Department of Health,BSUH NHS Trust,27-Apr-15,Dressings,"Level 8A West (RSCH,IW,32 Beds)",NHS LOGISTICS AUTHORITY,1015238594,0.46
Department of Health,BSUH NHS Trust,27-Apr-15,Dressings,"Level 8A West (RSCH,IW,32 Beds)",NHS LOGISTICS AUTHORITY,1015238594,2.81
Department of Health,BSUH NHS Trust,27-Apr-15,Dressings,"Level 8A West (RSCH,IW,32 Beds)",NHS LOGISTICS AUTHORITY,1015238594,1.22
Department of Health,BSUH NHS Trust,27-Apr-15,Dressings,"Level 8A West (RSCH,IW,32 Beds)",NHS LOGISTICS AUTHORITY,1015238594,1.98
Department of Health,BSUH NHS Trust,27-Apr-15,Dressings,"Level 8A West (RSCH,IW,32 Beds)",NHS LOGISTICS AUTHORITY,1015238594,15.02
Department of Health,BSUH NHS Trust,27-Apr-15,Dressings,"Level 8A West (RSCH,IW,32 Beds)",NHS LOGISTICS AUTHORITY,1015238594,5.83
Department of Health,BSUH NHS Trust,27-Apr-15,Dressings,"Level 8A West (RSCH,IW,32 Beds)",NHS LOGISTICS AUTHORITY,1015238594,1.5
Department of Health,BSUH NHS Trust,27-Apr-15,Dressings,"Level 8A West (RSCH,IW,32 Beds)",NHS LOGISTICS AUTHORITY,1015238594,4.59
Department of Health,BSUH NHS Trust,27-Apr-15,Dressings,"Level 8A West (RSCH,IW,32 Beds)",NHS LOGISTICS AUTHORITY,1015238594,12.42
Department of Health,BSUH NHS Trust,27-Apr-15,Dressings,"Level 8A West (RSCH,IW,32 Beds)",NHS LOGISTICS AUTHORITY,1015238594,10.45
Department of Health,BSUH NHS Trust,27-Apr-15,Dressings,"Level 8A West (RSCH,IW,32 Beds)",NHS LOGISTICS AUTHORITY,1015238594,0.96
Department of Health,BSUH NHS Trust,27-Apr-15,Dressings,"Level 8A West (RSCH,IW,32 Beds)",NHS LOGISTICS AUTHORITY,1015238594,2.81
Department of Health,BSUH NHS Trust,27-Apr-15,Dressings,"Level 8A West (RSCH,IW,32 Beds)",NHS LOGISTICS AUTHORITY,1015238594,0.15
Department of Health,BSUH NHS Trust,27-Apr-15,Dressings,"Level 8A West (RSCH,IW,32 Beds)",NHS LOGISTICS AUTHORITY,1015238594,0.2
Department of Health,BSUH NHS Trust,27-Apr-15,Dressings,"Level 8A West (RSCH,IW,32 Beds)",NHS LOGISTICS AUTHORITY,1015238594,6.35
Department of Health,BSUH NHS Trust,27-Apr-15,Dressings,"Level 8A West (RSCH,IW,32 Beds)",NHS LOGISTICS AUTHORITY,1015238594,10.89
Department of Health,BSUH NHS Trust,27-Apr-15,Dressings,"Level 8A West (RSCH,IW,32 Beds)",NHS LOGISTICS AUTHORITY,1015238594,3
Department of Health,BSUH NHS Trust,27-Apr-15,Dressings,"Level 8A West (RSCH,IW,32 Beds)",NHS LOGISTICS AUTHORITY,1015238594,4.24
Department of Health,BSUH NHS Trust,27-Apr-15,Dressings,"Level 8A West (RSCH,IW,32 Beds)",NHS LOGISTICS AUTHORITY,1015238594,2.84
Department of Health,BSUH NHS Trust,27-Apr-15,Dressings,"Level 8A West (RSCH,IW,32 Beds)",NHS LOGISTICS AUTHORITY,1015238594,9.39
Department of Health,BSUH NHS Trust,27-Apr-15,Dressings,"Level 8A West (RSCH,IW,32 Beds)",NHS LOGISTICS AUTHORITY,1015238594,0.47
Department of Health,BSUH NHS Trust,27-Apr-15,Dressings,"Level 8A West (RSCH,IW,32 Beds)",NHS LOGISTICS AUTHORITY,1015238594,16.82
Department of Health,BSUH NHS Trust,27-Apr-15,Dressings,"Level 8A West (RSCH,IW,32 Beds)",NHS LOGISTICS AUTHORITY,1015238594,3.68
Department of Health,BSUH NHS Trust,27-Apr-15,Dressings,"Level 8A West (RSCH,IW,32 Beds)",NHS LOGISTICS AUTHORITY,1015238594,2.28
Department of Health,BSUH NHS Trust,27-Apr-15,Dressings,"Level 8A West (RSCH,IW,32 Beds)",NHS LOGISTICS AUTHORITY,1015238594,9.88
Department of Health,BSUH NHS Trust,27-Apr-15,Dressings,"Level 8A West (RSCH,IW,32 Beds)",NHS LOGISTICS AUTHORITY,1015238594,1
Department of Health,BSUH NHS Trust,27-Apr-15,Dressings,"Level 8A West (RSCH,IW,32 Beds)",NHS LOGISTICS AUTHORITY,1015238594,18.4
Department of Health,BSUH NHS Trust,27-Apr-15,Dressings,"Level 8A West (RSCH,IW,32 Beds)",NHS LOGISTICS AUTHORITY,1015238594,4.79
Department of Health,BSUH NHS Trust,27-Apr-15,Dressings,"Level 8A West (RSCH,IW,32 Beds)",NHS LOGISTICS AUTHORITY,1015238594,2.33
Department of Health,BSUH NHS Trust,27-Apr-15,Dressings,"Level 8A West (RSCH,IW,32 Beds)",NHS LOGISTICS AUTHORITY,1015238594,84.08
Department of Health,BSUH NHS Trust,27-Apr-15,Dressings,"Level 8A West (RSCH,IW,32 Beds)",NHS LOGISTICS AUTHORITY,1015238594,14.05
Department of Health,BSUH NHS Trust,27-Apr-15,Dressings,"Level 8A West (RSCH,IW,32 Beds)",NHS LOGISTICS AUTHORITY,1015238594,75.1
Department of Health,BSUH NHS Trust,27-Apr-15,Dressings,"Level 8A West (RSCH,IW,32 Beds)",NHS LOGISTICS AUTHORITY,1015238594,46.97
Department of Health,BSUH NHS Trust,27-Apr-15,Dressings,"Level 8A West (RSCH,IW,32 Beds)",NHS LOGISTICS AUTHORITY,1015238594,54.47
Department of Health,BSUH NHS Trust,27-Apr-15,Dressings,"Level 8A West (RSCH,IW,32 Beds)",NHS LOGISTICS AUTHORITY,1015238594,29.17
Department of Health,BSUH NHS Trust,27-Apr-15,Dressings,"Level 8A West (RSCH,IW,32 Beds)",NHS LOGISTICS AUTHORITY,1015238594,52.23
Department of Health,BSUH NHS Trust,27-Apr-15,Dressings,"Level 8A West (RSCH,IW,32 Beds)",NHS LOGISTICS AUTHORITY,1015238594,21.22
Department of Health,BSUH NHS Trust,27-Apr-15,Dressings,"Level 8A West (RSCH,IW,32 Beds)",NHS LOGISTICS AUTHORITY,1015238594,14.22
Department of Health,BSUH NHS Trust,27-Apr-15,Dressings,"Level 8A West (RSCH,IW,32 Beds)",NHS LOGISTICS AUTHORITY,1015238594,14.05
Department of Health,BSUH NHS Trust,27-Apr-15,Dressings,"Level 8A West (RSCH,IW,32 Beds)",NHS LOGISTICS AUTHORITY,1015238594,6.1
Department of Health,BSUH NHS Trust,27-Apr-15,Dressings,"Level 8A West (RSCH,IW,32 Beds)",NHS LOGISTICS AUTHORITY,1015238594,0.76
Department of Health,BSUH NHS Trust,27-Apr-15,Dressings,"Level 8A West (RSCH,IW,32 Beds)",NHS LOGISTICS AUTHORITY,1015238594,7.5
Department of Health,BSUH NHS Trust,27-Apr-15,Dressings,"Level 8A West (RSCH,IW,32 Beds)",NHS LOGISTICS AUTHORITY,1015238594,15
Department of Health,BSUH NHS Trust,27-Apr-15,Dressings,"Level 8A West (RSCH,IW,32 Beds)",NHS LOGISTICS AUTHORITY,1015238594,55.5
Department of Health,BSUH NHS Trust,27-Apr-15,Dressings,"Level 8A West (RSCH,IW,32 Beds)",NHS LOGISTICS AUTHORITY,1015238594,6.62
Department of Health,BSUH NHS Trust,27-Apr-15,Dressings,"Level 8A West (RSCH,IW,32 Beds)",NHS LOGISTICS AUTHORITY,1015238594,18.5
Department of Health,BSUH NHS Trust,27-Apr-15,Dressings,"Level 8A West (RSCH,IW,32 Beds)",NHS LOGISTICS AUTHORITY,1015238594,13.23
Department of Health,BSUH NHS Trust,27-Apr-15,Dressings,"Level 8A West (RSCH,IW,32 Beds)",NHS LOGISTICS AUTHORITY,1015238594,22.93
Department of Health,BSUH NHS Trust,27-Apr-15,Patients Appliances : Purchase,"Level 8A West (RSCH,IW,32 Beds)",NHS LOGISTICS AUTHORITY,1015238594,4.08
Department of Health,BSUH NHS Trust,27-Apr-15,Patients Appliances : Purchase,"Level 8A West (RSCH,IW,32 Beds)",NHS LOGISTICS AUTHORITY,1015238594,0.67
Department of Health,BSUH NHS Trust,27-Apr-15,Patients Appliances : Purchase,"Level 8A West (RSCH,IW,32 Beds)",NHS LOGISTICS AUTHORITY,1015238594,20.4
Department of Health,BSUH NHS Trust,27-Apr-15,Patients Appliances : Purchase,"Level 8A West (RSCH,IW,32 Beds)",NHS LOGISTICS AUTHORITY,1015238594,3.35
Department of Health,BSUH NHS Trust,27-Apr-15,Laboratory Equipment,"Pyecombe Ward (27 beds) (PRH,IW,27 Beds)",NHS LOGISTICS AUTHORITY,1015238594,2.17
Department of Health,BSUH NHS Trust,27-Apr-15,Laboratory Equipment,"Pyecombe Ward (27 beds) (PRH,IW,27 Beds)",NHS LOGISTICS AUTHORITY,1015238594,10.87
Department of Health,BSUH NHS Trust,27-Apr-15,M&S Equipment : General,"Level 8A West (RSCH,IW,32 Beds)",NHS LOGISTICS AUTHORITY,1015238594,4.8
Department of Health,BSUH NHS Trust,27-Apr-15,M&S Equipment : General,"Level 8A West (RSCH,IW,32 Beds)",NHS LOGISTICS AUTHORITY,1015238594,6.25
Department of Health,BSUH NHS Trust,27-Apr-15,M&S Equipment : General,"Level 8A West (RSCH,IW,32 Beds)",NHS LOGISTICS AUTHORITY,1015238594,32.48
Department of Health,BSUH NHS Trust,27-Apr-15,M&S Equipment : General,"Level 8A West (RSCH,IW,32 Beds)",NHS LOGISTICS AUTHORITY,1015238594,17.14
Department of Health,BSUH NHS Trust,27-Apr-15,M&S Equipment : General,"Level 8A West (RSCH,IW,32 Beds)",NHS LOGISTICS AUTHORITY,1015238594,29.68
Department of Health,BSUH NHS Trust,27-Apr-15,M&S Equipment : General,"Level 8A West (RSCH,IW,32 Beds)",NHS LOGISTICS AUTHORITY,1015238594,6.87
Department of Health,BSUH NHS Trust,27-Apr-15,M&S Equipment : General,"Level 8A West (RSCH,IW,32 Beds)",NHS LOGISTICS AUTHORITY,1015238594,6.87
Department of Health,BSUH NHS Trust,27-Apr-15,M&S Equipment : General,"Level 8A West (RSCH,IW,32 Beds)",NHS LOGISTICS AUTHORITY,1015238594,8.5
Department of Health,BSUH NHS Trust,27-Apr-15,M&S Equipment : General,"Level 8A West (RSCH,IW,32 Beds)",NHS LOGISTICS AUTHORITY,1015238594,10.76
Department of Health,BSUH NHS Trust,27-Apr-15,M&S Equipment : General,"Level 8A West (RSCH,IW,32 Beds)",NHS LOGISTICS AUTHORITY,1015238594,15.83
Department of Health,BSUH NHS Trust,27-Apr-15,M&S Equipment : General,"Level 8A West (RSCH,IW,32 Beds)",NHS LOGISTICS AUTHORITY,1015238594,5.48
Department of Health,BSUH NHS Trust,27-Apr-15,M&S Equipment : General,"Level 8A West (RSCH,IW,32 Beds)",NHS LOGISTICS AUTHORITY,1015238594,3.5
Department of Health,BSUH NHS Trust,27-Apr-15,M&S Equipment : General,"Level 8A West (RSCH,IW,32 Beds)",NHS LOGISTICS AUTHORITY,1015238594,12.64
Department of Health,BSUH NHS Trust,27-Apr-15,M&S Equipment : General,"Level 8A West (RSCH,IW,32 Beds)",NHS LOGISTICS AUTHORITY,1015238594,10.88
Department of Health,BSUH NHS Trust,27-Apr-15,M&S Equipment : General,"Level 8A West (RSCH,IW,32 Beds)",NHS LOGISTICS AUTHORITY,1015238594,11.98
Department of Health,BSUH NHS Trust,27-Apr-15,M&S Equipment : General,"Level 8A West (RSCH,IW,32 Beds)",NHS LOGISTICS AUTHORITY,1015238594,207
Department of Health,BSUH NHS Trust,27-Apr-15,M&S Equipment : General,"Level 8A West (RSCH,IW,32 Beds)",NHS LOGISTICS AUTHORITY,1015238594,20.83
Department of Health,BSUH NHS Trust,27-Apr-15,M&S Equipment : General,"Level 8A West (RSCH,IW,32 Beds)",NHS LOGISTICS AUTHORITY,1015238594,21.48
Department of Health,BSUH NHS Trust,27-Apr-15,M&S Equipment : General,"Level 8A West (RSCH,IW,32 Beds)",NHS LOGISTICS AUTHORITY,1015238594,13.17
Department of Health,BSUH NHS Trust,27-Apr-15,M&S Equipment : General,"Level 8A West (RSCH,IW,32 Beds)",NHS LOGISTICS AUTHORITY,1015238594,65.68
Department of Health,BSUH NHS Trust,27-Apr-15,M&S Equipment : General,"Level 8A West (RSCH,IW,32 Beds)",NHS LOGISTICS AUTHORITY,1015238594,4.92
Department of Health,BSUH NHS Trust,27-Apr-15,M&S Equipment : General,"Level 8A West (RSCH,IW,32 Beds)",NHS LOGISTICS AUTHORITY,1015238594,17.25
Department of Health,BSUH NHS Trust,27-Apr-15,Laboratory Equipment,"Balcombe Ward (PRH,IW,30 Beds)",NHS LOGISTICS AUTHORITY,1015238594,2.17
Department of Health,BSUH NHS Trust,27-Apr-15,Laboratory Equipment,"Balcombe Ward (PRH,IW,30 Beds)",NHS LOGISTICS AUTHORITY,1015238594,10.87
Department of Health,BSUH NHS Trust,27-Apr-15,Hardware & Crockery,"Level 8A West (RSCH,IW,32 Beds)",NHS LOGISTICS AUTHORITY,1015238594,0.42
Department of Health,BSUH NHS Trust,27-Apr-15,Hardware & Crockery,"Level 8A West (RSCH,IW,32 Beds)",NHS LOGISTICS AUTHORITY,1015238594,2.4
Department of Health,BSUH NHS Trust,27-Apr-15,Hardware & Crockery,"Level 8A West (RSCH,IW,32 Beds)",NHS LOGISTICS AUTHORITY,1015238594,2.4
Department of Health,BSUH NHS Trust,27-Apr-15,Hardware & Crockery,"Level 8A West (RSCH,IW,32 Beds)",NHS LOGISTICS AUTHORITY,1015238594,2.08
Department of Health,BSUH NHS Trust,27-Apr-15,Hardware & Crockery,"Level 8A West (RSCH,IW,32 Beds)",NHS LOGISTICS AUTHORITY,1015238594,12
Department of Health,BSUH NHS Trust,27-Apr-15,Hardware & Crockery,"Level 8A West (RSCH,IW,32 Beds)",NHS LOGISTICS AUTHORITY,1015238594,12
Department of Health,BSUH NHS Trust,27-Apr-15,Laboratory Equipment,"Level 8A West (RSCH,IW,32 Beds)",NHS LOGISTICS AUTHORITY,1015238594,3.14
Department of Health,BSUH NHS Trust,27-Apr-15,Laboratory Equipment,"Level 8A West (RSCH,IW,32 Beds)",NHS LOGISTICS AUTHORITY,1015238594,15.7
Department of Health,BSUH NHS Trust,27-Apr-15,Cleaning Materials,"Level 8A West (RSCH,IW,32 Beds)",NHS LOGISTICS AUTHORITY,1015238594,5.16
Department of Health,BSUH NHS Trust,27-Apr-15,Cleaning Materials,"Level 8A West (RSCH,IW,32 Beds)",NHS LOGISTICS AUTHORITY,1015238594,3.86
Department of Health,BSUH NHS Trust,27-Apr-15,Cleaning Materials,"Level 8A West (RSCH,IW,32 Beds)",NHS LOGISTICS AUTHORITY,1015238594,1.71
Department of Health,BSUH NHS Trust,27-Apr-15,Cleaning Materials,"Level 8A West (RSCH,IW,32 Beds)",NHS LOGISTICS AUTHORITY,1015238594,0.56
Department of Health,BSUH NHS Trust,27-Apr-15,Cleaning Materials,"Level 8A West (RSCH,IW,32 Beds)",NHS LOGISTICS AUTHORITY,1015238594,1.17
Department of Health,BSUH NHS Trust,27-Apr-15,Cleaning Materials,"Level 8A West (RSCH,IW,32 Beds)",NHS LOGISTICS AUTHORITY,1015238594,0.94
Department of Health,BSUH NHS Trust,27-Apr-15,Cleaning Materials,"Level 8A West (RSCH,IW,32 Beds)",NHS LOGISTICS AUTHORITY,1015238594,0.2
Department of Health,BSUH NHS Trust,27-Apr-15,Cleaning Materials,"Level 8A West (RSCH,IW,32 Beds)",NHS LOGISTICS AUTHORITY,1015238594,0.38
Department of Health,BSUH NHS Trust,27-Apr-15,Cleaning Materials,"Level 8A West (RSCH,IW,32 Beds)",NHS LOGISTICS AUTHORITY,1015238594,0.84
Department of Health,BSUH NHS Trust,27-Apr-15,Cleaning Materials,"Level 8A West (RSCH,IW,32 Beds)",NHS LOGISTICS AUTHORITY,1015238594,1.73
Department of Health,BSUH NHS Trust,27-Apr-15,Cleaning Materials,"Level 8A West (RSCH,IW,32 Beds)",NHS LOGISTICS AUTHORITY,1015238594,4.72
Department of Health,BSUH NHS Trust,27-Apr-15,Cleaning Materials,"Level 8A West (RSCH,IW,32 Beds)",NHS LOGISTICS AUTHORITY,1015238594,4.2
Department of Health,BSUH NHS Trust,27-Apr-15,Cleaning Materials,"Level 8A West (RSCH,IW,32 Beds)",NHS LOGISTICS AUTHORITY,1015238594,15.4
Department of Health,BSUH NHS Trust,27-Apr-15,Cleaning Materials,"Level 8A West (RSCH,IW,32 Beds)",NHS LOGISTICS AUTHORITY,1015238594,3.92
Department of Health,BSUH NHS Trust,27-Apr-15,Cleaning Materials,"Level 8A West (RSCH,IW,32 Beds)",NHS LOGISTICS AUTHORITY,1015238594,5.83
Department of Health,BSUH NHS Trust,27-Apr-15,Cleaning Materials,"Level 8A West (RSCH,IW,32 Beds)",NHS LOGISTICS AUTHORITY,1015238594,8.67
Department of Health,BSUH NHS Trust,27-Apr-15,Cleaning Materials,"Level 8A West (RSCH,IW,32 Beds)",NHS LOGISTICS AUTHORITY,1015238594,8.57
Department of Health,BSUH NHS Trust,27-Apr-15,Cleaning Materials,"Level 8A West (RSCH,IW,32 Beds)",NHS LOGISTICS AUTHORITY,1015238594,1.92
Department of Health,BSUH NHS Trust,27-Apr-15,Cleaning Materials,"Level 8A West (RSCH,IW,32 Beds)",NHS LOGISTICS AUTHORITY,1015238594,0.98
Department of Health,BSUH NHS Trust,27-Apr-15,Cleaning Materials,"Level 8A West (RSCH,IW,32 Beds)",NHS LOGISTICS AUTHORITY,1015238594,2.78
Department of Health,BSUH NHS Trust,27-Apr-15,Cleaning Materials,"Level 8A West (RSCH,IW,32 Beds)",NHS LOGISTICS AUTHORITY,1015238594,25.8
Department of Health,BSUH NHS Trust,27-Apr-15,Staff Uniforms & Clothing,"Level 8A West (RSCH,IW,32 Beds)",NHS LOGISTICS AUTHORITY,1015238594,1.98
Department of Health,BSUH NHS Trust,27-Apr-15,Staff Uniforms & Clothing,"Level 8A West (RSCH,IW,32 Beds)",NHS LOGISTICS AUTHORITY,1015238594,9.88
Department of Health,BSUH NHS Trust,27-Apr-15,Bedding & Linen : Disposable,"Level 8A West (RSCH,IW,32 Beds)",NHS LOGISTICS AUTHORITY,1015238594,0.65
Department of Health,BSUH NHS Trust,27-Apr-15,Bedding & Linen : Disposable,"Level 8A West (RSCH,IW,32 Beds)",NHS LOGISTICS AUTHORITY,1015238594,4.5
Department of Health,BSUH NHS Trust,27-Apr-15,Bedding & Linen : Disposable,"Level 8A West (RSCH,IW,32 Beds)",NHS LOGISTICS AUTHORITY,1015238594,5.25
Department of Health,BSUH NHS Trust,27-Apr-15,Bedding & Linen : Disposable,"Level 8A West (RSCH,IW,32 Beds)",NHS LOGISTICS AUTHORITY,1015238594,2.4
Department of Health,BSUH NHS Trust,27-Apr-15,Bedding & Linen : Disposable,"Level 8A West (RSCH,IW,32 Beds)",NHS LOGISTICS AUTHORITY,1015238594,11.2
Department of Health,BSUH NHS Trust,27-Apr-15,Bedding & Linen : Disposable,"Level 8A West (RSCH,IW,32 Beds)",NHS LOGISTICS AUTHORITY,1015238594,26.27
Department of Health,BSUH NHS Trust,27-Apr-15,Bedding & Linen : Disposable,"Level 8A West (RSCH,IW,32 Beds)",NHS LOGISTICS AUTHORITY,1015238594,56
Department of Health,BSUH NHS Trust,27-Apr-15,Bedding & Linen : Disposable,"Level 8A West (RSCH,IW,32 Beds)",NHS LOGISTICS AUTHORITY,1015238594,22.5
Department of Health,BSUH NHS Trust,27-Apr-15,Orthopaedic Implants - Other,Trauma and Orthopaedics - Elective,NHS LOGISTICS AUTHORITY,1015238594,23.56
Department of Health,BSUH NHS Trust,27-Apr-15,Orthopaedic Implants - Other,Trauma and Orthopaedics - Elective,NHS LOGISTICS AUTHORITY,1015238594,117.79
Department of Health,BSUH NHS Trust,27-Apr-15,M&S Equipment : General,Trauma and Orthopaedics - Trauma,NHS LOGISTICS AUTHORITY,1015238594,52.35
Department of Health,BSUH NHS Trust,27-Apr-15,M&S Equipment : General,Trauma and Orthopaedics - Trauma,NHS LOGISTICS AUTHORITY,1015238594,261.75
Department of Health,BSUH NHS Trust,27-Apr-15,Bedding & Linen Non-Disp.,"Pyecombe Ward (27 beds) (PRH,IW,27 Beds)",NHS LOGISTICS AUTHORITY,1015238594,3.57
Department of Health,BSUH NHS Trust,27-Apr-15,Bedding & Linen Non-Disp.,"Pyecombe Ward (27 beds) (PRH,IW,27 Beds)",NHS LOGISTICS AUTHORITY,1015238594,17.87
Department of Health,BSUH NHS Trust,27-Apr-15,Patients Appliances : Purchase,"Ardingly (PRH,IW,28 Beds)",NHS LOGISTICS AUTHORITY,1015238594,3.27
Department of Health,BSUH NHS Trust,27-Apr-15,Patients Appliances : Purchase,"Ardingly (PRH,IW,28 Beds)",NHS LOGISTICS AUTHORITY,1015238594,1.1
Department of Health,BSUH NHS Trust,27-Apr-15,Patients Appliances : Purchase,"Ardingly (PRH,IW,28 Beds)",NHS LOGISTICS AUTHORITY,1015238594,2.04
Department of Health,BSUH NHS Trust,27-Apr-15,Patients Appliances : Purchase,"Ardingly (PRH,IW,28 Beds)",NHS LOGISTICS AUTHORITY,1015238594,10.2
Department of Health,BSUH NHS Trust,27-Apr-15,Patients Appliances : Purchase,"Ardingly (PRH,IW,28 Beds)",NHS LOGISTICS AUTHORITY,1015238594,16.33
Department of Health,BSUH NHS Trust,27-Apr-15,Patients Appliances : Purchase,"Ardingly (PRH,IW,28 Beds)",NHS LOGISTICS AUTHORITY,1015238594,5.49
Department of Health,BSUH NHS Trust,27-Apr-15,Hardware & Crockery,"Ardingly (PRH,IW,28 Beds)",NHS LOGISTICS AUTHORITY,1015238594,0.49
Department of Health,BSUH NHS Trust,27-Apr-15,Hardware & Crockery,"Ardingly (PRH,IW,28 Beds)",NHS LOGISTICS AUTHORITY,1015238594,1.72
Department of Health,BSUH NHS Trust,27-Apr-15,Hardware & Crockery,"Ardingly (PRH,IW,28 Beds)",NHS LOGISTICS AUTHORITY,1015238594,8.62
Department of Health,BSUH NHS Trust,27-Apr-15,Hardware & Crockery,"Ardingly (PRH,IW,28 Beds)",NHS LOGISTICS AUTHORITY,1015238594,2.45
Department of Health,BSUH NHS Trust,27-Apr-15,M&S Equipment : General,"Level 8A West (RSCH,IW,32 Beds)",NHS LOGISTICS AUTHORITY,1015238594,5.58
Department of Health,BSUH NHS Trust,27-Apr-15,M&S Equipment : General,"Level 8A West (RSCH,IW,32 Beds)",NHS LOGISTICS AUTHORITY,1015238594,2.07
Department of Health,BSUH NHS Trust,27-Apr-15,M&S Equipment : General,"Level 8A West (RSCH,IW,32 Beds)",NHS LOGISTICS AUTHORITY,1015238594,5.78
Department of Health,BSUH NHS Trust,27-Apr-15,M&S Equipment : General,"Level 8A West (RSCH,IW,32 Beds)",NHS LOGISTICS AUTHORITY,1015238594,4.17
Department of Health,BSUH NHS Trust,27-Apr-15,M&S Equipment : General,"Level 8A West (RSCH,IW,32 Beds)",NHS LOGISTICS AUTHORITY,1015238594,2.18
Department of Health,BSUH NHS Trust,27-Apr-15,M&S Equipment : General,"Level 8A West (RSCH,IW,32 Beds)",NHS LOGISTICS AUTHORITY,1015238594,1.89
Department of Health,BSUH NHS Trust,27-Apr-15,M&S Equipment : General,"Level 8A West (RSCH,IW,32 Beds)",NHS LOGISTICS AUTHORITY,1015238594,1.1
Department of Health,BSUH NHS Trust,27-Apr-15,M&S Equipment : General,"Level 8A West (RSCH,IW,32 Beds)",NHS LOGISTICS AUTHORITY,1015238594,0.7
Department of Health,BSUH NHS Trust,27-Apr-15,M&S Equipment : General,"Level 8A West (RSCH,IW,32 Beds)",NHS LOGISTICS AUTHORITY,1015238594,1.6
Department of Health,BSUH NHS Trust,27-Apr-15,M&S Equipment : General,"Level 8A West (RSCH,IW,32 Beds)",NHS LOGISTICS AUTHORITY,1015238594,43.28
Department of Health,BSUH NHS Trust,27-Apr-15,M&S Equipment : General,"Level 8A West (RSCH,IW,32 Beds)",NHS LOGISTICS AUTHORITY,1015238594,5.94
Department of Health,BSUH NHS Trust,27-Apr-15,M&S Equipment : General,"Level 8A West (RSCH,IW,32 Beds)",NHS LOGISTICS AUTHORITY,1015238594,1.7
Department of Health,BSUH NHS Trust,27-Apr-15,M&S Equipment : General,"Level 8A West (RSCH,IW,32 Beds)",NHS LOGISTICS AUTHORITY,1015238594,6.5
Department of Health,BSUH NHS Trust,27-Apr-15,M&S Equipment : General,"Level 8A West (RSCH,IW,32 Beds)",NHS LOGISTICS AUTHORITY,1015238594,2.53
Department of Health,BSUH NHS Trust,27-Apr-15,M&S Equipment : General,"Level 8A West (RSCH,IW,32 Beds)",NHS LOGISTICS AUTHORITY,1015238594,0.67
Department of Health,BSUH NHS Trust,27-Apr-15,M&S Equipment : General,"Level 8A West (RSCH,IW,32 Beds)",NHS LOGISTICS AUTHORITY,1015238594,1.37
Department of Health,BSUH NHS Trust,27-Apr-15,M&S Equipment : General,"Level 8A West (RSCH,IW,32 Beds)",NHS LOGISTICS AUTHORITY,1015238594,2.4
Department of Health,BSUH NHS Trust,27-Apr-15,M&S Equipment : General,"Level 8A West (RSCH,IW,32 Beds)",NHS LOGISTICS AUTHORITY,1015238594,2.15
Department of Health,BSUH NHS Trust,27-Apr-15,M&S Equipment : General,"Level 8A West (RSCH,IW,32 Beds)",NHS LOGISTICS AUTHORITY,1015238594,0.67
Department of Health,BSUH NHS Trust,27-Apr-15,M&S Equipment : General,"Level 8A West (RSCH,IW,32 Beds)",NHS LOGISTICS AUTHORITY,1015238594,1.37
Department of Health,BSUH NHS Trust,27-Apr-15,M&S Equipment : General,"Level 8A West (RSCH,IW,32 Beds)",NHS LOGISTICS AUTHORITY,1015238594,13.14
Department of Health,BSUH NHS Trust,27-Apr-15,M&S Equipment : General,"Level 8A West (RSCH,IW,32 Beds)",NHS LOGISTICS AUTHORITY,1015238594,0.98
Department of Health,BSUH NHS Trust,27-Apr-15,M&S Equipment : General,"Level 8A West (RSCH,IW,32 Beds)",NHS LOGISTICS AUTHORITY,1015238594,1.87
Department of Health,BSUH NHS Trust,27-Apr-15,M&S Equipment : General,"Level 8A West (RSCH,IW,32 Beds)",NHS LOGISTICS AUTHORITY,1015238594,3.45
Department of Health,BSUH NHS Trust,27-Apr-15,M&S Equipment : General,"Level 8A West (RSCH,IW,32 Beds)",NHS LOGISTICS AUTHORITY,1015238594,1.25
Department of Health,BSUH NHS Trust,27-Apr-15,M&S Equipment : General,"Level 8A West (RSCH,IW,32 Beds)",NHS LOGISTICS AUTHORITY,1015238594,3.17
Department of Health,BSUH NHS Trust,27-Apr-15,M&S Equipment : General,"Level 8A West (RSCH,IW,32 Beds)",NHS LOGISTICS AUTHORITY,1015238594,0.96
Department of Health,BSUH NHS Trust,27-Apr-15,M&S Equipment : General,"Level 8A West (RSCH,IW,32 Beds)",NHS LOGISTICS AUTHORITY,1015238594,41.4
Department of Health,BSUH NHS Trust,27-Apr-15,M&S Equipment : General,"Level 8A West (RSCH,IW,32 Beds)",NHS LOGISTICS AUTHORITY,1015238594,3.43
Department of Health,BSUH NHS Trust,27-Apr-15,M&S Equipment : General,"Level 8A West (RSCH,IW,32 Beds)",NHS LOGISTICS AUTHORITY,1015238594,2.63
Department of Health,BSUH NHS Trust,27-Apr-15,M&S Equipment : General,"Level 8A West (RSCH,IW,32 Beds)",NHS LOGISTICS AUTHORITY,1015238594,4.3
Department of Health,BSUH NHS Trust,27-Apr-15,M&S Equipment : General,"Level 8A West (RSCH,IW,32 Beds)",NHS LOGISTICS AUTHORITY,1015238594,3.1
Department of Health,BSUH NHS Trust,27-Apr-15,M&S Equipment : General,"Level 8A West (RSCH,IW,32 Beds)",NHS LOGISTICS AUTHORITY,1015238594,5.58
Department of Health,BSUH NHS Trust,27-Apr-15,M&S Equipment : General,"Level 8A West (RSCH,IW,32 Beds)",NHS LOGISTICS AUTHORITY,1015238594,0.28
Department of Health,BSUH NHS Trust,27-Apr-15,M&S Equipment : General,"Level 8A West (RSCH,IW,32 Beds)",NHS LOGISTICS AUTHORITY,1015238594,0.28
Department of Health,BSUH NHS Trust,27-Apr-15,M&S Equipment : General,"Level 8A West (RSCH,IW,32 Beds)",NHS LOGISTICS AUTHORITY,1015238594,9.45
Department of Health,BSUH NHS Trust,27-Apr-15,M&S Equipment : General,"Level 8A West (RSCH,IW,32 Beds)",NHS LOGISTICS AUTHORITY,1015238594,27.9
Department of Health,BSUH NHS Trust,27-Apr-15,M&S Equipment : General,"Level 8A West (RSCH,IW,32 Beds)",NHS LOGISTICS AUTHORITY,1015238594,27.9
Department of Health,BSUH NHS Trust,27-Apr-15,M&S Equipment : General,"Level 8A West (RSCH,IW,32 Beds)",NHS LOGISTICS AUTHORITY,1015238594,9.33
Department of Health,BSUH NHS Trust,27-Apr-15,M&S Equipment : General,"Level 8A West (RSCH,IW,32 Beds)",NHS LOGISTICS AUTHORITY,1015238594,28.9
Department of Health,BSUH NHS Trust,27-Apr-15,M&S Equipment : General,"Level 8A West (RSCH,IW,32 Beds)",NHS LOGISTICS AUTHORITY,1015238594,10.33
Department of Health,BSUH NHS Trust,27-Apr-15,M&S Equipment : General,"Level 8A West (RSCH,IW,32 Beds)",NHS LOGISTICS AUTHORITY,1015238594,15.5
Department of Health,BSUH NHS Trust,27-Apr-15,M&S Equipment : General,"Level 8A West (RSCH,IW,32 Beds)",NHS LOGISTICS AUTHORITY,1015238594,216.4
Department of Health,BSUH NHS Trust,27-Apr-15,M&S Equipment : General,"Level 8A West (RSCH,IW,32 Beds)",NHS LOGISTICS AUTHORITY,1015238594,3.35
Department of Health,BSUH NHS Trust,27-Apr-15,M&S Equipment : General,"Level 8A West (RSCH,IW,32 Beds)",NHS LOGISTICS AUTHORITY,1015238594,3.35
Department of Health,BSUH NHS Trust,27-Apr-15,M&S Equipment : General,"Level 8A West (RSCH,IW,32 Beds)",NHS LOGISTICS AUTHORITY,1015238594,1.38
Department of Health,BSUH NHS Trust,27-Apr-15,M&S Equipment : General,"Level 8A West (RSCH,IW,32 Beds)",NHS LOGISTICS AUTHORITY,1015238594,1.38
Department of Health,BSUH NHS Trust,27-Apr-15,M&S Equipment : General,"Level 8A West (RSCH,IW,32 Beds)",NHS LOGISTICS AUTHORITY,1015238594,8
Department of Health,BSUH NHS Trust,27-Apr-15,Patients Clothing,"RACH Day Case Ward & OPD (RAH,OP, Beds)",NHS LOGISTICS AUTHORITY,1015238594,1.08
Department of Health,BSUH NHS Trust,27-Apr-15,Patients Clothing,"RACH Day Case Ward & OPD (RAH,OP, Beds)",NHS LOGISTICS AUTHORITY,1015238594,1.08
Department of Health,BSUH NHS Trust,27-Apr-15,Patients Clothing,"RACH Day Case Ward & OPD (RAH,OP, Beds)",NHS LOGISTICS AUTHORITY,1015238594,5.4
Department of Health,BSUH NHS Trust,27-Apr-15,Patients Clothing,"RACH Day Case Ward & OPD (RAH,OP, Beds)",NHS LOGISTICS AUTHORITY,1015238594,5.4
Department of Health,BSUH NHS Trust,27-Apr-15,Cleaning Materials,"Child Community Nursing Team (COMM,COM, Beds)",NHS LOGISTICS AUTHORITY,1015238594,0.21
Department of Health,BSUH NHS Trust,27-Apr-15,Cleaning Materials,"Child Community Nursing Team (COMM,COM, Beds)",NHS LOGISTICS AUTHORITY,1015238594,0.48
Department of Health,BSUH NHS Trust,27-Apr-15,Cleaning Materials,"Child Community Nursing Team (COMM,COM, Beds)",NHS LOGISTICS AUTHORITY,1015238594,1.05
Department of Health,BSUH NHS Trust,27-Apr-15,Cleaning Materials,"Child Community Nursing Team (COMM,COM, Beds)",NHS LOGISTICS AUTHORITY,1015238594,2.4
Department of Health,BSUH NHS Trust,27-Apr-15,M&S Equipment : General,"RACH Day Case Ward & OPD (RAH,OP, Beds)",NHS LOGISTICS AUTHORITY,1015238594,1.97
Department of Health,BSUH NHS Trust,27-Apr-15,M&S Equipment : General,"RACH Day Case Ward & OPD (RAH,OP, Beds)",NHS LOGISTICS AUTHORITY,1015238594,0.28
Department of Health,BSUH NHS Trust,27-Apr-15,M&S Equipment : General,"RACH Day Case Ward & OPD (RAH,OP, Beds)",NHS LOGISTICS AUTHORITY,1015238594,0.25
Department of Health,BSUH NHS Trust,27-Apr-15,M&S Equipment : General,"RACH Day Case Ward & OPD (RAH,OP, Beds)",NHS LOGISTICS AUTHORITY,1015238594,4.44
Department of Health,BSUH NHS Trust,27-Apr-15,M&S Equipment : General,"RACH Day Case Ward & OPD (RAH,OP, Beds)",NHS LOGISTICS AUTHORITY,1015238594,9.87
Department of Health,BSUH NHS Trust,27-Apr-15,M&S Equipment : General,"RACH Day Case Ward & OPD (RAH,OP, Beds)",NHS LOGISTICS AUTHORITY,1015238594,1.42
Department of Health,BSUH NHS Trust,27-Apr-15,M&S Equipment : General,"RACH Day Case Ward & OPD (RAH,OP, Beds)",NHS LOGISTICS AUTHORITY,1015238594,1.25
Department of Health,BSUH NHS Trust,27-Apr-15,M&S Equipment : General,"RACH Day Case Ward & OPD (RAH,OP, Beds)",NHS LOGISTICS AUTHORITY,1015238594,22.22
Department of Health,BSUH NHS Trust,27-Apr-15,Dressings,"Child Community Nursing Team (COMM,COM, Beds)",NHS LOGISTICS AUTHORITY,1015238594,0.07
Department of Health,BSUH NHS Trust,27-Apr-15,Dressings,"Child Community Nursing Team (COMM,COM, Beds)",NHS LOGISTICS AUTHORITY,1015238594,2
Department of Health,BSUH NHS Trust,27-Apr-15,Dressings,"Child Community Nursing Team (COMM,COM, Beds)",NHS LOGISTICS AUTHORITY,1015238594,1.21
Department of Health,BSUH NHS Trust,27-Apr-15,Dressings,"Child Community Nursing Team (COMM,COM, Beds)",NHS LOGISTICS AUTHORITY,1015238594,3.91
Department of Health,BSUH NHS Trust,27-Apr-15,Dressings,"Child Community Nursing Team (COMM,COM, Beds)",NHS LOGISTICS AUTHORITY,1015238594,7.41
Department of Health,BSUH NHS Trust,27-Apr-15,Dressings,"Child Community Nursing Team (COMM,COM, Beds)",NHS LOGISTICS AUTHORITY,1015238594,19.53
Department of Health,BSUH NHS Trust,27-Apr-15,Dressings,"Child Community Nursing Team (COMM,COM, Beds)",NHS LOGISTICS AUTHORITY,1015238594,6.05
Department of Health,BSUH NHS Trust,27-Apr-15,Dressings,"Child Community Nursing Team (COMM,COM, Beds)",NHS LOGISTICS AUTHORITY,1015238594,10
Department of Health,BSUH NHS Trust,27-Apr-15,Dressings,"Child Community Nursing Team (COMM,COM, Beds)",NHS LOGISTICS AUTHORITY,1015238594,37.03
Department of Health,BSUH NHS Trust,27-Apr-15,Dressings,"Child Community Nursing Team (COMM,COM, Beds)",NHS LOGISTICS AUTHORITY,1015238594,0.35
Department of Health,BSUH NHS Trust,27-Apr-15,Patients Appliances : Purchase,"Child Community Nursing Team (COMM,COM, Beds)",NHS LOGISTICS AUTHORITY,1015238594,2.58
Department of Health,BSUH NHS Trust,27-Apr-15,Patients Appliances : Purchase,"Child Community Nursing Team (COMM,COM, Beds)",NHS LOGISTICS AUTHORITY,1015238594,12.88
Department of Health,BSUH NHS Trust,27-Apr-15,Cleaning Materials,"Hove Polyclinic Staffing (Outpatients) (COMM,OP/DC,5 Beds)",NHS LOGISTICS AUTHORITY,1015238594,0.78
Department of Health,BSUH NHS Trust,27-Apr-15,Cleaning Materials,"Hove Polyclinic Staffing (Outpatients) (COMM,OP/DC,5 Beds)",NHS LOGISTICS AUTHORITY,1015238594,4.63
Department of Health,BSUH NHS Trust,27-Apr-15,Cleaning Materials,"Hove Polyclinic Staffing (Outpatients) (COMM,OP/DC,5 Beds)",NHS LOGISTICS AUTHORITY,1015238594,1.69
Department of Health,BSUH NHS Trust,27-Apr-15,Cleaning Materials,"Hove Polyclinic Staffing (Outpatients) (COMM,OP/DC,5 Beds)",NHS LOGISTICS AUTHORITY,1015238594,3.88
Department of Health,BSUH NHS Trust,27-Apr-15,Cleaning Materials,"Hove Polyclinic Staffing (Outpatients) (COMM,OP/DC,5 Beds)",NHS LOGISTICS AUTHORITY,1015238594,23.17
Department of Health,BSUH NHS Trust,27-Apr-15,Cleaning Materials,"Hove Polyclinic Staffing (Outpatients) (COMM,OP/DC,5 Beds)",NHS LOGISTICS AUTHORITY,1015238594,8.43
Department of Health,BSUH NHS Trust,27-Apr-15,Dressings,"Hove Polyclinic Staffing (Outpatients) (COMM,OP/DC,5 Beds)",NHS LOGISTICS AUTHORITY,1015238594,0.7
Department of Health,BSUH NHS Trust,27-Apr-15,Dressings,"Hove Polyclinic Staffing (Outpatients) (COMM,OP/DC,5 Beds)",NHS LOGISTICS AUTHORITY,1015238594,3.5
Department of Health,BSUH NHS Trust,27-Apr-15,Patients Appliances : Purchase,"RACH Day Case Ward & OPD (RAH,OP, Beds)",NHS LOGISTICS AUTHORITY,1015238594,1.09
Department of Health,BSUH NHS Trust,27-Apr-15,Patients Appliances : Purchase,"RACH Day Case Ward & OPD (RAH,OP, Beds)",NHS LOGISTICS AUTHORITY,1015238594,4.12
Department of Health,BSUH NHS Trust,27-Apr-15,Patients Appliances : Purchase,"RACH Day Case Ward & OPD (RAH,OP, Beds)",NHS LOGISTICS AUTHORITY,1015238594,4.12
Department of Health,BSUH NHS Trust,27-Apr-15,Patients Appliances : Purchase,"RACH Day Case Ward & OPD (RAH,OP, Beds)",NHS LOGISTICS AUTHORITY,1015238594,2.19
Department of Health,BSUH NHS Trust,27-Apr-15,Patients Appliances : Purchase,"RACH Day Case Ward & OPD (RAH,OP, Beds)",NHS LOGISTICS AUTHORITY,1015238594,4.12
Department of Health,BSUH NHS Trust,27-Apr-15,Patients Appliances : Purchase,"RACH Day Case Ward & OPD (RAH,OP, Beds)",NHS LOGISTICS AUTHORITY,1015238594,20.59
Department of Health,BSUH NHS Trust,27-Apr-15,Patients Appliances : Purchase,"RACH Day Case Ward & OPD (RAH,OP, Beds)",NHS LOGISTICS AUTHORITY,1015238594,5.47
Department of Health,BSUH NHS Trust,27-Apr-15,Patients Appliances : Purchase,"RACH Day Case Ward & OPD (RAH,OP, Beds)",NHS LOGISTICS AUTHORITY,1015238594,10.93
Department of Health,BSUH NHS Trust,27-Apr-15,Patients Appliances : Purchase,"RACH Day Case Ward & OPD (RAH,OP, Beds)",NHS LOGISTICS AUTHORITY,1015238594,20.59
Department of Health,BSUH NHS Trust,27-Apr-15,Patients Appliances : Purchase,"RACH Day Case Ward & OPD (RAH,OP, Beds)",NHS LOGISTICS AUTHORITY,1015238594,20.59
Department of Health,BSUH NHS Trust,27-Apr-15,Patients Clothing,"Cardiac Surgical Unit (CHDU) (RSCH,IW,8 Beds)",NHS LOGISTICS AUTHORITY,1015238594,4.19
Department of Health,BSUH NHS Trust,27-Apr-15,Patients Clothing,"Cardiac Surgical Unit (CHDU) (RSCH,IW,8 Beds)",NHS LOGISTICS AUTHORITY,1015238594,20.93
Department of Health,BSUH NHS Trust,27-Apr-15,Laboratory Equipment,"Hove Polyclinic Staffing (Outpatients) (COMM,OP/DC,5 Beds)",NHS LOGISTICS AUTHORITY,1015238594,1.57
Department of Health,BSUH NHS Trust,27-Apr-15,Laboratory Equipment,"Hove Polyclinic Staffing (Outpatients) (COMM,OP/DC,5 Beds)",NHS LOGISTICS AUTHORITY,1015238594,1.57
Department of Health,BSUH NHS Trust,27-Apr-15,Laboratory Equipment,"Hove Polyclinic Staffing (Outpatients) (COMM,OP/DC,5 Beds)",NHS LOGISTICS AUTHORITY,1015238594,7.85
Department of Health,BSUH NHS Trust,27-Apr-15,Laboratory Equipment,"Hove Polyclinic Staffing (Outpatients) (COMM,OP/DC,5 Beds)",NHS LOGISTICS AUTHORITY,1015238594,7.85
Department of Health,BSUH NHS Trust,27-Apr-15,M&S Equipment : General,Trauma and Orthopaedics - Elective,NHS LOGISTICS AUTHORITY,1015238594,34.91
Department of Health,BSUH NHS Trust,27-Apr-15,M&S Equipment : General,Trauma and Orthopaedics - Elective,NHS LOGISTICS AUTHORITY,1015238594,174.57
Department of Health,BSUH NHS Trust,27-Apr-15,Dressings,SAU,NHS LOGISTICS AUTHORITY,1015238594,1.15
Department of Health,BSUH NHS Trust,27-Apr-15,Dressings,SAU,NHS LOGISTICS AUTHORITY,1015238594,0.57
Department of Health,BSUH NHS Trust,27-Apr-15,Dressings,SAU,NHS LOGISTICS AUTHORITY,1015238594,1.53
Department of Health,BSUH NHS Trust,27-Apr-15,Dressings,SAU,NHS LOGISTICS AUTHORITY,1015238594,5.75
Department of Health,BSUH NHS Trust,27-Apr-15,Dressings,SAU,NHS LOGISTICS AUTHORITY,1015238594,2.83
Department of Health,BSUH NHS Trust,27-Apr-15,Dressings,SAU,NHS LOGISTICS AUTHORITY,1015238594,7.64
Department of Health,BSUH NHS Trust,27-Apr-15,Bedding & Linen : Disposable,"Hove Polyclinic Staffing (Outpatients) (COMM,OP/DC,5 Beds)",NHS LOGISTICS AUTHORITY,1015238594,2.88
Department of Health,BSUH NHS Trust,27-Apr-15,Bedding & Linen : Disposable,"Hove Polyclinic Staffing (Outpatients) (COMM,OP/DC,5 Beds)",NHS LOGISTICS AUTHORITY,1015238594,14.4
Department of Health,BSUH NHS Trust,27-Apr-15,Orthopaedic Implants - Other,Trauma and Orthopaedics - Elective,NHS LOGISTICS AUTHORITY,1015238594,4.71
Department of Health,BSUH NHS Trust,27-Apr-15,Orthopaedic Implants - Other,Trauma and Orthopaedics - Elective,NHS LOGISTICS AUTHORITY,1015238594,23.56
Department of Health,BSUH NHS Trust,27-Apr-15,Oth. Gen. Supplies & Services,"Pyecombe Ward (27 beds) (PRH,IW,27 Beds)",NHS LOGISTICS AUTHORITY,1015238594,0.97
Department of Health,BSUH NHS Trust,27-Apr-15,Oth. Gen. Supplies & Services,"Pyecombe Ward (27 beds) (PRH,IW,27 Beds)",NHS LOGISTICS AUTHORITY,1015238594,3.14
Department of Health,BSUH NHS Trust,27-Apr-15,Oth. Gen. Supplies & Services,"Pyecombe Ward (27 beds) (PRH,IW,27 Beds)",NHS LOGISTICS AUTHORITY,1015238594,4.86
Department of Health,BSUH NHS Trust,27-Apr-15,Oth. Gen. Supplies & Services,"Pyecombe Ward (27 beds) (PRH,IW,27 Beds)",NHS LOGISTICS AUTHORITY,1015238594,4.73
Department of Health,BSUH NHS Trust,27-Apr-15,Oth. Gen. Supplies & Services,"Pyecombe Ward (27 beds) (PRH,IW,27 Beds)",NHS LOGISTICS AUTHORITY,1015238594,10.2
Department of Health,BSUH NHS Trust,27-Apr-15,Oth. Gen. Supplies & Services,"Pyecombe Ward (27 beds) (PRH,IW,27 Beds)",NHS LOGISTICS AUTHORITY,1015238594,5.5
Department of Health,BSUH NHS Trust,27-Apr-15,Cleaning Materials,"Level 8A East (RSCH,IW,24 Beds)",NHS LOGISTICS AUTHORITY,1015238594,2.38
Department of Health,BSUH NHS Trust,27-Apr-15,Cleaning Materials,"Level 8A East (RSCH,IW,24 Beds)",NHS LOGISTICS AUTHORITY,1015238594,1.6
Department of Health,BSUH NHS Trust,27-Apr-15,Cleaning Materials,"Level 8A East (RSCH,IW,24 Beds)",NHS LOGISTICS AUTHORITY,1015238594,11.88
Department of Health,BSUH NHS Trust,27-Apr-15,Cleaning Materials,"Level 8A East (RSCH,IW,24 Beds)",NHS LOGISTICS AUTHORITY,1015238594,8
Department of Health,BSUH NHS Trust,27-Apr-15,Patients Clothing,"Level 8A East (RSCH,IW,24 Beds)",NHS LOGISTICS AUTHORITY,1015238594,4.65
Department of Health,BSUH NHS Trust,27-Apr-15,Patients Clothing,"Level 8A East (RSCH,IW,24 Beds)",NHS LOGISTICS AUTHORITY,1015238594,9.57
Department of Health,BSUH NHS Trust,27-Apr-15,Patients Clothing,"Level 8A East (RSCH,IW,24 Beds)",NHS LOGISTICS AUTHORITY,1015238594,47.87
Department of Health,BSUH NHS Trust,27-Apr-15,Patients Clothing,"Level 8A East (RSCH,IW,24 Beds)",NHS LOGISTICS AUTHORITY,1015238594,23.27
Department of Health,BSUH NHS Trust,27-Apr-15,Provisions,"RACH Day Case Ward & OPD (RAH,OP, Beds)",NHS LOGISTICS AUTHORITY,1015238594,3.33
Department of Health,BSUH NHS Trust,27-Apr-15,Provisions,"RACH Day Case Ward & OPD (RAH,OP, Beds)",NHS LOGISTICS AUTHORITY,1015238594,16.66
Department of Health,BSUH NHS Trust,27-Apr-15,Dressings,"RACH Day Case Ward & OPD (RAH,OP, Beds)",NHS LOGISTICS AUTHORITY,1015238594,0.58
Department of Health,BSUH NHS Trust,27-Apr-15,Dressings,"RACH Day Case Ward & OPD (RAH,OP, Beds)",NHS LOGISTICS AUTHORITY,1015238594,2.7
Department of Health,BSUH NHS Trust,27-Apr-15,Dressings,"RACH Day Case Ward & OPD (RAH,OP, Beds)",NHS LOGISTICS AUTHORITY,1015238594,3.51
Department of Health,BSUH NHS Trust,27-Apr-15,Dressings,"RACH Day Case Ward & OPD (RAH,OP, Beds)",NHS LOGISTICS AUTHORITY,1015238594,2.38
Department of Health,BSUH NHS Trust,27-Apr-15,Dressings,"RACH Day Case Ward & OPD (RAH,OP, Beds)",NHS LOGISTICS AUTHORITY,1015238594,1.88
Department of Health,BSUH NHS Trust,27-Apr-15,Dressings,"RACH Day Case Ward & OPD (RAH,OP, Beds)",NHS LOGISTICS AUTHORITY,1015238594,0.59
Department of Health,BSUH NHS Trust,27-Apr-15,Dressings,"RACH Day Case Ward & OPD (RAH,OP, Beds)",NHS LOGISTICS AUTHORITY,1015238594,2.22
Department of Health,BSUH NHS Trust,27-Apr-15,Dressings,"RACH Day Case Ward & OPD (RAH,OP, Beds)",NHS LOGISTICS AUTHORITY,1015238594,1.23
Department of Health,BSUH NHS Trust,27-Apr-15,Dressings,"RACH Day Case Ward & OPD (RAH,OP, Beds)",NHS LOGISTICS AUTHORITY,1015238594,4.63
Department of Health,BSUH NHS Trust,27-Apr-15,Dressings,"RACH Day Case Ward & OPD (RAH,OP, Beds)",NHS LOGISTICS AUTHORITY,1015238594,1.15
Department of Health,BSUH NHS Trust,27-Apr-15,Dressings,"RACH Day Case Ward & OPD (RAH,OP, Beds)",NHS LOGISTICS AUTHORITY,1015238594,0.58
Department of Health,BSUH NHS Trust,27-Apr-15,Dressings,"RACH Day Case Ward & OPD (RAH,OP, Beds)",NHS LOGISTICS AUTHORITY,1015238594,4.76
Department of Health,BSUH NHS Trust,27-Apr-15,Dressings,"RACH Day Case Ward & OPD (RAH,OP, Beds)",NHS LOGISTICS AUTHORITY,1015238594,0.45
Department of Health,BSUH NHS Trust,27-Apr-15,Dressings,"RACH Day Case Ward & OPD (RAH,OP, Beds)",NHS LOGISTICS AUTHORITY,1015238594,2.38
Department of Health,BSUH NHS Trust,27-Apr-15,Dressings,"RACH Day Case Ward & OPD (RAH,OP, Beds)",NHS LOGISTICS AUTHORITY,1015238594,5.13
Department of Health,BSUH NHS Trust,27-Apr-15,Dressings,"RACH Day Case Ward & OPD (RAH,OP, Beds)",NHS LOGISTICS AUTHORITY,1015238594,9.03
Department of Health,BSUH NHS Trust,27-Apr-15,Dressings,"RACH Day Case Ward & OPD (RAH,OP, Beds)",NHS LOGISTICS AUTHORITY,1015238594,2.25
Department of Health,BSUH NHS Trust,27-Apr-15,Dressings,"RACH Day Case Ward & OPD (RAH,OP, Beds)",NHS LOGISTICS AUTHORITY,1015238594,2.95
Department of Health,BSUH NHS Trust,27-Apr-15,Dressings,"RACH Day Case Ward & OPD (RAH,OP, Beds)",NHS LOGISTICS AUTHORITY,1015238594,9.4
Department of Health,BSUH NHS Trust,27-Apr-15,Dressings,"RACH Day Case Ward & OPD (RAH,OP, Beds)",NHS LOGISTICS AUTHORITY,1015238594,11.08
Department of Health,BSUH NHS Trust,27-Apr-15,Dressings,"RACH Day Case Ward & OPD (RAH,OP, Beds)",NHS LOGISTICS AUTHORITY,1015238594,5.77
Department of Health,BSUH NHS Trust,27-Apr-15,Dressings,"RACH Day Case Ward & OPD (RAH,OP, Beds)",NHS LOGISTICS AUTHORITY,1015238594,2.88
Department of Health,BSUH NHS Trust,27-Apr-15,Dressings,"RACH Day Case Ward & OPD (RAH,OP, Beds)",NHS LOGISTICS AUTHORITY,1015238594,2.92
Department of Health,BSUH NHS Trust,27-Apr-15,Dressings,"RACH Day Case Ward & OPD (RAH,OP, Beds)",NHS LOGISTICS AUTHORITY,1015238594,13.52
Department of Health,BSUH NHS Trust,27-Apr-15,Dressings,"RACH Day Case Ward & OPD (RAH,OP, Beds)",NHS LOGISTICS AUTHORITY,1015238594,17.55
Department of Health,BSUH NHS Trust,27-Apr-15,Dressings,"RACH Day Case Ward & OPD (RAH,OP, Beds)",NHS LOGISTICS AUTHORITY,1015238594,6.13
Department of Health,BSUH NHS Trust,27-Apr-15,Dressings,"RACH Day Case Ward & OPD (RAH,OP, Beds)",NHS LOGISTICS AUTHORITY,1015238594,11.9
Department of Health,BSUH NHS Trust,27-Apr-15,Dressings,"RACH Day Case Ward & OPD (RAH,OP, Beds)",NHS LOGISTICS AUTHORITY,1015238594,11.9
Department of Health,BSUH NHS Trust,27-Apr-15,Dressings,"RACH Day Case Ward & OPD (RAH,OP, Beds)",NHS LOGISTICS AUTHORITY,1015238594,23.17
Department of Health,BSUH NHS Trust,27-Apr-15,Dressings,"RACH Day Case Ward & OPD (RAH,OP, Beds)",NHS LOGISTICS AUTHORITY,1015238594,23.8
Department of Health,BSUH NHS Trust,27-Apr-15,Dressings,"RACH Day Case Ward & OPD (RAH,OP, Beds)",NHS LOGISTICS AUTHORITY,1015238594,25.66
Department of Health,BSUH NHS Trust,27-Apr-15,Dressings,"RACH Day Case Ward & OPD (RAH,OP, Beds)",NHS LOGISTICS AUTHORITY,1015238594,45.17
Department of Health,BSUH NHS Trust,27-Apr-15,Hardware & Crockery,"RACH Day Case Ward & OPD (RAH,OP, Beds)",NHS LOGISTICS AUTHORITY,1015238594,1.47
Department of Health,BSUH NHS Trust,27-Apr-15,Hardware & Crockery,"RACH Day Case Ward & OPD (RAH,OP, Beds)",NHS LOGISTICS AUTHORITY,1015238594,7.35
Department of Health,BSUH NHS Trust,27-Apr-15,Bedding & Linen : Disposable,"RACH Day Case Ward & OPD (RAH,OP, Beds)",NHS LOGISTICS AUTHORITY,1015238594,2.87
Department of Health,BSUH NHS Trust,27-Apr-15,Bedding & Linen : Disposable,"RACH Day Case Ward & OPD (RAH,OP, Beds)",NHS LOGISTICS AUTHORITY,1015238594,14.33
Department of Health,BSUH NHS Trust,27-Apr-15,Cleaning Materials,"RACH Day Case Ward & OPD (RAH,OP, Beds)",NHS LOGISTICS AUTHORITY,1015238594,0.8
Department of Health,BSUH NHS Trust,27-Apr-15,Cleaning Materials,"RACH Day Case Ward & OPD (RAH,OP, Beds)",NHS LOGISTICS AUTHORITY,1015238594,0.32
Department of Health,BSUH NHS Trust,27-Apr-15,Cleaning Materials,"RACH Day Case Ward & OPD (RAH,OP, Beds)",NHS LOGISTICS AUTHORITY,1015238594,1.66
Department of Health,BSUH NHS Trust,27-Apr-15,Cleaning Materials,"RACH Day Case Ward & OPD (RAH,OP, Beds)",NHS LOGISTICS AUTHORITY,1015238594,6.24
Department of Health,BSUH NHS Trust,27-Apr-15,Cleaning Materials,"RACH Day Case Ward & OPD (RAH,OP, Beds)",NHS LOGISTICS AUTHORITY,1015238594,8.32
Department of Health,BSUH NHS Trust,27-Apr-15,Cleaning Materials,"RACH Day Case Ward & OPD (RAH,OP, Beds)",NHS LOGISTICS AUTHORITY,1015238594,1.6
Department of Health,BSUH NHS Trust,27-Apr-15,Cleaning Materials,"RACH Day Case Ward & OPD (RAH,OP, Beds)",NHS LOGISTICS AUTHORITY,1015238594,4
Department of Health,BSUH NHS Trust,27-Apr-15,Cleaning Materials,"RACH Day Case Ward & OPD (RAH,OP, Beds)",NHS LOGISTICS AUTHORITY,1015238594,31.2
Department of Health,BSUH NHS Trust,27-Apr-15,Laboratory Equipment,"RACH Day Case Ward & OPD (RAH,OP, Beds)",NHS LOGISTICS AUTHORITY,1015238594,4.35
Department of Health,BSUH NHS Trust,27-Apr-15,Laboratory Equipment,"RACH Day Case Ward & OPD (RAH,OP, Beds)",NHS LOGISTICS AUTHORITY,1015238594,2.29
Department of Health,BSUH NHS Trust,27-Apr-15,Laboratory Equipment,"RACH Day Case Ward & OPD (RAH,OP, Beds)",NHS LOGISTICS AUTHORITY,1015238594,21.73
Department of Health,BSUH NHS Trust,27-Apr-15,Laboratory Equipment,"RACH Day Case Ward & OPD (RAH,OP, Beds)",NHS LOGISTICS AUTHORITY,1015238594,11.45
Department of Health,BSUH NHS Trust,27-Apr-15,M&S Equipment : General,Sterile Services (BTN),NHS LOGISTICS AUTHORITY,1015238594,106.8
Department of Health,BSUH NHS Trust,27-Apr-15,M&S Equipment : General,Sterile Services (BTN),NHS LOGISTICS AUTHORITY,1015238594,52.93
Department of Health,BSUH NHS Trust,27-Apr-15,M&S Equipment : General,Sterile Services (BTN),NHS LOGISTICS AUTHORITY,1015238594,20.63
Department of Health,BSUH NHS Trust,27-Apr-15,Cleaning Materials,Sterile Services (BTN),NHS LOGISTICS AUTHORITY,1015238594,0.59
Department of Health,BSUH NHS Trust,27-Apr-15,Cleaning Materials,Sterile Services (BTN),NHS LOGISTICS AUTHORITY,1015238594,5.26
Department of Health,BSUH NHS Trust,27-Apr-15,Cleaning Materials,Sterile Services (BTN),NHS LOGISTICS AUTHORITY,1015238594,2.94
Department of Health,BSUH NHS Trust,27-Apr-15,Cleaning Materials,Sterile Services (BTN),NHS LOGISTICS AUTHORITY,1015238594,26.3
Department of Health,BSUH NHS Trust,27-Apr-15,Bedding & Linen : Disposable,Sterile Services (BTN),NHS LOGISTICS AUTHORITY,1015238594,9
Department of Health,BSUH NHS Trust,27-Apr-15,Bedding & Linen : Disposable,Sterile Services (BTN),NHS LOGISTICS AUTHORITY,1015238594,45
Department of Health,BSUH NHS Trust,27-Apr-15,Stationery,Sterile Services (BTN),NHS LOGISTICS AUTHORITY,1015238594,2.47
Department of Health,BSUH NHS Trust,27-Apr-15,Stationery,Sterile Services (BTN),NHS LOGISTICS AUTHORITY,1015238594,12.37
Department of Health,BSUH NHS Trust,27-Apr-15,M&S Equipment : General,Sterile Services (PRH),NHS LOGISTICS AUTHORITY,1015238594,16.67
Department of Health,BSUH NHS Trust,27-Apr-15,M&S Equipment : General,Sterile Services (PRH),NHS LOGISTICS AUTHORITY,1015238594,75.23
Department of Health,BSUH NHS Trust,27-Apr-15,M&S Equipment : General,Sterile Services (PRH),NHS LOGISTICS AUTHORITY,1015238594,139.27
Department of Health,BSUH NHS Trust,27-Apr-15,M&S Equipment : General,Sterile Services (PRH),NHS LOGISTICS AUTHORITY,1015238594,32.73
Department of Health,BSUH NHS Trust,27-Apr-15,M&S Equipment : General,Sterile Services (PRH),NHS LOGISTICS AUTHORITY,1015238594,376.17
Department of Health,BSUH NHS Trust,27-Apr-15,M&S Equipment : General,Sterile Services (PRH),NHS LOGISTICS AUTHORITY,1015238594,696.35
Department of Health,BSUH NHS Trust,27-Apr-15,M&S Equipment : General,Sterile Services (PRH),NHS LOGISTICS AUTHORITY,1015238594,83.33
Department of Health,BSUH NHS Trust,27-Apr-15,M&S Equipment : General,Sterile Services (PRH),NHS LOGISTICS AUTHORITY,1015238594,163.67
Department of Health,BSUH NHS Trust,27-Apr-15,Staff Uniforms & Clothing,Sterile Services (PRH),NHS LOGISTICS AUTHORITY,1015238594,5.51
Department of Health,BSUH NHS Trust,27-Apr-15,Staff Uniforms & Clothing,Sterile Services (PRH),NHS LOGISTICS AUTHORITY,1015238594,27.55
Department of Health,BSUH NHS Trust,27-Apr-15,NHS creditors < one year,B/S Systems Team,NHS LOGISTICS AUTHORITY,1015238594,872.48
Department of Health,BSUH NHS Trust,27-Apr-15,NHS creditors < one year,B/S Systems Team,NHS LOGISTICS AUTHORITY,1015238594,35
Department of Health,BSUH NHS Trust,27-Apr-15,NHS creditors < one year,B/S Systems Team,NHS LOGISTICS AUTHORITY,1015238594,3166.67
Department of Health,BSUH NHS Trust,27-Apr-15,NHS creditors < one year,B/S Systems Team,NHS LOGISTICS AUTHORITY,1015238594,818.33
Department of Health,BSUH NHS Trust,27-Apr-15,NHS creditors < one year,B/S Systems Team,NHS LOGISTICS AUTHORITY,1015238594,233.01
Department of Health,BSUH NHS Trust,27-Apr-15,NHS creditors < one year,B/S Systems Team,NHS LOGISTICS AUTHORITY,1015238594,52.3
Department of Health,BSUH NHS Trust,27-Apr-15,NHS creditors < one year,B/S Systems Team,NHS LOGISTICS AUTHORITY,1015238594,57.1
Department of Health,BSUH NHS Trust,27-Apr-15,Non-NHS Trade Creditors < one year,B/S Payments,NHS LOGISTICS AUTHORITY,1015238594,-161.97
Department of Health,BSUH NHS Trust,27-Apr-15,Laboratory Chemicals,"Childrens Emergency Department (RAH,ED, Beds)",NHS LOGISTICS AUTHORITY,1015238594,1.06
Department of Health,BSUH NHS Trust,27-Apr-15,Laboratory Chemicals,"Childrens Emergency Department (RAH,ED, Beds)",NHS LOGISTICS AUTHORITY,1015238594,2.71
Department of Health,BSUH NHS Trust,27-Apr-15,Laboratory Chemicals,"Childrens Emergency Department (RAH,ED, Beds)",NHS LOGISTICS AUTHORITY,1015238594,13.54
Department of Health,BSUH NHS Trust,27-Apr-15,Laboratory Chemicals,"Childrens Emergency Department (RAH,ED, Beds)",NHS LOGISTICS AUTHORITY,1015238594,5.3
Department of Health,BSUH NHS Trust,27-Apr-15,Patients Clothing,"Horsted Keynes - Gynae Ward (PRH,IW,12 Beds)",NHS LOGISTICS AUTHORITY,1015238594,1.69
Department of Health,BSUH NHS Trust,27-Apr-15,Patients Clothing,"Horsted Keynes - Gynae Ward (PRH,IW,12 Beds)",NHS LOGISTICS AUTHORITY,1015238594,8.43
Department of Health,BSUH NHS Trust,27-Apr-15,Patients Appliances : Purchase,"Childrens Emergency Department (RAH,ED, Beds)",NHS LOGISTICS AUTHORITY,1015238594,10.73
Department of Health,BSUH NHS Trust,27-Apr-15,Patients Appliances : Purchase,"Childrens Emergency Department (RAH,ED, Beds)",NHS LOGISTICS AUTHORITY,1015238594,4.12
Department of Health,BSUH NHS Trust,27-Apr-15,Patients Appliances : Purchase,"Childrens Emergency Department (RAH,ED, Beds)",NHS LOGISTICS AUTHORITY,1015238594,53.65
Department of Health,BSUH NHS Trust,27-Apr-15,Patients Appliances : Purchase,"Childrens Emergency Department (RAH,ED, Beds)",NHS LOGISTICS AUTHORITY,1015238594,20.59
Department of Health,BSUH NHS Trust,27-Apr-15,M&S Equipment : General,SAU,NHS LOGISTICS AUTHORITY,1015238594,4.63
Department of Health,BSUH NHS Trust,27-Apr-15,M&S Equipment : General,SAU,NHS LOGISTICS AUTHORITY,1015238594,4.25
Department of Health,BSUH NHS Trust,27-Apr-15,M&S Equipment : General,SAU,NHS LOGISTICS AUTHORITY,1015238594,0.28
Department of Health,BSUH NHS Trust,27-Apr-15,M&S Equipment : General,SAU,NHS LOGISTICS AUTHORITY,1015238594,21.19
Department of Health,BSUH NHS Trust,27-Apr-15,M&S Equipment : General,SAU,NHS LOGISTICS AUTHORITY,1015238594,3.1
Department of Health,BSUH NHS Trust,27-Apr-15,M&S Equipment : General,SAU,NHS LOGISTICS AUTHORITY,1015238594,0.55
Department of Health,BSUH NHS Trust,27-Apr-15,M&S Equipment : General,SAU,NHS LOGISTICS AUTHORITY,1015238594,0.32
Department of Health,BSUH NHS Trust,27-Apr-15,M&S Equipment : General,SAU,NHS LOGISTICS AUTHORITY,1015238594,4.63
Department of Health,BSUH NHS Trust,27-Apr-15,M&S Equipment : General,SAU,NHS LOGISTICS AUTHORITY,1015238594,4.63
Department of Health,BSUH NHS Trust,27-Apr-15,M&S Equipment : General,SAU,NHS LOGISTICS AUTHORITY,1015238594,83.8
Department of Health,BSUH NHS Trust,27-Apr-15,M&S Equipment : General,SAU,NHS LOGISTICS AUTHORITY,1015238594,22.15
Department of Health,BSUH NHS Trust,27-Apr-15,M&S Equipment : General,SAU,NHS LOGISTICS AUTHORITY,1015238594,15.5
Department of Health,BSUH NHS Trust,27-Apr-15,M&S Equipment : General,SAU,NHS LOGISTICS AUTHORITY,1015238594,1.38
Department of Health,BSUH NHS Trust,27-Apr-15,M&S Equipment : General,SAU,NHS LOGISTICS AUTHORITY,1015238594,2.75
Department of Health,BSUH NHS Trust,27-Apr-15,M&S Equipment : General,SAU,NHS LOGISTICS AUTHORITY,1015238594,1.6
Department of Health,BSUH NHS Trust,27-Apr-15,M&S Equipment : General,SAU,NHS LOGISTICS AUTHORITY,1015238594,23.13
Department of Health,BSUH NHS Trust,27-Apr-15,M&S Equipment : General,SAU,NHS LOGISTICS AUTHORITY,1015238594,23.13
Department of Health,BSUH NHS Trust,27-Apr-15,M&S Equipment : General,SAU,NHS LOGISTICS AUTHORITY,1015238594,23.13
Department of Health,BSUH NHS Trust,27-Apr-15,M&S Equipment : General,SAU,NHS LOGISTICS AUTHORITY,1015238594,21.25
Department of Health,BSUH NHS Trust,27-Apr-15,Cleaning Materials,"Pre-Operative Assessment (PRH,OP,0 Beds)",NHS LOGISTICS AUTHORITY,1015238594,21
Department of Health,BSUH NHS Trust,27-Apr-15,Cleaning Materials,"Pre-Operative Assessment (PRH,OP,0 Beds)",NHS LOGISTICS AUTHORITY,1015238594,12.32
Department of Health,BSUH NHS Trust,27-Apr-15,Cleaning Materials,"Pre-Operative Assessment (PRH,OP,0 Beds)",NHS LOGISTICS AUTHORITY,1015238594,69.17
Department of Health,BSUH NHS Trust,27-Apr-15,Cleaning Materials,"Pre-Operative Assessment (PRH,OP,0 Beds)",NHS LOGISTICS AUTHORITY,1015238594,35.83
Department of Health,BSUH NHS Trust,27-Apr-15,Cleaning Materials,"Pre-Operative Assessment (PRH,OP,0 Beds)",NHS LOGISTICS AUTHORITY,1015238594,61.6
Department of Health,BSUH NHS Trust,27-Apr-15,Oth. Gen. Supplies & Services,"Pyecombe Ward (27 beds) (PRH,IW,27 Beds)",NHS LOGISTICS AUTHORITY,1015238594,0.95
Department of Health,BSUH NHS Trust,27-Apr-15,Cleaning Materials,Sussex Eye Theatre,NHS LOGISTICS AUTHORITY,1015238594,18.07
Department of Health,BSUH NHS Trust,27-Apr-15,Cleaning Materials,Sussex Eye Theatre,NHS LOGISTICS AUTHORITY,1015238594,4.34
Department of Health,BSUH NHS Trust,27-Apr-15,Cleaning Materials,Sussex Eye Theatre,NHS LOGISTICS AUTHORITY,1015238594,45.5
Department of Health,BSUH NHS Trust,27-Apr-15,Cleaning Materials,Sussex Eye Theatre,NHS LOGISTICS AUTHORITY,1015238594,2
Department of Health,BSUH NHS Trust,27-Apr-15,Bedding & Linen : Disposable,Sussex Eye Theatre,NHS LOGISTICS AUTHORITY,1015238594,0.7
Department of Health,BSUH NHS Trust,27-Apr-15,Bedding & Linen : Disposable,Sussex Eye Theatre,NHS LOGISTICS AUTHORITY,1015238594,1.43
Department of Health,BSUH NHS Trust,27-Apr-15,Bedding & Linen : Disposable,Sussex Eye Theatre,NHS LOGISTICS AUTHORITY,1015238594,7.17
Department of Health,BSUH NHS Trust,27-Apr-15,Bedding & Linen : Disposable,Sussex Eye Theatre,NHS LOGISTICS AUTHORITY,1015238594,3.5
Department of Health,BSUH NHS Trust,27-Apr-15,M&S Equipment : General,Imaging - Interventional Radiology,NHS LOGISTICS AUTHORITY,1015238594,2.4
Department of Health,BSUH NHS Trust,27-Apr-15,M&S Equipment : General,Imaging - Interventional Radiology,NHS LOGISTICS AUTHORITY,1015238594,1
Department of Health,BSUH NHS Trust,27-Apr-15,M&S Equipment : General,Imaging - Interventional Radiology,NHS LOGISTICS AUTHORITY,1015238594,7.26
Department of Health,BSUH NHS Trust,27-Apr-15,M&S Equipment : General,Imaging - Interventional Radiology,NHS LOGISTICS AUTHORITY,1015238594,2.12
Department of Health,BSUH NHS Trust,27-Apr-15,M&S Equipment : General,Imaging - Interventional Radiology,NHS LOGISTICS AUTHORITY,1015238594,13.29
Department of Health,BSUH NHS Trust,27-Apr-15,M&S Equipment : General,Imaging - Interventional Radiology,NHS LOGISTICS AUTHORITY,1015238594,3.3
Department of Health,BSUH NHS Trust,27-Apr-15,M&S Equipment : General,Imaging - Interventional Radiology,NHS LOGISTICS AUTHORITY,1015238594,0.08
Department of Health,BSUH NHS Trust,27-Apr-15,M&S Equipment : General,Imaging - Interventional Radiology,NHS LOGISTICS AUTHORITY,1015238594,4.63
Department of Health,BSUH NHS Trust,27-Apr-15,M&S Equipment : General,Imaging - Interventional Radiology,NHS LOGISTICS AUTHORITY,1015238594,2.33
Department of Health,BSUH NHS Trust,27-Apr-15,M&S Equipment : General,Imaging - Interventional Radiology,NHS LOGISTICS AUTHORITY,1015238594,2.33
Department of Health,BSUH NHS Trust,27-Apr-15,M&S Equipment : General,Imaging - Interventional Radiology,NHS LOGISTICS AUTHORITY,1015238594,4.63
Department of Health,BSUH NHS Trust,27-Apr-15,M&S Equipment : General,Imaging - Interventional Radiology,NHS LOGISTICS AUTHORITY,1015238594,0.38
Department of Health,BSUH NHS Trust,27-Apr-15,M&S Equipment : General,Imaging - Interventional Radiology,NHS LOGISTICS AUTHORITY,1015238594,10.59
Department of Health,BSUH NHS Trust,27-Apr-15,M&S Equipment : General,Imaging - Interventional Radiology,NHS LOGISTICS AUTHORITY,1015238594,66.45
Department of Health,BSUH NHS Trust,27-Apr-15,M&S Equipment : General,Imaging - Interventional Radiology,NHS LOGISTICS AUTHORITY,1015238594,36.32
Department of Health,BSUH NHS Trust,27-Apr-15,M&S Equipment : General,Imaging - Interventional Radiology,NHS LOGISTICS AUTHORITY,1015238594,16.48
Department of Health,BSUH NHS Trust,27-Apr-15,M&S Equipment : General,Imaging - Interventional Radiology,NHS LOGISTICS AUTHORITY,1015238594,11.98
Department of Health,BSUH NHS Trust,27-Apr-15,M&S Equipment : General,Imaging - Interventional Radiology,NHS LOGISTICS AUTHORITY,1015238594,23.13
Department of Health,BSUH NHS Trust,27-Apr-15,M&S Equipment : General,Imaging - Interventional Radiology,NHS LOGISTICS AUTHORITY,1015238594,23.13
Department of Health,BSUH NHS Trust,27-Apr-15,M&S Equipment : General,Imaging - Interventional Radiology,NHS LOGISTICS AUTHORITY,1015238594,11.67
Department of Health,BSUH NHS Trust,27-Apr-15,M&S Equipment : General,Imaging - Interventional Radiology,NHS LOGISTICS AUTHORITY,1015238594,11.67
Department of Health,BSUH NHS Trust,27-Apr-15,M&S Equipment : General,Imaging - Interventional Radiology,NHS LOGISTICS AUTHORITY,1015238594,5
Department of Health,BSUH NHS Trust,27-Apr-15,M&S Equipment : General,Imaging - Barry Building & HPC,NHS LOGISTICS AUTHORITY,1015238594,4.09
Department of Health,BSUH NHS Trust,27-Apr-15,M&S Equipment : General,Imaging - Barry Building & HPC,NHS LOGISTICS AUTHORITY,1015238594,20.47
Department of Health,BSUH NHS Trust,27-Apr-15,Cleaning Materials,Imaging - Barry Building & HPC,NHS LOGISTICS AUTHORITY,1015238594,3.59
Department of Health,BSUH NHS Trust,27-Apr-15,Cleaning Materials,Imaging - Barry Building & HPC,NHS LOGISTICS AUTHORITY,1015238594,10.4
Department of Health,BSUH NHS Trust,27-Apr-15,Cleaning Materials,Imaging - Barry Building & HPC,NHS LOGISTICS AUTHORITY,1015238594,7.53
Department of Health,BSUH NHS Trust,27-Apr-15,Bedding & Linen : Disposable,Imaging - Barry Building & HPC,NHS LOGISTICS AUTHORITY,1015238594,1.84
Department of Health,BSUH NHS Trust,27-Apr-15,Bedding & Linen : Disposable,Imaging - Barry Building & HPC,NHS LOGISTICS AUTHORITY,1015238594,9.2
Department of Health,BSUH NHS Trust,27-Apr-15,M&S Equipment : General,Neurosciences Imaging,NHS LOGISTICS AUTHORITY,1015238594,4.63
Department of Health,BSUH NHS Trust,27-Apr-15,M&S Equipment : General,Neurosciences Imaging,NHS LOGISTICS AUTHORITY,1015238594,2.33
Department of Health,BSUH NHS Trust,27-Apr-15,M&S Equipment : General,Neurosciences Imaging,NHS LOGISTICS AUTHORITY,1015238594,23.13
Department of Health,BSUH NHS Trust,27-Apr-15,M&S Equipment : General,Neurosciences Imaging,NHS LOGISTICS AUTHORITY,1015238594,11.67
Department of Health,BSUH NHS Trust,27-Apr-15,M&S Equipment : General,Breast Screening Imaging - Clinical,NHS LOGISTICS AUTHORITY,1015238594,65.08
Department of Health,BSUH NHS Trust,27-Apr-15,M&S Equipment : General,Breast Screening Imaging - Clinical,NHS LOGISTICS AUTHORITY,1015238594,325.42
Department of Health,BSUH NHS Trust,27-Apr-15,Dressings,Physiotherapy (Trust),NHS LOGISTICS AUTHORITY,1015238594,2.73
Department of Health,BSUH NHS Trust,27-Apr-15,Dressings,Physiotherapy (Trust),NHS LOGISTICS AUTHORITY,1015238594,5.39
Department of Health,BSUH NHS Trust,27-Apr-15,Dressings,Physiotherapy (Trust),NHS LOGISTICS AUTHORITY,1015238594,10.65
Department of Health,BSUH NHS Trust,27-Apr-15,Dressings,Physiotherapy (Trust),NHS LOGISTICS AUTHORITY,1015238594,10.65
Department of Health,BSUH NHS Trust,27-Apr-15,Dressings,Physiotherapy (Trust),NHS LOGISTICS AUTHORITY,1015238594,2.97
Department of Health,BSUH NHS Trust,27-Apr-15,Dressings,Physiotherapy (Trust),NHS LOGISTICS AUTHORITY,1015238594,1.93
Department of Health,BSUH NHS Trust,27-Apr-15,Dressings,Physiotherapy (Trust),NHS LOGISTICS AUTHORITY,1015238594,14.83
Department of Health,BSUH NHS Trust,27-Apr-15,Dressings,Physiotherapy (Trust),NHS LOGISTICS AUTHORITY,1015238594,9.63
Department of Health,BSUH NHS Trust,27-Apr-15,Dressings,Physiotherapy (Trust),NHS LOGISTICS AUTHORITY,1015238594,53.25
Department of Health,BSUH NHS Trust,27-Apr-15,Dressings,Physiotherapy (Trust),NHS LOGISTICS AUTHORITY,1015238594,53.25
Department of Health,BSUH NHS Trust,27-Apr-15,Dressings,Physiotherapy (Trust),NHS LOGISTICS AUTHORITY,1015238594,13.67
Department of Health,BSUH NHS Trust,27-Apr-15,Dressings,Physiotherapy (Trust),NHS LOGISTICS AUTHORITY,1015238594,26.95
Department of Health,BSUH NHS Trust,27-Apr-15,Patients Appliances : Purchase,Physiotherapy (Trust),NHS LOGISTICS AUTHORITY,1015238594,4.4
Department of Health,BSUH NHS Trust,27-Apr-15,Patients Appliances : Purchase,Physiotherapy (Trust),NHS LOGISTICS AUTHORITY,1015238594,4.4
Department of Health,BSUH NHS Trust,27-Apr-15,Patients Appliances : Purchase,Physiotherapy (Trust),NHS LOGISTICS AUTHORITY,1015238594,22
Department of Health,BSUH NHS Trust,27-Apr-15,Patients Appliances : Purchase,Physiotherapy (Trust),NHS LOGISTICS AUTHORITY,1015238594,22
Department of Health,BSUH NHS Trust,27-Apr-15,Hardware & Crockery,Physiotherapy (Trust),NHS LOGISTICS AUTHORITY,1015238594,0.49
Department of Health,BSUH NHS Trust,27-Apr-15,Hardware & Crockery,Physiotherapy (Trust),NHS LOGISTICS AUTHORITY,1015238594,2.45
Department of Health,BSUH NHS Trust,27-Apr-15,M&S Equipment : General,Sterile Services (BTN),NHS LOGISTICS AUTHORITY,1015238594,4.13
Department of Health,BSUH NHS Trust,27-Apr-15,M&S Equipment : General,Sterile Services (BTN),NHS LOGISTICS AUTHORITY,1015238594,21.36
Department of Health,BSUH NHS Trust,27-Apr-15,M&S Equipment : General,Sterile Services (BTN),NHS LOGISTICS AUTHORITY,1015238594,10.59
Department of Health,BSUH NHS Trust,27-Apr-15,M&S Equipment : General,Sussex Eye Theatre,NHS LOGISTICS AUTHORITY,1015238594,22.64
Department of Health,BSUH NHS Trust,27-Apr-15,M&S Equipment : General,Sussex Eye Theatre,NHS LOGISTICS AUTHORITY,1015238594,1.85
Department of Health,BSUH NHS Trust,27-Apr-15,M&S Equipment : General,Sussex Eye Theatre,NHS LOGISTICS AUTHORITY,1015238594,21.93
Department of Health,BSUH NHS Trust,27-Apr-15,M&S Equipment : General,Sussex Eye Theatre,NHS LOGISTICS AUTHORITY,1015238594,0.9
Department of Health,BSUH NHS Trust,27-Apr-15,M&S Equipment : General,Sussex Eye Theatre,NHS LOGISTICS AUTHORITY,1015238594,0.31
Department of Health,BSUH NHS Trust,27-Apr-15,M&S Equipment : General,Sussex Eye Theatre,NHS LOGISTICS AUTHORITY,1015238594,1.04
Department of Health,BSUH NHS Trust,27-Apr-15,M&S Equipment : General,Sussex Eye Theatre,NHS LOGISTICS AUTHORITY,1015238594,21.93
Department of Health,BSUH NHS Trust,27-Apr-15,M&S Equipment : General,Sussex Eye Theatre,NHS LOGISTICS AUTHORITY,1015238594,21.93
Department of Health,BSUH NHS Trust,27-Apr-15,M&S Equipment : General,Sussex Eye Theatre,NHS LOGISTICS AUTHORITY,1015238594,1.47
Department of Health,BSUH NHS Trust,27-Apr-15,M&S Equipment : General,Sussex Eye Theatre,NHS LOGISTICS AUTHORITY,1015238594,0.49
Department of Health,BSUH NHS Trust,27-Apr-15,M&S Equipment : General,Sussex Eye Theatre,NHS LOGISTICS AUTHORITY,1015238594,2.33
Department of Health,BSUH NHS Trust,27-Apr-15,M&S Equipment : General,Sussex Eye Theatre,NHS LOGISTICS AUTHORITY,1015238594,2
Department of Health,BSUH NHS Trust,27-Apr-15,M&S Equipment : General,Sussex Eye Theatre,NHS LOGISTICS AUTHORITY,1015238594,0.19
Department of Health,BSUH NHS Trust,27-Apr-15,M&S Equipment : General,Sussex Eye Theatre,NHS LOGISTICS AUTHORITY,1015238594,10.97
Department of Health,BSUH NHS Trust,27-Apr-15,M&S Equipment : General,Sussex Eye Theatre,NHS LOGISTICS AUTHORITY,1015238594,32.9
Department of Health,BSUH NHS Trust,27-Apr-15,M&S Equipment : General,Sussex Eye Theatre,NHS LOGISTICS AUTHORITY,1015238594,12.79
Department of Health,BSUH NHS Trust,27-Apr-15,M&S Equipment : General,Sussex Eye Theatre,NHS LOGISTICS AUTHORITY,1015238594,0.47
Department of Health,BSUH NHS Trust,27-Apr-15,M&S Equipment : General,Sussex Eye Theatre,NHS LOGISTICS AUTHORITY,1015238594,1.15
Department of Health,BSUH NHS Trust,27-Apr-15,M&S Equipment : General,Sussex Eye Theatre,NHS LOGISTICS AUTHORITY,1015238594,4.83
Department of Health,BSUH NHS Trust,27-Apr-15,M&S Equipment : General,Sussex Eye Theatre,NHS LOGISTICS AUTHORITY,1015238594,27.79
Department of Health,BSUH NHS Trust,27-Apr-15,M&S Equipment : General,Sussex Eye Theatre,NHS LOGISTICS AUTHORITY,1015238594,0.28
Department of Health,BSUH NHS Trust,27-Apr-15,M&S Equipment : General,Sussex Eye Theatre,NHS LOGISTICS AUTHORITY,1015238594,26.58
Department of Health,BSUH NHS Trust,27-Apr-15,M&S Equipment : General,Sussex Eye Theatre,NHS LOGISTICS AUTHORITY,1015238594,0.31
Department of Health,BSUH NHS Trust,27-Apr-15,M&S Equipment : General,Sussex Eye Theatre,NHS LOGISTICS AUTHORITY,1015238594,0.82
Department of Health,BSUH NHS Trust,27-Apr-15,M&S Equipment : General,Sussex Eye Theatre,NHS LOGISTICS AUTHORITY,1015238594,1.85
Department of Health,BSUH NHS Trust,27-Apr-15,M&S Equipment : General,Sussex Eye Theatre,NHS LOGISTICS AUTHORITY,1015238594,0.78
Department of Health,BSUH NHS Trust,27-Apr-15,M&S Equipment : General,Sussex Eye Theatre,NHS LOGISTICS AUTHORITY,1015238594,3.5
Department of Health,BSUH NHS Trust,27-Apr-15,M&S Equipment : General,Sussex Eye Theatre,NHS LOGISTICS AUTHORITY,1015238594,4.09
Department of Health,BSUH NHS Trust,27-Apr-15,M&S Equipment : General,Sussex Eye Theatre,NHS LOGISTICS AUTHORITY,1015238594,0.66
Department of Health,BSUH NHS Trust,27-Apr-15,M&S Equipment : General,Sussex Eye Theatre,NHS LOGISTICS AUTHORITY,1015238594,0.98
Department of Health,BSUH NHS Trust,27-Apr-15,M&S Equipment : General,Sussex Eye Theatre,NHS LOGISTICS AUTHORITY,1015238594,2.33
Department of Health,BSUH NHS Trust,27-Apr-15,M&S Equipment : General,Sussex Eye Theatre,NHS LOGISTICS AUTHORITY,1015238594,4.92
Department of Health,BSUH NHS Trust,27-Apr-15,M&S Equipment : General,Sussex Eye Theatre,NHS LOGISTICS AUTHORITY,1015238594,4.52
Department of Health,BSUH NHS Trust,27-Apr-15,M&S Equipment : General,Sussex Eye Theatre,NHS LOGISTICS AUTHORITY,1015238594,7.33
Department of Health,BSUH NHS Trust,27-Apr-15,M&S Equipment : General,Sussex Eye Theatre,NHS LOGISTICS AUTHORITY,1015238594,2.44
Department of Health,BSUH NHS Trust,27-Apr-15,M&S Equipment : General,Sussex Eye Theatre,NHS LOGISTICS AUTHORITY,1015238594,5.21
Department of Health,BSUH NHS Trust,27-Apr-15,M&S Equipment : General,Sussex Eye Theatre,NHS LOGISTICS AUTHORITY,1015238594,3.88
Department of Health,BSUH NHS Trust,27-Apr-15,M&S Equipment : General,Sussex Eye Theatre,NHS LOGISTICS AUTHORITY,1015238594,138.93
Department of Health,BSUH NHS Trust,27-Apr-15,M&S Equipment : General,Sussex Eye Theatre,NHS LOGISTICS AUTHORITY,1015238594,10
Department of Health,BSUH NHS Trust,27-Apr-15,M&S Equipment : General,Sussex Eye Theatre,NHS LOGISTICS AUTHORITY,1015238594,3.32
Department of Health,BSUH NHS Trust,27-Apr-15,M&S Equipment : General,Sussex Eye Theatre,NHS LOGISTICS AUTHORITY,1015238594,1.38
Department of Health,BSUH NHS Trust,27-Apr-15,M&S Equipment : General,Sussex Eye Theatre,NHS LOGISTICS AUTHORITY,1015238594,109.65
Department of Health,BSUH NHS Trust,27-Apr-15,M&S Equipment : General,Sussex Eye Theatre,NHS LOGISTICS AUTHORITY,1015238594,164.48
Department of Health,BSUH NHS Trust,27-Apr-15,M&S Equipment : General,Sussex Eye Theatre,NHS LOGISTICS AUTHORITY,1015238594,109.65
Department of Health,BSUH NHS Trust,27-Apr-15,M&S Equipment : General,Sussex Eye Theatre,NHS LOGISTICS AUTHORITY,1015238594,54.83
Department of Health,BSUH NHS Trust,27-Apr-15,M&S Equipment : General,Sussex Eye Theatre,NHS LOGISTICS AUTHORITY,1015238594,109.65
Department of Health,BSUH NHS Trust,27-Apr-15,M&S Equipment : General,Sussex Eye Theatre,NHS LOGISTICS AUTHORITY,1015238594,5.75
Department of Health,BSUH NHS Trust,27-Apr-15,M&S Equipment : General,Sussex Eye Theatre,NHS LOGISTICS AUTHORITY,1015238594,132.9
Department of Health,BSUH NHS Trust,27-Apr-15,M&S Equipment : General,Sussex Eye Theatre,NHS LOGISTICS AUTHORITY,1015238594,113.2
Department of Health,BSUH NHS Trust,27-Apr-15,M&S Equipment : General,Sussex Eye Theatre,NHS LOGISTICS AUTHORITY,1015238594,24.17
Department of Health,BSUH NHS Trust,27-Apr-15,M&S Equipment : General,Sussex Eye Theatre,NHS LOGISTICS AUTHORITY,1015238594,20.43
Department of Health,BSUH NHS Trust,27-Apr-15,M&S Equipment : General,Sussex Eye Theatre,NHS LOGISTICS AUTHORITY,1015238594,17.5
Department of Health,BSUH NHS Trust,27-Apr-15,M&S Equipment : General,Sussex Eye Theatre,NHS LOGISTICS AUTHORITY,1015238594,1.57
Department of Health,BSUH NHS Trust,27-Apr-15,M&S Equipment : General,Sussex Eye Theatre,NHS LOGISTICS AUTHORITY,1015238594,1.57
Department of Health,BSUH NHS Trust,27-Apr-15,M&S Equipment : General,Sussex Eye Theatre,NHS LOGISTICS AUTHORITY,1015238594,11.67
Department of Health,BSUH NHS Trust,27-Apr-15,M&S Equipment : General,Sussex Eye Theatre,NHS LOGISTICS AUTHORITY,1015238594,4.1
Department of Health,BSUH NHS Trust,27-Apr-15,M&S Equipment : General,Sussex Eye Theatre,NHS LOGISTICS AUTHORITY,1015238594,9.25
Department of Health,BSUH NHS Trust,27-Apr-15,M&S Equipment : General,Sussex Eye Theatre,NHS LOGISTICS AUTHORITY,1015238594,9.25
Department of Health,BSUH NHS Trust,27-Apr-15,M&S Equipment : General,Sussex Eye Theatre,NHS LOGISTICS AUTHORITY,1015238594,63.96
Department of Health,BSUH NHS Trust,27-Apr-15,M&S Equipment : General,Sussex Eye Theatre,NHS LOGISTICS AUTHORITY,1015238594,0.95
Department of Health,BSUH NHS Trust,27-Apr-15,Cleaning Materials,Sussex Eye Theatre,NHS LOGISTICS AUTHORITY,1015238594,0.87
Department of Health,BSUH NHS Trust,27-Apr-15,Cleaning Materials,Sussex Eye Theatre,NHS LOGISTICS AUTHORITY,1015238594,0.4
Department of Health,BSUH NHS Trust,27-Apr-15,Cleaning Materials,Sussex Eye Theatre,NHS LOGISTICS AUTHORITY,1015238594,9.1
Department of Health,BSUH NHS Trust,27-Apr-15,Cleaning Materials,Sussex Eye Theatre,NHS LOGISTICS AUTHORITY,1015238594,3.61
Department of Health,BSUH NHS Trust,27-Apr-15,Cleaning Materials,"Childrens Emergency Department (RAH,ED, Beds)",NHS LOGISTICS AUTHORITY,1015238594,2.66
Department of Health,BSUH NHS Trust,27-Apr-15,Cleaning Materials,"Childrens Emergency Department (RAH,ED, Beds)",NHS LOGISTICS AUTHORITY,1015238594,13.29
Department of Health,BSUH NHS Trust,27-Apr-15,Cleaning Materials,"Childrens Emergency Department (RAH,ED, Beds)",NHS LOGISTICS AUTHORITY,1015238594,8.32
Department of Health,BSUH NHS Trust,27-Apr-15,Cleaning Materials,"Childrens Emergency Department (RAH,ED, Beds)",NHS LOGISTICS AUTHORITY,1015238594,8
Department of Health,BSUH NHS Trust,27-Apr-15,Cleaning Materials,"Childrens Emergency Department (RAH,ED, Beds)",NHS LOGISTICS AUTHORITY,1015238594,10.4
Department of Health,BSUH NHS Trust,27-Apr-15,Bedding & Linen : Disposable,"Childrens Emergency Department (RAH,ED, Beds)",NHS LOGISTICS AUTHORITY,1015238594,1.4
Department of Health,BSUH NHS Trust,27-Apr-15,Bedding & Linen : Disposable,"Childrens Emergency Department (RAH,ED, Beds)",NHS LOGISTICS AUTHORITY,1015238594,0.58
Department of Health,BSUH NHS Trust,27-Apr-15,Bedding & Linen : Disposable,"Childrens Emergency Department (RAH,ED, Beds)",NHS LOGISTICS AUTHORITY,1015238594,1.43
Department of Health,BSUH NHS Trust,27-Apr-15,Bedding & Linen : Disposable,"Childrens Emergency Department (RAH,ED, Beds)",NHS LOGISTICS AUTHORITY,1015238594,7.17
Department of Health,BSUH NHS Trust,27-Apr-15,Bedding & Linen : Disposable,"Childrens Emergency Department (RAH,ED, Beds)",NHS LOGISTICS AUTHORITY,1015238594,2.88
Department of Health,BSUH NHS Trust,27-Apr-15,Bedding & Linen : Disposable,"Childrens Emergency Department (RAH,ED, Beds)",NHS LOGISTICS AUTHORITY,1015238594,7
Department of Health,BSUH NHS Trust,27-Apr-15,Dressings,"Pickford Ward - 9 Beds (RSCH,IW,9 Beds)",NHS LOGISTICS AUTHORITY,1015238594,7.4
Department of Health,BSUH NHS Trust,27-Apr-15,Dressings,"Pickford Ward - 9 Beds (RSCH,IW,9 Beds)",NHS LOGISTICS AUTHORITY,1015238594,7.4
Department of Health,BSUH NHS Trust,27-Apr-15,Dressings,"Pickford Ward - 9 Beds (RSCH,IW,9 Beds)",NHS LOGISTICS AUTHORITY,1015238594,7.4
Department of Health,BSUH NHS Trust,27-Apr-15,Dressings,"Pickford Ward - 9 Beds (RSCH,IW,9 Beds)",NHS LOGISTICS AUTHORITY,1015238594,0.75
Department of Health,BSUH NHS Trust,27-Apr-15,Dressings,"Pickford Ward - 9 Beds (RSCH,IW,9 Beds)",NHS LOGISTICS AUTHORITY,1015238594,6.7
Department of Health,BSUH NHS Trust,27-Apr-15,Dressings,"Pickford Ward - 9 Beds (RSCH,IW,9 Beds)",NHS LOGISTICS AUTHORITY,1015238594,29.78
Department of Health,BSUH NHS Trust,27-Apr-15,Dressings,"Pickford Ward - 9 Beds (RSCH,IW,9 Beds)",NHS LOGISTICS AUTHORITY,1015238594,3.72
Department of Health,BSUH NHS Trust,27-Apr-15,Dressings,"Pickford Ward - 9 Beds (RSCH,IW,9 Beds)",NHS LOGISTICS AUTHORITY,1015238594,3.75
Department of Health,BSUH NHS Trust,27-Apr-15,Dressings,"Pickford Ward - 9 Beds (RSCH,IW,9 Beds)",NHS LOGISTICS AUTHORITY,1015238594,37
Department of Health,BSUH NHS Trust,27-Apr-15,Dressings,"Pickford Ward - 9 Beds (RSCH,IW,9 Beds)",NHS LOGISTICS AUTHORITY,1015238594,37
Department of Health,BSUH NHS Trust,27-Apr-15,Dressings,"Pickford Ward - 9 Beds (RSCH,IW,9 Beds)",NHS LOGISTICS AUTHORITY,1015238594,37
Department of Health,BSUH NHS Trust,27-Apr-15,Hardware & Crockery,"Pickford Ward - 9 Beds (RSCH,IW,9 Beds)",NHS LOGISTICS AUTHORITY,1015238594,2.4
Department of Health,BSUH NHS Trust,27-Apr-15,Hardware & Crockery,"Pickford Ward - 9 Beds (RSCH,IW,9 Beds)",NHS LOGISTICS AUTHORITY,1015238594,12
Department of Health,BSUH NHS Trust,27-Apr-15,Bedding & Linen : Disposable,"Pickford Ward - 9 Beds (RSCH,IW,9 Beds)",NHS LOGISTICS AUTHORITY,1015238594,1.84
Department of Health,BSUH NHS Trust,27-Apr-15,Bedding & Linen : Disposable,"Pickford Ward - 9 Beds (RSCH,IW,9 Beds)",NHS LOGISTICS AUTHORITY,1015238594,1.15
Department of Health,BSUH NHS Trust,27-Apr-15,Bedding & Linen : Disposable,"Pickford Ward - 9 Beds (RSCH,IW,9 Beds)",NHS LOGISTICS AUTHORITY,1015238594,0.79
Department of Health,BSUH NHS Trust,27-Apr-15,Bedding & Linen : Disposable,"Pickford Ward - 9 Beds (RSCH,IW,9 Beds)",NHS LOGISTICS AUTHORITY,1015238594,3.95
Department of Health,BSUH NHS Trust,27-Apr-15,Bedding & Linen : Disposable,"Pickford Ward - 9 Beds (RSCH,IW,9 Beds)",NHS LOGISTICS AUTHORITY,1015238594,9.2
Department of Health,BSUH NHS Trust,27-Apr-15,Bedding & Linen : Disposable,"Pickford Ward - 9 Beds (RSCH,IW,9 Beds)",NHS LOGISTICS AUTHORITY,1015238594,5.77
Department of Health,BSUH NHS Trust,27-Apr-15,M&S Equipment : General,"Ophthalmology A&E and Outpatients (RSCH,OP,0 Beds)",NHS LOGISTICS AUTHORITY,1015238594,0.28
Department of Health,BSUH NHS Trust,27-Apr-15,M&S Equipment : General,"Ophthalmology A&E and Outpatients (RSCH,OP,0 Beds)",NHS LOGISTICS AUTHORITY,1015238594,0.98
Department of Health,BSUH NHS Trust,27-Apr-15,M&S Equipment : General,"Ophthalmology A&E and Outpatients (RSCH,OP,0 Beds)",NHS LOGISTICS AUTHORITY,1015238594,2.79
Department of Health,BSUH NHS Trust,27-Apr-15,M&S Equipment : General,"Ophthalmology A&E and Outpatients (RSCH,OP,0 Beds)",NHS LOGISTICS AUTHORITY,1015238594,2.53
Department of Health,BSUH NHS Trust,27-Apr-15,M&S Equipment : General,"Ophthalmology A&E and Outpatients (RSCH,OP,0 Beds)",NHS LOGISTICS AUTHORITY,1015238594,9.63
Department of Health,BSUH NHS Trust,27-Apr-15,M&S Equipment : General,"Ophthalmology A&E and Outpatients (RSCH,OP,0 Beds)",NHS LOGISTICS AUTHORITY,1015238594,9.63
Department of Health,BSUH NHS Trust,27-Apr-15,M&S Equipment : General,"Ophthalmology A&E and Outpatients (RSCH,OP,0 Beds)",NHS LOGISTICS AUTHORITY,1015238594,12.17
Department of Health,BSUH NHS Trust,27-Apr-15,M&S Equipment : General,"Ophthalmology A&E and Outpatients (RSCH,OP,0 Beds)",NHS LOGISTICS AUTHORITY,1015238594,0.38
Department of Health,BSUH NHS Trust,27-Apr-15,M&S Equipment : General,"Ophthalmology A&E and Outpatients (RSCH,OP,0 Beds)",NHS LOGISTICS AUTHORITY,1015238594,3.42
Department of Health,BSUH NHS Trust,27-Apr-15,M&S Equipment : General,"Ophthalmology A&E and Outpatients (RSCH,OP,0 Beds)",NHS LOGISTICS AUTHORITY,1015238594,2.22
Department of Health,BSUH NHS Trust,27-Apr-15,M&S Equipment : General,"Ophthalmology A&E and Outpatients (RSCH,OP,0 Beds)",NHS LOGISTICS AUTHORITY,1015238594,158.72
Department of Health,BSUH NHS Trust,27-Apr-15,M&S Equipment : General,"Ophthalmology A&E and Outpatients (RSCH,OP,0 Beds)",NHS LOGISTICS AUTHORITY,1015238594,33.65
Department of Health,BSUH NHS Trust,27-Apr-15,M&S Equipment : General,"Ophthalmology A&E and Outpatients (RSCH,OP,0 Beds)",NHS LOGISTICS AUTHORITY,1015238594,19.79
Department of Health,BSUH NHS Trust,27-Apr-15,M&S Equipment : General,"Ophthalmology A&E and Outpatients (RSCH,OP,0 Beds)",NHS LOGISTICS AUTHORITY,1015238594,98.97
Department of Health,BSUH NHS Trust,27-Apr-15,M&S Equipment : General,"Ophthalmology A&E and Outpatients (RSCH,OP,0 Beds)",NHS LOGISTICS AUTHORITY,1015238594,13.95
Department of Health,BSUH NHS Trust,27-Apr-15,M&S Equipment : General,"Ophthalmology A&E and Outpatients (RSCH,OP,0 Beds)",NHS LOGISTICS AUTHORITY,1015238594,4.88
Department of Health,BSUH NHS Trust,27-Apr-15,M&S Equipment : General,"Ophthalmology A&E and Outpatients (RSCH,OP,0 Beds)",NHS LOGISTICS AUTHORITY,1015238594,11.08
Department of Health,BSUH NHS Trust,27-Apr-15,M&S Equipment : General,"Ophthalmology A&E and Outpatients (RSCH,OP,0 Beds)",NHS LOGISTICS AUTHORITY,1015238594,1.38
Department of Health,BSUH NHS Trust,27-Apr-15,M&S Equipment : General,"Ophthalmology A&E and Outpatients (RSCH,OP,0 Beds)",NHS LOGISTICS AUTHORITY,1015238594,48.17
Department of Health,BSUH NHS Trust,27-Apr-15,M&S Equipment : General,"Ophthalmology A&E and Outpatients (RSCH,OP,0 Beds)",NHS LOGISTICS AUTHORITY,1015238594,48.17
Department of Health,BSUH NHS Trust,27-Apr-15,M&S Equipment : General,"Ophthalmology A&E and Outpatients (RSCH,OP,0 Beds)",NHS LOGISTICS AUTHORITY,1015238594,793.58
Department of Health,BSUH NHS Trust,27-Apr-15,M&S Equipment : General,"Ophthalmology A&E and Outpatients (RSCH,OP,0 Beds)",NHS LOGISTICS AUTHORITY,1015238594,60.83
Department of Health,BSUH NHS Trust,27-Apr-15,M&S Equipment : General,"Ophthalmology A&E and Outpatients (RSCH,OP,0 Beds)",NHS LOGISTICS AUTHORITY,1015238594,17.08
Department of Health,BSUH NHS Trust,27-Apr-15,M&S Equipment : General,"Ophthalmology A&E and Outpatients (RSCH,OP,0 Beds)",NHS LOGISTICS AUTHORITY,1015238594,12.64
Department of Health,BSUH NHS Trust,27-Apr-15,M&S Equipment : General,"Ophthalmology A&E and Outpatients (RSCH,OP,0 Beds)",NHS LOGISTICS AUTHORITY,1015238594,168.24
Department of Health,BSUH NHS Trust,27-Apr-15,M&S Equipment : General,"Ophthalmology A&E and Outpatients (RSCH,OP,0 Beds)",NHS LOGISTICS AUTHORITY,1015238594,1.91
Department of Health,BSUH NHS Trust,27-Apr-15,Cleaning Materials,"Ophthalmology A&E and Outpatients (RSCH,OP,0 Beds)",NHS LOGISTICS AUTHORITY,1015238594,4.34
Department of Health,BSUH NHS Trust,27-Apr-15,Cleaning Materials,"Ophthalmology A&E and Outpatients (RSCH,OP,0 Beds)",NHS LOGISTICS AUTHORITY,1015238594,5.16
Department of Health,BSUH NHS Trust,27-Apr-15,Cleaning Materials,"Ophthalmology A&E and Outpatients (RSCH,OP,0 Beds)",NHS LOGISTICS AUTHORITY,1015238594,0.84
Department of Health,BSUH NHS Trust,27-Apr-15,Cleaning Materials,"Ophthalmology A&E and Outpatients (RSCH,OP,0 Beds)",NHS LOGISTICS AUTHORITY,1015238594,4.2
Department of Health,BSUH NHS Trust,27-Apr-15,Cleaning Materials,"Ophthalmology A&E and Outpatients (RSCH,OP,0 Beds)",NHS LOGISTICS AUTHORITY,1015238594,21.7
Department of Health,BSUH NHS Trust,27-Apr-15,Cleaning Materials,"Ophthalmology A&E and Outpatients (RSCH,OP,0 Beds)",NHS LOGISTICS AUTHORITY,1015238594,25.8
Department of Health,BSUH NHS Trust,27-Apr-15,Bedding & Linen : Disposable,"Ophthalmology A&E and Outpatients (RSCH,OP,0 Beds)",NHS LOGISTICS AUTHORITY,1015238594,23.2
Department of Health,BSUH NHS Trust,27-Apr-15,Bedding & Linen : Disposable,"Ophthalmology A&E and Outpatients (RSCH,OP,0 Beds)",NHS LOGISTICS AUTHORITY,1015238594,116
Department of Health,BSUH NHS Trust,27-Apr-15,M&S Equipment : General,"RACH Surgical Ward (RAH,IW,12 Beds)",NHS LOGISTICS AUTHORITY,1015238594,0.92
Department of Health,BSUH NHS Trust,27-Apr-15,M&S Equipment : General,"RACH Surgical Ward (RAH,IW,12 Beds)",NHS LOGISTICS AUTHORITY,1015238594,2.02
Department of Health,BSUH NHS Trust,27-Apr-15,M&S Equipment : General,"RACH Surgical Ward (RAH,IW,12 Beds)",NHS LOGISTICS AUTHORITY,1015238594,5.49
Department of Health,BSUH NHS Trust,27-Apr-15,M&S Equipment : General,"RACH Surgical Ward (RAH,IW,12 Beds)",NHS LOGISTICS AUTHORITY,1015238594,88.86
Department of Health,BSUH NHS Trust,27-Apr-15,M&S Equipment : General,"RACH Surgical Ward (RAH,IW,12 Beds)",NHS LOGISTICS AUTHORITY,1015238594,1.27
Department of Health,BSUH NHS Trust,27-Apr-15,M&S Equipment : General,"RACH Surgical Ward (RAH,IW,12 Beds)",NHS LOGISTICS AUTHORITY,1015238594,9.5
Department of Health,BSUH NHS Trust,27-Apr-15,M&S Equipment : General,"RACH Surgical Ward (RAH,IW,12 Beds)",NHS LOGISTICS AUTHORITY,1015238594,1.97
Department of Health,BSUH NHS Trust,27-Apr-15,M&S Equipment : General,"RACH Surgical Ward (RAH,IW,12 Beds)",NHS LOGISTICS AUTHORITY,1015238594,2.01
Department of Health,BSUH NHS Trust,27-Apr-15,M&S Equipment : General,"RACH Surgical Ward (RAH,IW,12 Beds)",NHS LOGISTICS AUTHORITY,1015238594,43.49
Department of Health,BSUH NHS Trust,27-Apr-15,M&S Equipment : General,"RACH Surgical Ward (RAH,IW,12 Beds)",NHS LOGISTICS AUTHORITY,1015238594,93.36
Department of Health,BSUH NHS Trust,27-Apr-15,M&S Equipment : General,"RACH Surgical Ward (RAH,IW,12 Beds)",NHS LOGISTICS AUTHORITY,1015238594,21.52
